Workbook

Sheet DD_Main
A1: ="Total rows "&TEXT(SUBTOTAL(3,B:B)-SUBTOTAL(3,B1:B13),"#,##0") -> Total rows 6 | D1: DD_Main, The Principal Sheet of the Deficiency Database | DQ1: Do NOT delete these columns —> | DR1: Do NOT delete these columns | DU1: Do NOT delete these columns | DX1: Do NOT delete these columns | EA1: Do NOT delete these columns | ED1: Do NOT delete these columns | EG1: Do NOT delete these columns | EJ1: Do NOT delete these columns | EM1: Do NOT delete these columns | EP1: Do NOT delete these columns | EQ1: Do NOT delete these columns | ER1: Do NOT delete these columns | ES1: <— Do NOT delete these columns
B2: Deficiency_ID | C2: RAMM_Rd_ID | D2: RAMM_RD_Name | E2: Dfcy_Type | F2: Dfcy_Treatable | G2: Type_of_Deficiency | H2: Dfcy_Type_ID | I2: Deficeny_Type_Explanation | J2: Dfcy_Describe | K2: Dfcy_LocationDescribe | L2: Dfcy_RP_Start | M2: Dfcy_RP_End | N2: Dfcy_Side | O2: Dfcy_DuplicateCheck | P2: Dfcy_DuplicateMsg | Q2: Dfcy_Dup_OK | R2: Dfcy_OpSpeed | S2: Source_Description | T2: Dfcy_Source | U2: Dfcy_AADT | V2: Dfcy_Crash_Start | W2: Dfcy_Crash_Fatal | X2: Dfcy_Crash_Serious | Y2: Dfcy_Crash_Minor | Z2: Dfcy_Crash_Non | AA2: Dfcy_Crash_Total | AB2: Dfcy_Crash_Rate | AC2: Likelihood_Name | AD2: Dfcy_Likelihood | AE2: Likelihood_Description | AF2: Dfcy_Consequence | AG2: Consequence_Name | AH2: Consequence_Description | AI2: Total_Risk | AJ2: Risk_Description | AK2: Dfcy_MoreData | AL2: More_Data_Who | AM2: Dfcy_MoreData_What | AN2: Dfcy_MoreDate_When | AO2: Dfcy_Approved_By | AP2: Dfcy_Input_Links | AQ2: Dfcy_Comment | AR2: Dfcy_Recorded_By | AS2: Dfcy_Recorded_On | AT2: TR1_Nickname | AU2: Dfcy_Treatment1 | AV2: Tr1_Description | AW2: Dfcy_Tr1_WorkCategory | AX2: Tr1_Work_Cat_Name | AY2: Dfcy_Tr1_Cost | AZ2: Dfcy_Tr1_EstLink | BA2: Dfcy_Tr1_Status | BB2: Dfcy_Tr1_CostedBy | BC2: Dfcy_Tr1_CostedOn | BD2: Dfcy_TR1_CCI | BE2: DfcyTr1_WhoDevelCost | BF2: TR2_Nickname | BG2: Dfcy_Treatment1 | BH2: TR2_Description | BI2: Dfcy_Tr2_WorkCategory | BJ2: Tr2_Work_Cat_Name | BK2: Dfcy_Tr2_Cost | BL2: Dfcy_Tr2_EstLink | BM2: Dfcy_Tr2_Status | BN2: Dfcy_Tr2_CostedBy | BO2: Dfcy_Tr2_CostedOn | BP2: Dfcy_Tr2_CCI | BQ2: DfcyTr2_WhoDevelCost | BR2: TR3_Nickname | BS2: Dfcy_Treatment1 | BT2: Tr3_Description | BU2: Dfcy_Tr3_WorkCategory | BV2: Tr3_Work_Cat_Name | BW2: Dfcy_Tr3_Cost | BX2: Dfcy_Tr3_EstLink | BY2: Dfcy_Tr3_Status | BZ2: Dfcy_Tr3_CostedBy | CA2: Dfcy_Tr3_CostedOn | CB2: Dfcy_Tr3_CCI | CC2: DfcyTr3_WhoDevelCost | CD2: Dfcy_Recommended | CE2: Recom_Opt | CF2: Recom_Risk | CG2: Choice_Descr | CH2: Choice_Reason | CI2: Choice_Nickname | CJ2: Choice_Cost | CK2: Choice_CCI | CL2: Choice_RiskAfter | CM2: Updated_Choice_Cost | CN2: Risk_Reduc | CO2: Choice_%_$k | CP2: Choice_Cost_vehicleyear | CQ2: Intermed_Rank | CR2: Choice_WkCat | CS2: WkCat_Chosen | CT2: Overall_Rank | CU2: Chosen_Rank | CV2: Change_Reason | CW2: Change_by | CX2: Temp_Pri | CY2: New Pri | CZ2: Completed_Reason | DA2: ActionRequired | DB2: Choice_DecimalPri | DC2: Choice_WksCat.Pri | DD2: Choice_RankInWkCat.Pri | DE2: Choice_WksCat.RankInCat | DF2: Choice_RankInWkCat-1 | DG2: Choice_WksCat.(RankInCat-1) | DH2: Choice_EarliestYr | DI2: Dfcy_Programmed Year | DJ2: Problem_Resolved | DK2: Dfcy_Work-Completed_On | DL2: Dfcy_Final Cost | DM2: Dfcy_Record of Completion Entered By | DN2: Dfcy_Last Changed_ By | DO2: Dfcy_Last Changed_On | DQ2: Do NOT delete these columns —> | DR2: Tr 1 | DU2: Tr 2 | DX2: Tr 3 | EA2: Risk reduction | ED2: Risk reduction #/$k | EG2: Cost/Veh over 1yr | EJ2: Intermediate / Cumulative Ranking | EM2: Option Number | EP2: Nick Name | ES2: <— Do NOT delete these columns
A3: HeaderRow | B3: Deficiency_ID | C3: RAMM ID | D3: Road Name | E3: Hazard or Safety Deficiency? | F3: Treatable? | G3: Deficiency Type | H3: Deficiency Type ID | I3: Deficiency Description | J3: Narative description of the problem | K3: Short description of its location | L3: RAMM RP Start | M3: RAMM RP End | N3: "Side of the Road" (RAMM) | O3: Duplicate Check | P3: Duplicate Site? | Q3: Accept Duplicate | R3: Traffic operating Speed | S3: Who / What first identified the site? | T3: The Source of the initial of Initial Information (Code) | U3: Current Traffic Volume | V3: Crashes Recorded Since: | W3: Total Fatal Crashes | X3: Total Serious Crashes | Y3: Total Minor Crashes | Z3: Total Non-injury Crashes | AA3: Total All Crashes | AB3: Crash Rate | AC3: Likelihood of a crash now | AD3: Likelihood Code | AE3: Likelihood Description | AF3: Consequence_Code | AG3: Consequence of that crash now | AH3: Consequence Description | AI3: Risk | AJ3: Risk Description | AK3: Is more data required? | AL3: Who is responsible for collecting it? | AM3: What is that data? | AN3: When is it required by? | AO3: Who approved that deficiency is entered in to the database. | AP3: Links to other data | AQ3: Any additional comments | AR3: Who recorded the deficiency in the first place | AS3: When was it recorded? | AT3: Treatment Option 1 Nickname | AU3: Treatment Option 1 ID | AV3: Treatment Option 1 Name | AW3: Work category for this option | AX3: Work Category Name | AY3: Estimated cost of Treatment Option 1 | AZ3: Links to Estimate Data | BA3: Status of this cost? Its accuracy? | BB3: Estimate prepared by? | BC3: Estimate Date | BD3: Cost Index at this date | BE3: Who is to develop the estimates further? | BF3: Treatment Option 2 Nickname | BG3: Treatment Option 2 ID | BH3: Treatment Option 2 Name | BI3: Work category for this option | BJ3: Work Category Name | BK3: Estimated cost of Treatment Option2 | BL3: Links to Estimate Data | BM3: Status of this cost? Its accuracy? | BN3: Estimate prepared by? | BO3: Estimate Date | BP3: Cost Index at this date | BQ3: Who is to develop the estimates further? | BR3: Treatment Option 3 Nickname | BS3: Treatment Option 3 ID | BT3: Treatment Option 3 Name | BU3: Work category for this option | BV3: Work Category Name | BW3: Estimated cost of Treatment Option 3 | BX3: Links to Estimate Data | BY3: Status of this cost? Its accuracy? | BZ3: Estimate prepared by? | CA3: Estimate Date | CB3: Cost Index at this date | CC3: Who is to develop the estimates further? | CD3: Recommended option based on your weightings. (All other factors being equal the project with the lowest post-construction risk is recommended) | CE3: Recommeded Treatment Option | CF3: Post Recommeded-Treatment Risk | CG3: Chosen Option for treating this site | CH3: Reason for Changing the Recommendation | CI3: Nickname of Chosen Solution | CJ3: Chosen Solution Cost | CK3: Chosen Solution CCI | CL3: Risk After Implementing Chosen Option | CM3: Updated Chosen Cost | CN3: Risk Reduction | CO3: Risk Reduction (# / $k) | CP3: Cost / vehicle over 1 year | CQ3: Intermediate Rank Score | CR3: Work Cat of Choice | CS3: Work Category of Chosen Option | CT3: Recommended Overall Ranking | CU3: Move to be Rank: | CV3: Stated Reason for Change | CW3: Change made by | CX3: Interim Priority | CY3: Allocated Ranking | CZ3: Reason for Change | DA3: Action to be taken | DB3: Priority as a decimal | DC3: WksCat.Pri | DD3: Rank in Wks Cat | DE3: WksCat.RankInCat | DF3: Next Highest Rank in Wks Cat | DG3: WksCat.(RankInCat-1) | DH3: Earliest Available Programme Year | DI3: Year work is programmed | DJ3: Is work complete? Deficiency resolved? | DK3: When was the work completed? | DL3: What was the final Cost | DM3: Who entered the record of completion | DN3: Who last changed any data? | DO3: When was it changed? | DQ3: Do NOT delete these columns —> | DR3: =DR2&" Updated Cost" -> Tr 1 Updated Cost | DS3: ="Post Treat "&DR2&" Risk" -> Post Treat Tr 1 Risk | DT3: =DR2&" rank among options" -> Tr 1 rank among options | DU3: =DU2&" Updated Cost" -> Tr 2 Updated Cost | DV3: ="Post Treat "&DU2&" Risk" -> Post Treat Tr 2 Risk | DW3: =DU2&" rank among options" -> Tr 2 rank among options | DX3: =DX2&" Updated Cost" -> Tr 3 Updated Cost | DY3: ="Post Treat "&DX2&" Risk" -> Post Treat Tr 3 Risk | DZ3: =DX2&" rank among options" -> Tr 3 rank among options | EA3: Tr 1 | EB3: Tr 2 | EC3: Tr 3 | ED3: Tr 1 | EE3: Tr 2 | EF3: Tr 3 | EG3: Tr 1 | EH3: Tr 2 | EI3: Cost / vehicle over 1 year | EJ3: Tr 1 | EK3: Tr 2 | EL3: Tr 3 | EM3: Tr 1 | EN3: Tr 2 | EO3: Tr 3 | EP3: Tr 1 | EQ3: Tr 2 | ER3: Tr 3 | ES3: <— Do NOT delete these columns
A4: Copy_of_Formulae | C4: =IF(ISBLANK(D4),"",VLOOKUP(UPPER(D4),RoadNamesTable!$B$6:OFFSET(RoadNamesTable!$B$6,COUNTA(RoadNamesTable!$E:$E),1),2,FALSE)) ->  | H4: =IF(ISBLANK(G4),"",VLOOKUP(G4,Deficiency_Types!$C$4:OFFSET(Deficiency_Types!$C$4,COUNTA(Deficiency_Types!$C:$C),3),4,FALSE)) ->  | I4: =IF(H4="","",VLOOKUP(H4,Dfcy_Table,4,FALSE)) ->  | O4: =IF(LEFT(Q4,6)="Accept",1,SUM(IF(OFFSET($C$13,1,0,CountRows,1)=C4,IF(OFFSET($L$13,1,0,CountRows,1)>=L4-Tol_Dup,IF(OFFSET($M$13,1,0,CountRows,1)<=M4+Tol_Dup,1,0))))) -> 0 | P4: =IF(O4>1,"Posssible Duplicate Site","") ->  | T4: =IF(S4="","",VLOOKUP(S4,Source_Table,2,FALSE)) ->  | AA4: =IF(ISBLANK(D4),"",SUM(W4:Z4)) ->  | AB4: =IF(U4=0,"",AA4/(U4*(TODAY()-V4))) ->  | AD4: =IF(AC4="","",VLOOKUP(AC4,Likelihood!$B$4:$F$8,5,FALSE)) ->  | AE4: =IF(AD4="","",VLOOKUP(AD4,Likelihood!$A$4:$C$8,3,FALSE)) ->  | AF4: =IF(AG4="","",VLOOKUP(AG4,Consequence!$B$4:$F$8,5,FALSE)) ->  | AH4: =IF(AF4="","",VLOOKUP(AF4,Consequence!$A$4:$C$8,3,FALSE)) ->  | AI4: =IF(OR(AD4="",AF4=""),"",VLOOKUP(AD4,Likelihood!$A$4:$D$8,4,FALSE)*VLOOKUP(AF4,Consequence!$A$4:$D$8,4,FALSE)) ->  | AJ4: =IF(AI4="","",VLOOKUP(AI4,Risk!$A$5:$B$8,2,TRUE)) ->  | AU4: =IF(ISBLANK(AT4),"",VLOOKUP(AT4,TreatmentTable_2,11,FALSE)) ->  | AV4: =IF(ISBLANK(AT4),"",VLOOKUP(AU4,TreatmentTable,2,FALSE)&". Risk after treatment: "&IF(ISBLANK(VLOOKUP(AU4,TreatmentTable,4,FALSE))=FALSE,TEXT(VLOOKUP(AU4,TreatmentTable,4,FALSE),"##0%")&" Reduction",VLOOKUP(AU4,TreatmentTable,12,FALSE))&". Cost ; "&TEXT(AY4,"$#,##0")) ->  | AX4: =IF(ISBLANK(AW4),"",VLOOKUP(AW4,WorkCatTable,2,FALSE)) ->  | BD4: =IF(ISBLANK(BC4),"",VLOOKUP(BC4,CCI_Table,CCI_Use,TRUE)) ->  | BG4: =(IF(ISBLANK(BF4),"",IF($BF4=$AT4,"Already Used",VLOOKUP(BF4,TreatmentTable_2,11,FALSE)))) ->  | BH4: =IF(ISBLANK(BF4),"",IF(BF4=AT4,"This treatment has already been used for this deficiency",VLOOKUP(BG4,TreatmentTable,2,FALSE)&CHAR(10)&"Risk after treatment: "&IF(ISBLANK(VLOOKUP(BG4,TreatmentTable,4,FALSE))=FALSE,TEXT(VLOOKUP(BG4,TreatmentTable,4,FALSE),"##0%")&" reduction",VLOOKUP(BG4,TreatmentTable,12,FALSE))&CHAR(10)&"Cost: "&TEXT(BK4,"$#,##0"))) ->  | BJ4: =IF(ISBLANK(BI4),"",VLOOKUP(BI4,WorkCatTable,2,FALSE)) ->  | BP4: =IF(ISBLANK(BO4),"",VLOOKUP(BO4,CCI_Table,CCI_Use,TRUE)) ->  | BS4: =(IF(ISBLANK(BR4),"",IF(OR($BR4=$AT4,$BR4=$BF4),"Already Used",VLOOKUP(BR4,TreatmentTable_2,11,FALSE)))) ->  | BT4: =IF(ISBLANK(BR4),"",IF(OR($BR4=$AT4,$BR4=$BF4),"This treatment has already been used for this deficiency",VLOOKUP(BS4,TreatmentTable,2,FALSE)&CHAR(10)&"Risk after treatment: "&IF(ISBLANK(VLOOKUP(BS4,TreatmentTable,4,FALSE))=FALSE,TEXT(VLOOKUP(BS4,TreatmentTable,4,FALSE),"##0%")&" reduction",VLOOKUP(BS4,TreatmentTable,12,FALSE))&CHAR(10)&"Cost: "&TEXT(BW4,"$#,##0"))) ->  | BV4: =IF(ISBLANK(BU4),"",VLOOKUP(BU4,WorkCatTable,2,FALSE)) ->  | CB4: =IF(ISBLANK(CA4),"",VLOOKUP(CA4,CCI_Table,CCI_Use,TRUE)) ->  | CD4: =IF(DT4=1,EP4,IF(DW4=1,EQ4,ER4)) ->  | CE4: =IF(DT4=1,AU4,IF(DW4=1,BG4,IF(DZ4=1,BS4,""))) ->  | CF4: =IF($CD4="","",IF($CE4=AU4,DS4,IF($CE4=BG4,DV4,IF($CE4=BS4,DY4,"")))) ->  | CG4: =CD4 ->  | CI4: =IF(CG4="","",IF($CG4=$AV4,AT4,IF($CG4=$BH4,BF4,IF($CG4=$BT4,BR4,"You have not chosen a valid option")))) ->  | CJ4: =IF($CI4="","",IF($CI4=AT4,AY4,IF($CI4=BF4,BK4,IF($CI4=BR4,BW4,"")))) ->  | CK4: =IF($CI4="","",IF($CI4=AT4,BD4,IF($CI4=BF4,BP4,IF($CI4=BR4,CB4,"")))) ->  | CL4: =IF($CG4="","",IF($CI4=AT4,DS4,IF($CI4=BF4,DV4,IF($CI4=BR4,DY4,"")))) ->  | CM4: =IF(CG4="","",IF(CG4="Update your chosen option","Update your chosen option",IF(CI4=AT4,DR4,IF(CI4=BF4,DU4,DX4)))) ->  | CN4: =IF(CE4="","",IF(AI4="","",AI4-CL4)) ->  | CO4: =IF(CI4="","", IF(CI4=AT4,ED4,IF(CI4=BF4,EE4,EF4))) ->  | CP4: =IF(OR(CG4="",CI4="Update your chosen option"),"",CM4/(U4*365)) ->  | CQ4: =IF(OR(D4="",E4=Hazard,B4="",DJ4="Yes",CI4="Accept"),"", WtPcent*RANK(CN4,Risk_Reduction)+ WtPcentDol*RANK(CO4,Risk_Reductionpcdol)+WtVehYr*RANK(CP4,Cost_Vehicle,1)-1/(C4+L4*10^-(INT(LOG10(MAX(L:L)))+2))) ->  | CR4: =IF($CI4="","",IF($CI4=$AT4,$AW4,IF($CI4=$BF4,$BI4,IF($CI4=$BR4,$BU4)))) ->  | CS4: =IF(ISNA(VLOOKUP(CR4,WorkCatTable,2,FALSE)),"",CR4&", "&VLOOKUP(CR4,WorkCatTable,2,FALSE)) ->  | CT4: =IF(DJ4="Yes","Complete",IF(OR(ISBLANK(CG4),CQ4="", CI4="Update your chosen option"),"",RANK(CQ4,CumulativeRank,1))) ->  | CX4: =IF(OR(CT4="",CT4="Complete"),"",IF(ISBLANK(AT4),"",IF(CU4=0,CT4+MAX(CT:CT)*10^-(INT(LOG10(MAX(CT:CT)))+1),CU4+CT4*10^-(INT(LOG10(MAX(CT:CT)))+2)))) ->  | CY4: =IF(DJ4="Yes","Complete",IF(CX4="","",RANK(CX4,$CX:$CX,-1))) ->  | CZ4: =IF(CY4="Complete","Complete",IF(CY4=CT4,"",IF(CU4>0,IF(CY4=CU4,CV4,CV4&" and as a consequence of other changes"),"As a consequence of other changes"))) ->  | DB4: =IF(OR(CY4="Complete",CY4=""),"",CY4*10^-(INT(LOG10(MAX(CY:CY)))+1)) ->  | DC4: =IF(OR(CY4="Complete",CY4=""),"",CR4+DB4) ->  | DD4: =IF(OR(CY4="Complete",CY4=""),"",RANK(DC4,DC:DC,-1)) ->  | DE4: =IF(OR(CY4="Complete",CY4=""),"",CR4+DD4*10^-(INT(LOG10(MAX(CY:CY)))+1)) ->  | DF4: =IF(OR(CY4="Complete",CY4=""),"",DD4-1) ->  | DG4: =IF(OR(CY4="Complete",CY4=""),"",CR4+DF4*10^-(INT(LOG10(MAX(CY:CY)))+1)) ->  | DH4: =IF(OR($E4=Hazard,$CY4="Complete",CR4=""),"",IF(ISNA(VLOOKUP(DG4,Earliest_Yr,5,FALSE)),YEAR(NOW())+1,MAX(YEAR(NOW())+1,VLOOKUP(DG4,Earliest_Yr,5,FALSE)))) ->  | DR4: =IF(OR(ISBLANK($D4),$E4=Hazard),"",IF(OR($AT4=0,$AT4="Accept"),0,AY4*VLOOKUP(TODAY(),CCI_Table,CCI_Use,TRUE)/BD4)) ->  | DS4: =IF(ISNA(VLOOKUP(AU4,TreatmentTable,11,FALSE)),"-",IF(VLOOKUP(AU4,TreatmentTable,4,FALSE)>0,(1-VLOOKUP(AU4,TreatmentTable,4,FALSE))*$AI4,VLOOKUP(AU4,TreatmentTable,11,FALSE))) -> - | DT4: =IF(OR(ISBLANK($D4),$E4=Hazard,ISBLANK(AT4)),"",RANK(EJ4,$EJ4:$EL4,1)) ->  | DU4: =IF(OR(ISBLANK($D4),$E4=Hazard),"",IF(OR($BF4="",$BF4="Accept"),0,BK4*VLOOKUP(TODAY(),CCI_Table,CCI_Use,TRUE)/BP4)) ->  | DV4: =IF(ISNA(VLOOKUP(BG4,TreatmentTable,11,FALSE)),"-",IF(VLOOKUP(BG4,TreatmentTable,4,FALSE)>0,(1-VLOOKUP(BG4,TreatmentTable,4,FALSE))*$AI4,VLOOKUP(BG4,TreatmentTable,11,FALSE))) -> - | DW4: =IF(OR(ISBLANK($D4),$E4=Hazard,ISBLANK(BF4)),"",RANK(EK4,$EJ4:$EL4,1)) ->  | DX4: =IF(OR(ISBLANK($D4),$E4=Hazard),"",IF(OR($BR4="",$BR4="Accept"),0,BW4*VLOOKUP(TODAY(),CCI_Table,CCI_Use,TRUE)/CB4)) ->  | DY4: =IF(ISNA(VLOOKUP(BS4,TreatmentTable,11,FALSE)),"-",IF(VLOOKUP(BS4,TreatmentTable,4,FALSE)>0,(1-VLOOKUP(BS4,TreatmentTable,4,FALSE))*$AI4,VLOOKUP(BS4,TreatmentTable,11,FALSE))) -> - | DZ4: =IF(OR(ISBLANK($D4),$E4=Hazard,ISBLANK(BR4)),"",RANK(EL4,$EJ4:$EL4,1)) ->  | EA4: =IF(OR(ISBLANK($D4),$E4=Hazard),"",IF(DS4="-",0,IF($AI4="","",$AI4-DS4))) ->  | EB4: =IF(OR(ISBLANK($D4),$E4=Hazard),"",IF(DV4="-",0,IF($AI4="","",$AI4-DV4))) ->  | EC4: =IF(OR(ISBLANK($D4),$E4=Hazard),"",IF(DY4="-",0,IF($AI4="","",$AI4-DY4))) ->  | ED4: =IF(OR(ISBLANK($D4),$E4=Hazard,DR4=""),"",IF(DR4=0,0,EA4/(DR4/1000))) ->  | EE4: =IF(OR(ISBLANK($D4),$E4=Hazard,DU4=""),"",IF(DU4=0,0,EB4/(DU4/1000))) ->  | EF4: =IF(OR(ISBLANK($D4),$E4=Hazard,DX4=""),"",IF(DX4=0,0,EC4/(DX4/1000))) ->  | EG4: =IF(OR(ISBLANK($D4),$E4=Hazard,ISBLANK(DR4),$U4=0),"",DR4/($U4*365)) ->  | EH4: =IF(OR(ISBLANK($D4),$E4=Hazard,ISBLANK(DR4),$U4=0),"",DU4/($U4*365)) ->  | EI4: =IF(OR(ISBLANK($D4),$E4=Hazard,ISBLANK(DR4),$U4=0),"",DX4/($U4*365)) ->  | EJ4: =IF(OR(ISBLANK($D4),$E4=Hazard,ISBLANK(AT4)),"",WtPcent*RANK(EA4,$EA4:$EC4)+WtPcentDol*RANK(ED4,$ED4:$EF4)+WtVehYr*RANK(EG4,$EG4:$EI4,1)-1/DS4) ->  | EK4: =IF(OR(ISBLANK($D4),$E4=Hazard,ISBLANK(BF4)),"",WtPcent*RANK(EB4,$EA4:$EC4)+WtPcentDol*RANK(EE4,$ED4:$EF4)+WtVehYr*RANK(EH4,$EG4:$EI4,1)-1/DV4) ->  | EL4: =IF(OR(ISBLANK($D4),$E4=Hazard,ISBLANK(BR4)),"",WtPcent*RANK(EC4,$EA4:$EC4)+WtPcentDol*RANK(EF4,$ED4:$EF4)+WtVehYr*RANK(EI4,$EG4:$EI4,1)-1/DY4) ->  | EM4: =AU4 ->  | EN4: =BG4 ->  | EO4: =BS4 ->  | EP4: =AV4 ->  | EQ4: =BH4 ->  | ER4: =BT4 -> 
A5: KeyRow | F5: NoPrint | H5: Detail | I5: Detail | P5: Detail | S5: NoPrint | V5: Crash Detail | W5: Crash Detail | X5: Crash Detail | Y5: Crash Detail | Z5: Crash Detail | AA5: Crash Detail | AB5: Crash Detail | AE5: Detail | AH5: Detail | AK5: NoPrint | AL5: Audit Detail | AM5: Audit Detail | AN5: Audit Detail | AO5: Audit Detail | AP5: NoPrint | AR5: NoPrint | AT5: NoPrint | AU5: Audit Detail | AV5: NoPrint | AW5: NoPrint | AX5: NoPrint | AY5: NoPrint | AZ5: NoPrint | BA5: NoPrint | BB5: NoPrint | BC5: NoPrint | BD5: NoPrint | BE5: NoPrint | BF5: Detail | BG5: Detail | BH5: Detail | BI5: Detail | BJ5: Detail | BK5: Detail | BL5: Detail | BM5: Detail | BN5: Detail | BO5: Detail | BP5: Detail | BQ5: Detail | BR5: Detail | BS5: Detail | BT5: Detail | BU5: Detail | BV5: Detail | BW5: Detail | BX5: Detail | BY5: Detail | BZ5: Detail | CA5: Detail | CB5: Detail | CC5: Detail | CE5: Detail | CI5: Detail | CJ5: Detail | CK5: Detail | CL5: Detail | CM5: Detail | CN5: Detail | CO5: Detail | CP5: Detail | CQ5: Detail | CR5: Detail | CU5: NoPrint | CV5: NoPrint | CW5: Audit Detail | CX5: Detail | DB5: Detail | DC5: Detail | DD5: Detail | DE5: Detail | DF5: Detail | DG5: Detail | DH5: Detail | DJ5: NoPrint | DK5: NoPrint | DL5: NoPrint | DM5: Audit Detail | DN5: Audit Detail | DO5: Audit Detail
BF7: =IF(ISNA(MATCH("Already Used",OFFSET(BG14,0,0,COUNTA($B:$B)-COUNTA($B$1:$B$13)),0)),"","Duplicate Treatment for at least one deficiency") ->  | BR7: =IF(ISNA(MATCH("Already Used",OFFSET(BS14,0,0,COUNTA($B:$B)-COUNTA($B$1:$B$13)),0)),"","Duplicate Treatment for at least one deficiency") -> 
B8: Displaying Detailed Layout | G8: Show me Deficiency Types | P8: =IF(MAX($O:$O)>1,"There is at least one possible duplicate site","") ->  | S8: Show me the Source Table | V8: Show me the "Default" date for start of Crash records | AC8: Show me the Likelihood Table | AG8: Show me the Consequence Table | AJ8: Show me the Risk Matrix | AT8: Show me the Treatment Table | AW8: Show me the Work Categories | BD8: Show me the CCI Table | BF8: Show me the Treatment Table | BI8: Show me the Work Categories | BP8: Show me the CCI Table | BR8: Show me the Treatment Table | BU8: Show me the Work Categories | CB8: Show me the CCI Table | CG8: =IF(ISNA(VLOOKUP("You have not chosen a valid option",$CI:$CI,1,FALSE)),"","You MUST update your options") -> 
B9: This Defieicency | D9: =B9 -> This Defieicency | E9: =D9 -> This Defieicency | H9: =E9 -> This Defieicency | J9: =H9 -> This Defieicency | L9: =J9 -> This Defieicency | R9: =L9 -> This Defieicency | T9: =L9 -> This Defieicency | AC9: This Defieicency | AF9: =AC9 -> This Defieicency | AH9: =AF9 -> This Defieicency | AL9: =AH9 -> This Defieicency | AN9: =AL9 -> This Defieicency | AQ9: =AN9 -> This Defieicency | AS9: =AQ9 -> This Defieicency | AT9: Treatment Option 1 | AW9: =AT9 -> Treatment Option 1 | AY9: =AW9 -> Treatment Option 1 | BB9: =AY9 -> Treatment Option 1 | BD9: =BB9 -> Treatment Option 1 | BF9: Treatment Option 2 | BI9: =BF9 -> Treatment Option 2 | BK9: =BI9 -> Treatment Option 2 | BN9: =BK9 -> Treatment Option 2 | BP9: =BN9 -> Treatment Option 2 | BR9: Treatment Option 3 | BU9: =BR9 -> Treatment Option 3 | BW9: =BU9 -> Treatment Option 3 | BZ9: =BW9 -> Treatment Option 3 | CB9: =BZ9 -> Treatment Option 3 | CD9: Recommended Treatment | CF9: =IF(ISNA(VLOOKUP(CE9,TreatmentTable,11,FALSE)),"",IF(VLOOKUP(CE9,TreatmentTable,4,FALSE)>0,(1-VLOOKUP(CE9,TreatmentTable,4,FALSE))*AI9,VLOOKUP(CE9,TreatmentTable,11,FALSE))) ->  | CG9: Chosen Option | CJ9: =CG9 -> Chosen Option | CM9: =CJ9 -> Chosen Option | CN9: =CM9 -> Chosen Option | CP9: =CN9 -> Chosen Option | CT9: =CP9 -> Chosen Option | CU9: =CG9 -> Chosen Option | CX9: =CT9 -> Chosen Option | CZ9: =CG9 -> Chosen Option | DE9: =CG9 -> Chosen Option | DI9: =CG9 -> Chosen Option | DJ9: Completion | DM9: =DJ9 -> Completion | DN9: Changes
B11: Deficiency_ID | C11: RAMM_Rd_ID | D11: RAMM_RD_Name | E11: Dfcy_Type | F11: Dfcy_Treatable | G11: Type_of_Deficiency | H11: Dfcy_Type_ID | I11: Deficeny_Type_Explanation | J11: Dfcy_Describe | K11: Dfcy_LocationDescribe | L11: Dfcy_RP_Start | M11: Dfcy_RP_End | N11: Dfcy_Side | O11: Dfcy_DuplicateCheck | P11: Dfcy_DuplicateMsg | R11: Dfcy_OpSpeed | S11: Source_Description | T11: Dfcy_Source | U11: Dfcy_AADT | V11: Dfcy_Crash_Start | W11: Dfcy_Crash_Fatal | X11: Dfcy_Crash_Serious | Y11: Dfcy_Crash_Minor | Z11: Dfcy_Crash_Non | AA11: Dfcy_Crash_Total | AB11: Dfcy_Crash_Rate | AC11: Likelihood_Name | AD11: Dfcy_Likelihood | AE11: Likelihood_Description | AF11: Dfcy_Consequence | AG11: Consequence_Name | AH11: Consequence_Description | AI11: Total_Risk | AJ11: Risk_Description | AK11: Dfcy_MoreData | AL11: More_Data_Who | AM11: Dfcy_MoreData_What | AN11: Dfcy_MoreDate_When | AO11: Dfcy_Approved_By | AP11: Dfcy_Input_Links | AQ11: Dfcy_Comment | AR11: Dfcy_Recorded_By | AS11: Dfcy_Recorded_On | AT11: TR1_Nickname | AU11: Dfcy_Treatment1 | AV11: Tr1_Description | AW11: Dfcy_Tr1_WorkCategory | AX11: Tr1_Work_Cat_Name | AY11: Dfcy_Tr1_Cost | AZ11: Dfcy_Tr1_EstLink | BA11: Dfcy_Tr1_Status | BB11: Dfcy_Tr1_CostedBy | BC11: Dfcy_Tr1_CostedOn | BD11: Dfcy_TR1_CCI | BE11: DfcyTr1_WhoDevelCost | BF11: TR2_Nickname | BG11: Dfcy_Treatment1 | BH11: TR2_Description | BI11: Dfcy_Tr2_WorkCategory | BJ11: Tr2_Work_Cat_Name | BK11: Dfcy_Tr2_Cost | BL11: Dfcy_Tr2_EstLink | BM11: Dfcy_Tr2_Status | BN11: Dfcy_Tr2_CostedBy | BO11: Dfcy_Tr2_CostedOn | BP11: Dfcy_Tr2_CCI | BQ11: DfcyTr2_WhoDevelCost | BR11: TR3_Nickname | BS11: Dfcy_Treatment1 | BT11: Tr3_Description | BU11: Dfcy_Tr3_WorkCategory | BV11: Tr3_Work_Cat_Name | BW11: Dfcy_Tr3_Cost | BX11: Dfcy_Tr3_EstLink | BY11: Dfcy_Tr3_Status | BZ11: Dfcy_Tr3_CostedBy | CA11: Dfcy_Tr3_CostedOn | CB11: Dfcy_Tr3_CCI | CC11: DfcyTr3_WhoDevelCost | CD11: Dfcy_Recommended | CE11: Recom_Opt | CF11: Recom_Risk | CG11: Choice_Descr | CH11: Choice_Reason | CI11: Choice_Nickname | CJ11: Choice_Cost | CK11: Choice_CCI | CL11: Choice_RiskAfter | CM11: Updated_Choice_Cost | CN11: Risk_Reduc | CO11: Choice_%_$k | CP11: Choice_Cost_vehicleyear | CQ11: Intermed_Rank | CR11: Choice_WkCat | CS11: WkCat_Chosen | CT11: Overall_Rank | CU11: Chosen_Rank | CV11: Change_Reason | CW11: Change_by | CX11: Temp_Pri | CY11: New Pri | CZ11: Completed_Reason | DA11: ActionRequired | DB11: Choice_DecimalPri | DC11: Choice_WksCat.Pri | DD11: Choice_RankInWkCat.Pri | DE11: Choice_WksCat.RankInCat | DF11: Choice_RankInWkCat-1 | DG11: Choice_WksCat.(RankInCat-1) | DH11: Choice_EarliestYr | DI11: Dfcy_Programmed Year | DJ11: Problem_Resolved | DK11: Dfcy_Work-Completed_On | DL11: Dfcy_Final Cost | DM11: Dfcy_Record of Completion Entered By | DN11: Dfcy_Last Changed_ By | DO11: Dfcy_Last Changed_On | DQ11: Do NOT delete these columns —> | DR11: Tr 1 | DU11: Tr 2 | DX11: Tr 3 | EA11: Risk reduction | ED11: Risk reduction #/$k | EG11: Cost/Veh over 1yr | EJ11: Intermediate / Cumulative Ranking | EM11: Option Number | EP11: Nick Name | ES11: <— Do NOT delete these columns
B12: Place Your Sheet Title Here! - Change this text as required
A13: HeaderRow | B13: Deficiency_ID | C13: RAMM ID | D13: Road Name | E13: Hazard or Safety Deficiency? | F13: Treatable? | G13: Deficiency Type | H13: Deficiency Type ID | I13: Deficiency Description | J13: Narative description of the problem | K13: Short description of its location | L13: RAMM RP Start | M13: RAMM RP End | N13: "Side of the Road" (RAMM) | O13: Duplicate Check | P13: Duplicate Site? | Q13: Accept Duplicate | R13: Traffic operating Speed | S13: Who / What first identified the site? | T13: The Source of the initial of Initial Information (Code) | U13: Current Traffic Volume | V13: Crashes Recorded Since: | W13: Total Fatal Crashes | X13: Total Serious Crashes | Y13: Total Minor Crashes | Z13: Total Non-injury Crashes | AA13: Total All Crashes | AB13: Crash Rate | AC13: Likelihood of a crash now | AD13: Likelihood Code | AE13: Likelihood Description | AF13: Consequence_Code | AG13: Consequence of that crash now | AH13: Consequence Description | AI13: Risk | AJ13: Risk Description | AK13: Is more data required? | AL13: Who is responsible for collecting it? | AM13: What is that data? | AN13: When is it required by? | AO13: Who approved that deficiency is entered in to the database. | AP13: Links to other data | AQ13: Any additional comments | AR13: Who recorded the deficiency in the first place | AS13: When was it recorded? | AT13: Treatment Option 1 Nickname | AU13: Treatment Option 1 ID | AV13: Treatment Option 1 Name | AW13: Work category for this option | AX13: Work Category Name | AY13: Estimated cost of Treatment Option 1 | AZ13: Links to Estimate Data | BA13: Status of this cost? Its accuracy? | BB13: Estimate prepared by? | BC13: Estimate Date | BD13: Cost Index at this date | BE13: Who is to develop the estimates further? | BF13: Treatment Option 2 Nickname | BG13: Treatment Option 2 ID | BH13: Treatment Option 2 Name | BI13: Work category for this option | BJ13: Work Category Name | BK13: Estimated cost of Treatment Option2 | BL13: Links to Estimate Data | BM13: Status of this cost? Its accuracy? | BN13: Estimate prepared by? | BO13: Estimate Date | BP13: Cost Index at this date | BQ13: Who is to develop the estimates further? | BR13: Treatment Option 3 Nickname | BS13: Treatment Option 3 ID | BT13: Treatment Option 3 Name | BU13: Work category for this option | BV13: Work Category Name | BW13: Estimated cost of Treatment Option 3 | BX13: Links to Estimate Data | BY13: Status of this cost? Its accuracy? | BZ13: Estimate prepared by? | CA13: Estimate Date | CB13: Cost Index at this date | CC13: Who is to develop the estimates further? | CD13: Recommended option based on your weightings. (All other factors being equal the project with the lowest post-construction risk is recommended) | CE13: Recommeded Treatment Option | CF13: Post Recommeded-Treatment Risk | CG13: Chosen Option for treating this site | CH13: Reason for Changing the Recommendation | CI13: Nickname of Chosen Solution | CJ13: Chosen Solution Cost | CK13: Chosen Solution CCI | CL13: Risk After Implementing Chosen Option | CM13: Updated Chosen Cost | CN13: Risk Reduction | CO13: Risk Reduction (# / $k) | CP13: Cost / vehicle over 1 year | CQ13: Intermediate Rank Score | CR13: Work Cat of Choice | CS13: Work Category of Chosen Option | CT13: Recommended Overall Ranking | CU13: Move to be Rank: | CV13: Stated Reason for Change | CW13: Change made by | CX13: Interim Priority | CY13: Allocated Ranking | CZ13: Reason for Change | DA13: Action to be taken | DB13: Priority as a decimal | DC13: WksCat.Pri | DD13: Rank in Wks Cat | DE13: WksCat.RankInCat | DF13: Next Highest Rank in Wks Cat | DG13: WksCat.(RankInCat-1) | DH13: Earliest Available Programme Year | DI13: Year work is programmed | DJ13: Is work complete? Deficiency resolved? | DK13: When was the work completed? | DL13: What was the final Cost | DM13: Who entered the record of completion | DN13: Who last changed any data? | DO13: When was it changed? | DQ13: Do NOT delete these columns —> | DR13: =DR11&" Updated Cost" -> Tr 1 Updated Cost | DS13: ="Post Treat "&DR11&" Risk" -> Post Treat Tr 1 Risk | DT13: =DR11&" rank among options" -> Tr 1 rank among options | DU13: =DU11&" Updated Cost" -> Tr 2 Updated Cost | DV13: ="Post Treat "&DU11&" Risk" -> Post Treat Tr 2 Risk | DW13: =DU11&" rank among options" -> Tr 2 rank among options | DX13: =DX11&" Updated Cost" -> Tr 3 Updated Cost | DY13: ="Post Treat "&DX11&" Risk" -> Post Treat Tr 3 Risk | DZ13: =DX11&" rank among options" -> Tr 3 rank among options | EA13: Tr 1 | EB13: Tr 2 | EC13: Tr 3 | ED13: Tr 1 | EE13: Tr 2 | EF13: Tr 3 | EG13: Tr 1 | EH13: Tr 2 | EI13: Cost / vehicle over 1 year | EJ13: Tr 1 | EK13: Tr 2 | EL13: Tr 3 | EM13: Tr 1 | EN13: Tr 2 | EO13: Tr 3 | EP13: Tr 1 | EQ13: Tr 2 | ER13: Tr 3 | ES13: <— Do NOT delete these columns
A14: Do not delete this row | B14: 1 | C14: =IF(ISBLANK(D14),"",VLOOKUP(UPPER(D14),RoadNamesTable!$B$6:OFFSET(RoadNamesTable!$B$6,COUNTA(RoadNamesTable!$E:$E),1),2,FALSE)) -> 31 | D14: Highcliff Rd | E14: Hazard | F14: No | G14: Inadequate width | H14: =IF(ISBLANK(G14),"",VLOOKUP(G14,Deficiency_Types!$C$4:OFFSET(Deficiency_Types!$C$4,COUNTA(Deficiency_Types!$C:$C),3),4,FALSE)) -> 27 | I14: =IF(H14="","",VLOOKUP(H14,Dfcy_Table,4,FALSE)) -> Insufficient space for vehicles travelling in opposite directions to pass | J14: Narrow cutting <5m high in clay | K14: 2.5km E of Seaton Rd | L14: 11966 | M14: =L14+250 -> 12216 | N14: Centre | O14: =IF(LEFT(Q14,6)="Accept",1,SUM(IF(OFFSET($C$13,1,0,CountRows,1)=C14,IF(OFFSET($L$13,1,0,CountRows,1)>=L14-Tol_Dup,IF(OFFSET($M$13,1,0,CountRows,1)<=M14+Tol_Dup,1,0))))) -> 1 | P14: =IF(O14>1,"Posssible Duplicate Site","") ->  | R14: 30 | S14: Coroner / Courts | T14: =IF(S14="","",VLOOKUP(S14,Source_Table,2,FALSE)) -> 17 | U14: 100 | V14: 1996-01-01 | Y14: 2 | AA14: =IF(ISBLANK(D14),"",SUM(W14:Z14)) -> 2 | AB14: =IF(U14=0,"",AA14/(U14*(TODAY()-V14))) -> 3.875968992e-06 | AD14: =IF(AC14="","",VLOOKUP(AC14,Likelihood!$B$4:$F$8,5,FALSE)) ->  | AE14: =IF(AD14="","",VLOOKUP(AD14,Likelihood!$A$4:$C$8,3,FALSE)) ->  | AF14: =IF(AG14="","",VLOOKUP(AG14,Consequence!$B$4:$F$8,5,FALSE)) ->  | AH14: =IF(AF14="","",VLOOKUP(AF14,Consequence!$A$4:$C$8,3,FALSE)) ->  | AI14: =IF(OR(AD14="",AF14=""),"",VLOOKUP(AD14,Likelihood!$A$4:$D$8,4,FALSE)*VLOOKUP(AF14,Consequence!$A$4:$D$8,4,FALSE)) ->  | AJ14: =IF(AI14="","",VLOOKUP(AI14,Risk!$A$5:$B$8,2,TRUE)) ->  | AK14: Yes | AL14: Yvonne | AM14: Check crash data | AN14: 2007-09-30 | AO14: MG | AR14: WG | AS14: 2007-06-01 | AU14: =IF(ISBLANK(AT14),"",VLOOKUP(AT14,TreatmentTable_2,11,FALSE)) ->  | AV14: =IF(ISBLANK(AT14),"",VLOOKUP(AU14,TreatmentTable,2,FALSE)&". Risk after treatment: "&IF(ISBLANK(VLOOKUP(AU14,TreatmentTable,4,FALSE))=FALSE,TEXT(VLOOKUP(AU14,TreatmentTable,4,FALSE),"##0%")&" Reduction",VLOOKUP(AU14,TreatmentTable,12,FALSE))&". Cost ; "&TEXT(AY14,"$#,##0")) ->  | AX14: =IF(ISBLANK(AW14),"",VLOOKUP(AW14,WorkCatTable,2,FALSE)) ->  | BD14: =IF(ISBLANK(BC14),"",VLOOKUP(BC14,CCI_Table,CCI_Use,TRUE)) ->  | BG14: =(IF(ISBLANK(BF14),"",IF($BF14=$AT14,"Already Used",VLOOKUP(BF14,TreatmentTable_2,11,FALSE)))) ->  | BH14: =IF(ISBLANK(BF14),"",IF(BF14=AT14,"This treatment has already been used for this deficiency",VLOOKUP(BG14,TreatmentTable,2,FALSE)&CHAR(10)&"Risk after treatment: "&IF(ISBLANK(VLOOKUP(BG14,TreatmentTable,4,FALSE))=FALSE,TEXT(VLOOKUP(BG14,TreatmentTable,4,FALSE),"##0%")&" reduction",VLOOKUP(BG14,TreatmentTable,12,FALSE))&CHAR(10)&"Cost: "&TEXT(BK14,"$#,##0"))) ->  | BJ14: =IF(ISBLANK(BI14),"",VLOOKUP(BI14,WorkCatTable,2,FALSE)) ->  | BP14: =IF(ISBLANK(BO14),"",VLOOKUP(BO14,CCI_Table,CCI_Use,TRUE)) ->  | BS14: =(IF(ISBLANK(BR14),"",IF(OR($BR14=$AT14,$BR14=$BF14),"Already Used",VLOOKUP(BR14,TreatmentTable_2,11,FALSE)))) ->  | BT14: =IF(ISBLANK(BR14),"",IF(OR($BR14=$AT14,$BR14=$BF14),"This treatment has already been used for this deficiency",VLOOKUP(BS14,TreatmentTable,2,FALSE)&CHAR(10)&"Risk after treatment: "&IF(ISBLANK(VLOOKUP(BS14,TreatmentTable,4,FALSE))=FALSE,TEXT(VLOOKUP(BS14,TreatmentTable,4,FALSE),"##0%")&" reduction",VLOOKUP(BS14,TreatmentTable,12,FALSE))&CHAR(10)&"Cost: "&TEXT(BW14,"$#,##0"))) ->  | BV14: =IF(ISBLANK(BU14),"",VLOOKUP(BU14,WorkCatTable,2,FALSE)) ->  | CB14: =IF(ISBLANK(CA14),"",VLOOKUP(CA14,CCI_Table,CCI_Use,TRUE)) ->  | CD14: =IF(DT14=1,EP14,IF(DW14=1,EQ14,ER14)) ->  | CE14: =IF(DT14=1,AU14,IF(DW14=1,BG14,IF(DZ14=1,BS14,""))) ->  | CF14: =IF($CD14="","",IF($CE14=AU14,DS14,IF($CE14=BG14,DV14,IF($CE14=BS14,DY14,"")))) ->  | CG14: =CD14 ->  | CI14: =IF(CG14="","",IF($CG14=$AV14,AT14,IF($CG14=$BH14,BF14,IF($CG14=$BT14,BR14,"You have not chosen a valid option")))) ->  | CJ14: =IF($CI14="","",IF($CI14=AT14,AY14,IF($CI14=BF14,BK14,IF($CI14=BR14,BW14,"")))) ->  | CK14: =IF($CI14="","",IF($CI14=AT14,BD14,IF($CI14=BF14,BP14,IF($CI14=BR14,CB14,"")))) ->  | CL14: =IF($CG14="","",IF($CI14=AT14,DS14,IF($CI14=BF14,DV14,IF($CI14=BR14,DY14,"")))) ->  | CM14: =IF(CG14="","",IF(CG14="Update your chosen option","Update your chosen option",IF(CI14=AT14,DR14,IF(CI14=BF14,DU14,DX14)))) ->  | CN14: =IF(CE14="","",IF(AI14="","",AI14-CL14)) ->  | CO14: =IF(CI14="","", IF(CI14=AT14,ED14,IF(CI14=BF14,EE14,EF14))) ->  | CP14: =IF(OR(CG14="",CI14="Update your chosen option"),"",CM14/(U14*365)) ->  | CQ14: =IF(OR(D14="",E14=Hazard,B14="",DJ14="Yes",CI14="Accept"),"", WtPcent*RANK(CN14,Risk_Reduction)+ WtPcentDol*RANK(CO14,Risk_Reductionpcdol)+WtVehYr*RANK(CP14,Cost_Vehicle,1)-1/(C14+L14*10^-(INT(LOG10(MAX(L:L)))+2))) ->  | CR14: =IF($CI14="","",IF($CI14=$AT14,$AW14,IF($CI14=$BF14,$BI14,IF($CI14=$BR14,$BU14)))) ->  | CS14: =IF(ISNA(VLOOKUP(CR14,WorkCatTable,2,FALSE)),"",CR14&", "&VLOOKUP(CR14,WorkCatTable,2,FALSE)) ->  | CT14: =IF(DJ14="Yes","Complete",IF(OR(ISBLANK(CG14),CQ14="", CI14="Update your chosen option"),"",RANK(CQ14,CumulativeRank,1))) ->  | CX14: =IF(OR(CT14="",CT14="Complete"),"",IF(ISBLANK(AT14),"",IF(CU14=0,CT14+MAX(CT:CT)*10^-(INT(LOG10(MAX(CT:CT)))+1),CU14+CT14*10^-(INT(LOG10(MAX(CT:CT)))+2)))) ->  | CY14: =IF(DJ14="Yes","Complete",IF(CX14="","",RANK(CX14,$CX:$CX,-1))) ->  | CZ14: =IF(CY14="Complete","Complete",IF(CY14=CT14,"",IF(CU14>0,IF(CY14=CU14,CV14,CV14&" and as a consequence of other changes"),"As a consequence of other changes"))) ->  | DB14: =IF(OR(CY14="Complete",CY14=""),"",CY14*10^-(INT(LOG10(MAX(CY:CY)))+1)) ->  | DC14: =IF(OR(CY14="Complete",CY14=""),"",CR14+DB14) ->  | DD14: =IF(OR(CY14="Complete",CY14=""),"",RANK(DC14,DC:DC,-1)) ->  | DE14: =IF(OR(CY14="Complete",CY14=""),"",CR14+DD14*10^-(INT(LOG10(MAX(CY:CY)))+1)) ->  | DF14: =IF(OR(CY14="Complete",CY14=""),"",DD14-1) ->  | DG14: =IF(OR(CY14="Complete",CY14=""),"",CR14+DF14*10^-(INT(LOG10(MAX(CY:CY)))+1)) ->  | DH14: =IF(OR($E14=Hazard,$CY14="Complete",CR14=""),"",IF(ISNA(VLOOKUP(DG14,Earliest_Yr,5,FALSE)),YEAR(NOW())+1,MAX(YEAR(NOW())+1,VLOOKUP(DG14,Earliest_Yr,5,FALSE)))) ->  | DR14: =IF(OR(ISBLANK($D14),$E14=Hazard),"",IF(OR($AT14=0,$AT14="Accept"),0,AY14*VLOOKUP(TODAY(),CCI_Table,CCI_Use,TRUE)/BD14)) ->  | DS14: =IF(ISNA(VLOOKUP(AU14,TreatmentTable,11,FALSE)),"-",IF(VLOOKUP(AU14,TreatmentTable,4,FALSE)>0,(1-VLOOKUP(AU14,TreatmentTable,4,FALSE))*$AI14,VLOOKUP(AU14,TreatmentTable,11,FALSE))) -> - | DT14: =IF(OR(ISBLANK($D14),$E14=Hazard,ISBLANK(AT14)),"",RANK(EJ14,$EJ14:$EL14,1)) ->  | DU14: =IF(OR(ISBLANK($D14),$E14=Hazard),"",IF(OR($BF14="",$BF14="Accept"),0,BK14*VLOOKUP(TODAY(),CCI_Table,CCI_Use,TRUE)/BP14)) ->  | DV14: =IF(ISNA(VLOOKUP(BG14,TreatmentTable,11,FALSE)),"-",IF(VLOOKUP(BG14,TreatmentTable,4,FALSE)>0,(1-VLOOKUP(BG14,TreatmentTable,4,FALSE))*$AI14,VLOOKUP(BG14,TreatmentTable,11,FALSE))) -> - | DW14: =IF(OR(ISBLANK($D14),$E14=Hazard,ISBLANK(BF14)),"",RANK(EK14,$EJ14:$EL14,1)) ->  | DX14: =IF(OR(ISBLANK($D14),$E14=Hazard),"",IF(OR($BR14="",$BR14="Accept"),0,BW14*VLOOKUP(TODAY(),CCI_Table,CCI_Use,TRUE)/CB14)) ->  | DY14: =IF(ISNA(VLOOKUP(BS14,TreatmentTable,11,FALSE)),"-",IF(VLOOKUP(BS14,TreatmentTable,4,FALSE)>0,(1-VLOOKUP(BS14,TreatmentTable,4,FALSE))*$AI14,VLOOKUP(BS14,TreatmentTable,11,FALSE))) -> - | DZ14: =IF(OR(ISBLANK($D14),$E14=Hazard,ISBLANK(BR14)),"",RANK(EL14,$EJ14:$EL14,1)) ->  | EA14: =IF(OR(ISBLANK($D14),$E14=Hazard),"",IF(DS14="-",0,IF($AI14="","",$AI14-DS14))) ->  | EB14: =IF(OR(ISBLANK($D14),$E14=Hazard),"",IF(DV14="-",0,IF($AI14="","",$AI14-DV14))) ->  | EC14: =IF(OR(ISBLANK($D14),$E14=Hazard),"",IF(DY14="-",0,IF($AI14="","",$AI14-DY14))) ->  | ED14: =IF(OR(ISBLANK($D14),$E14=Hazard,DR14=""),"",IF(DR14=0,0,EA14/(DR14/1000))) ->  | EE14: =IF(OR(ISBLANK($D14),$E14=Hazard,DU14=""),"",IF(DU14=0,0,EB14/(DU14/1000))) ->  | EF14: =IF(OR(ISBLANK($D14),$E14=Hazard,DX14=""),"",IF(DX14=0,0,EC14/(DX14/1000))) ->  | EG14: =IF(OR(ISBLANK($D14),$E14=Hazard,ISBLANK(DR14),$U14=0),"",DR14/($U14*365)) ->  | EH14: =IF(OR(ISBLANK($D14),$E14=Hazard,ISBLANK(DR14),$U14=0),"",DU14/($U14*365)) ->  | EI14: =IF(OR(ISBLANK($D14),$E14=Hazard,ISBLANK(DR14),$U14=0),"",DX14/($U14*365)) ->  | EJ14: =IF(OR(ISBLANK($D14),$E14=Hazard,ISBLANK(AT14)),"",WtPcent*RANK(EA14,$EA14:$EC14)+WtPcentDol*RANK(ED14,$ED14:$EF14)+WtVehYr*RANK(EG14,$EG14:$EI14,1)-1/DS14) ->  | EK14: =IF(OR(ISBLANK($D14),$E14=Hazard,ISBLANK(BF14)),"",WtPcent*RANK(EB14,$EA14:$EC14)+WtPcentDol*RANK(EE14,$ED14:$EF14)+WtVehYr*RANK(EH14,$EG14:$EI14,1)-1/DV14) ->  | EL14: =IF(OR(ISBLANK($D14),$E14=Hazard,ISBLANK(BR14)),"",WtPcent*RANK(EC14,$EA14:$EC14)+WtPcentDol*RANK(EF14,$ED14:$EF14)+WtVehYr*RANK(EI14,$EG14:$EI14,1)-1/DY14) ->  | EM14: =AU14 ->  | EN14: =BG14 ->  | EO14: =BS14 ->  | EP14: =AV14 ->  | EQ14: =BH14 ->  | ER14: =BT14 -> 
B15: 2 | C15: =IF(ISBLANK(D15),"",VLOOKUP(UPPER(D15),RoadNamesTable!$B$6:OFFSET(RoadNamesTable!$B$6,COUNTA(RoadNamesTable!$E:$E),1),2,FALSE)) -> 31 | D15: Highcliff Rd | E15: Deficiency | F15: Yes | G15: Horizontal Geometry | H15: =IF(ISBLANK(G15),"",VLOOKUP(G15,Deficiency_Types!$C$4:OFFSET(Deficiency_Types!$C$4,COUNTA(Deficiency_Types!$C:$C),3),4,FALSE)) -> 3 | I15: Poor horizontal geometry that can be fixed, e.g. excessively sharp bend at end of a long straight | J15: Sharp RH bend and drop affecting west-bound traffic | K15: 4.2km w of Hilton Rd | L15: 6575 | M15: =L15+175 -> 6750 | N15: Right | O15: =IF(LEFT(Q15,6)="Accept",1,SUM(IF(OFFSET($C$13,1,0,CountRows,1)=C15,IF(OFFSET($L$13,1,0,CountRows,1)>=L15-Tol_Dup,IF(OFFSET($M$13,1,0,CountRows,1)<=M15+Tol_Dup,1,0))))) -> 1 | R15: 45 | S15: Network knowledge | T15: 18 | U15: 250 | V15: 1996-01-01 | AA15: 0 | AB15: 0 | AC15: Possible | AD15: =IF(AC15="","",VLOOKUP(AC15,Likelihood!$B$4:$F$8,5,FALSE)) -> C | AE15: =IF(AD15="","",VLOOKUP(AD15,Likelihood!$A$4:$C$8,3,FALSE)) -> Crashes occur more than 1-5 times in past 5 years. 1 - 5 crashes possible in next 5 years | AF15: =IF(AG15="","",VLOOKUP(AG15,Consequence!$B$4:$F$8,5,FALSE)) -> c | AG15: Moderate | AH15: =IF(AF15="","",VLOOKUP(AF15,Consequence!$A$4:$C$8,3,FALSE)) -> Could possibly cause a fatality. Serious safety impact on small number or minor impact on large number of people. | AI15: =IF(OR(AD15="",AF15=""),"",VLOOKUP(AD15,Likelihood!$A$4:$D$8,4,FALSE)*VLOOKUP(AF15,Consequence!$A$4:$D$8,4,FALSE)) -> 64 | AJ15: =IF(AI15="","",VLOOKUP(AI15,Risk!$A$5:$B$8,2,TRUE)) -> Moderate | AK15: Yes | AL15: Fred | AM15: Check for fences off-boundary lines | AN15: 2007-09-30 | AO15: MG | AR15: WG | AS15: 2007-06-01 | AT15: Safety Rail Low | AU15: =(IF(ISBLANK(AT15),"",VLOOKUP(AT15,TreatmentTable_2,11,FALSE)))*1 -> 5 | AV15: Install guardrail / wire-rope barrier above moderate to low drop. Risk after treatment: 80% Reduction. Cost ; $130,000 | AW15: 341 | AX15: Minor Improvements | AY15: 130000 | BA15: Budgetary | BB15: IK | BC15: 2006-11-01 | BD15: 1350 | BE15: KS | BF15: Signs | BG15: 2 | BH15: Erect appropriate signs Risk after treatment: 10% reduction Cost: $300 | BI15: 323 | BJ15: New Roads and Structures | BK15: 300 | BM15: Guess | BN15: KA | BO15: 2006-10-01 | BP15: 1350 | BR15: PW25 | BS15: 27 | BT15: Signs — advisory ; Advisory speed signs — all environments Risk after treatment: 25% reduction Cost: $500 | BU15: 122 | BV15: Traffic Services Maintenance | BW15: 500 | BY15: Tendered Price | BZ15: IK | CA15: 2004-10-01 | CB15: 1203 | CD15: Signs — advisory ; Advisory speed signs — all environments Risk after treatment: 25% reduction Cost: $500 | CE15: 27 | CF15: 48 | CG15: Erect appropriate signs Risk after treatment: 10% reduction Cost: $300 | CI15: Signs | CJ15: 300 | CK15: 1350 | CL15: 57.6 | CM15: 330.2222222 | CN15: 6.4 | CO15: 19.38088829 | CP15: 0.003618873668 | CQ15: =IF(OR(D15="",E15=Hazard,B15="",DJ15="Yes",CI15="Accept"),"", WtPcent*RANK(CN15,Risk_Reduction)+ WtPcentDol*RANK(CO15,Risk_Reductionpcdol)+WtVehYr*RANK(CP15,Cost_Vehicle,1)-1/(C15+L15*10^-(INT(LOG10(MAX(L:L)))+2))) -> 6.967748776 | CR15: 323 | CS15: 323, New Roads and Structures | CT15: 2 | CX15: 2.5 | CY15: 3 | CZ15: As a consequence of other changes | DB15: 0.3 | DC15: 323.3 | DD15: 3 | DE15: 323.3 | DF15: 2 | DG15: 323.2 | DH15: 2011 | DJ15: No | DR15: 143096.2963 | DS15: 12.8 | DT15: 3 | DU15: 330.2222222 | DV15: 57.6 | DW15: 2 | DX15: 617.6226101 | DY15: 48 | DZ15: 1 | EA15: 51.2 | EB15: 6.4 | EC15: 16 | ED15: 0.3578010146 | EE15: 19.38088829 | EF15: 25.90578735 | EG15: 1.56817859 | EH15: 0.003618873668 | EI15: 0.00676846696 | EJ15: 6.921875 | EK15: 5.982638889 | EL15: 4.979166667 | EM15: 5 | EN15: 2 | EO15: 27 | EP15: Install guardrail / wire-rope barrier above moderate to low drop. Risk after treatment: 80% Reduction. Cost ; $130,000 | EQ15: Erect appropriate signs Risk after treatment: 10% reduction Cost: $300 | ER15: Signs — advisory ; Advisory speed signs — all environments Risk after treatment: 25% reduction Cost: $500
B16: 3 | C16: =IF(ISBLANK(D16),"",VLOOKUP(UPPER(D16),RoadNamesTable!$B$6:OFFSET(RoadNamesTable!$B$6,COUNTA(RoadNamesTable!$E:$E),1),2,FALSE)) -> 31 | D16: Highcliff Rd | E16: Deficiency | F16: Yes | G16: Drop | H16: =IF(ISBLANK(G16),"",VLOOKUP(G16,Deficiency_Types!$C$4:OFFSET(Deficiency_Types!$C$4,COUNTA(Deficiency_Types!$C:$C),3),4,FALSE)) -> 23 | I16: Unprotected drop that can be economically protected | J16: Sharp RH bend and steep drop affecting west-bound traffic | K16: 450 w Hilton Rd | L16: 2825 | M16: =L16+60 -> 2885 | N16: Left | O16: =IF(LEFT(Q16,6)="Accept",1,SUM(IF(OFFSET($C$13,1,0,CountRows,1)=C16,IF(OFFSET($L$13,1,0,CountRows,1)>=L16-Tol_Dup,IF(OFFSET($M$13,1,0,CountRows,1)<=M16+Tol_Dup,1,0))))) -> 1 | R16: 70 | S16: Network knowledge | T16: 18 | U16: 250 | V16: 1996-01-01 | AA16: 0 | AB16: 0 | AC16: Unlikely | AD16: =IF(AC16="","",VLOOKUP(AC16,Likelihood!$B$4:$F$8,5,FALSE)) -> B | AE16: =IF(AD16="","",VLOOKUP(AD16,Likelihood!$A$4:$C$8,3,FALSE)) -> There have been crashes in the last 10 years but not in the last 5. A crash may occur in the next 10 yrs | AF16: =IF(AG16="","",VLOOKUP(AG16,Consequence!$B$4:$F$8,5,FALSE)) -> d | AG16: Major | AH16: =IF(AF16="","",VLOOKUP(AF16,Consequence!$A$4:$C$8,3,FALSE)) -> Likely to cause a fatality or several fatalities, extensive injuries or significant safety impacts | AI16: =IF(OR(AD16="",AF16=""),"",VLOOKUP(AD16,Likelihood!$A$4:$D$8,4,FALSE)*VLOOKUP(AF16,Consequence!$A$4:$D$8,4,FALSE)) -> 128 | AJ16: =IF(AI16="","",VLOOKUP(AI16,Risk!$A$5:$B$8,2,TRUE)) -> High | AK16: No | AO16: MG | AR16: WG | AS16: 2007-06-01 | AT16: Safety Rail High | AU16: =(IF(ISBLANK(AT16),"",VLOOKUP(AT16,TreatmentTable_2,11,FALSE)))*1 -> 4 | AV16: Install guardrail / wire-rope barrier above steep high drop. Risk after treatment: 80% Reduction. Cost ; $160,000 | AW16: 323 | AX16: New Roads and Structures | AY16: 160000 | BA16: Tendered Price | BB16: IK | BC16: 2005-03-01 | BD16: 1216 | BE16: KA | BF16: Signs | BG16: 2 | BH16: Erect appropriate signs Risk after treatment: 10% reduction Cost: $500 | BI16: 122 | BJ16: Traffic Services Maintenance | BK16: 500 | BM16: Tendered Price | BN16: KA | BO16: 2006-10-01 | BP16: 1350 | CD16: Erect appropriate signs Risk after treatment: 10% reduction Cost: $500 | CE16: 2 | CF16: 115.2 | CG16: Install guardrail / wire-rope barrier above steep high drop. Risk after treatment: 80% Reduction. Cost ; $160,000 | CI16: Safety Rail High | CJ16: 160000 | CK16: 1216 | CL16: 25.6 | CM16: 195526.3158 | CN16: 102.4 | CO16: 0.5237146703 | CP16: 2.142754146 | CQ16: =IF(OR(D16="",E16=Hazard,B16="",DJ16="Yes",CI16="Accept"),"", WtPcent*RANK(CN16,Risk_Reduction)+ WtPcentDol*RANK(CO16,Risk_Reductionpcdol)+WtVehYr*RANK(CP16,Cost_Vehicle,1)-1/(C16+L16*10^-(INT(LOG10(MAX(L:L)))+2))) -> 10.96774487 | CR16: 323 | CS16: 323, New Roads and Structures | CT16: 4 | CX16: 4.5 | CY16: 5 | CZ16: As a consequence of other changes | DB16: 0.5 | DC16: 323.5 | DD16: 4 | DE16: 323.4 | DF16: 3 | DG16: 323.3 | DH16: 2011 | DJ16: No | DR16: 195526.3158 | DS16: 25.6 | DT16: 2 | DU16: 550.3703704 | DV16: 115.2 | DW16: 1 | DX16: 0 | DY16: - | EA16: 102.4 | EB16: 12.8 | EC16: 0 | ED16: 0.5237146703 | EE16: 23.25706595 | EF16: 0 | EG16: 2.142754146 | EH16: 0.006031456114 | EI16: 0 | EJ16: 5.9609375 | EK16: 4.991319444 | EM16: 4 | EN16: 2 | EP16: Install guardrail / wire-rope barrier above steep high drop. Risk after treatment: 80% Reduction. Cost ; $160,000 | EQ16: Erect appropriate signs Risk after treatment: 10% reduction Cost: $500
B17: 4 | C17: =IF(ISBLANK(D17),"",VLOOKUP(UPPER(D17),RoadNamesTable!$B$6:OFFSET(RoadNamesTable!$B$6,COUNTA(RoadNamesTable!$E:$E),1),2,FALSE)) -> 675 | D17: Railway Road [Urban] | E17: Deficiency | F17: Yes | G17: Other | H17: =IF(ISBLANK(G17),"",VLOOKUP(G17,Deficiency_Types!$C$4:OFFSET(Deficiency_Types!$C$4,COUNTA(Deficiency_Types!$C:$C),3),4,FALSE)) -> 20 | I17: Please specify | J17: Unclear direction of turning traffic leeaving roundabout for edwards st | K17: int Railway / Edwards / Hobson | L17: 230 | M17: =L17 -> 230 | N17: Right | O17: =IF(LEFT(Q17,6)="Accept",1,SUM(IF(OFFSET($C$13,1,0,CountRows,1)=C17,IF(OFFSET($L$13,1,0,CountRows,1)>=L17-Tol_Dup,IF(OFFSET($M$13,1,0,CountRows,1)<=M17+Tol_Dup,1,0))))) -> 1 | R17: 90 | S17: Other Analysis | T17: 5 | U17: 3300 | V17: 1996-01-01 | AA17: 0 | AB17: 0 | AC17: Almost Certain | AD17: =IF(AC17="","",VLOOKUP(AC17,Likelihood!$B$4:$F$8,5,FALSE)) -> E | AE17: =IF(AD17="","",VLOOKUP(AD17,Likelihood!$A$4:$C$8,3,FALSE)) -> Crashes occur more than 3 times per annum. Frequent crashes (>3) likely each year | AF17: =IF(AG17="","",VLOOKUP(AG17,Consequence!$B$4:$F$8,5,FALSE)) -> b | AG17: Minor | AH17: =IF(AF17="","",VLOOKUP(AF17,Consequence!$A$4:$C$8,3,FALSE)) -> Could cause serious injury. Minor safety impact on small number of people | AI17: =IF(OR(AD17="",AF17=""),"",VLOOKUP(AD17,Likelihood!$A$4:$D$8,4,FALSE)*VLOOKUP(AF17,Consequence!$A$4:$D$8,4,FALSE)) -> 128 | AJ17: =IF(AI17="","",VLOOKUP(AI17,Risk!$A$5:$B$8,2,TRUE)) -> High | AK17: No | AO17: MG | AR17: PP | AS17: 2007-06-01 | AT17: Accept | AU17: =(IF(ISBLANK(AT17),"",VLOOKUP(AT17,TreatmentTable_2,11,FALSE)))*1 -> 1 | AV17: Accept risk, do nothing, continue to monitor and maintain current measures. Risk after treatment: 0% Reduction. Cost ; $0 | BF17: Split | BG17: 6 | BH17: Splitter Island - all environments Risk after treatment: 40% reduction Cost: $100,000 | BI17: 341 | BJ17: Minor Improvements | BK17: 100000 | BM17: Preliminary Design | BN17: IK | BO17: 2006-10-01 | BP17: 1350 | CD17: Splitter Island - all environments Risk after treatment: 40% reduction Cost: $100,000 | CE17: 6 | CF17: 76.8 | CG17: Splitter Island - all environments Risk after treatment: 40% reduction Cost: $100,000 | CI17: Split | CJ17: 100000 | CK17: 1350 | CL17: 76.8 | CM17: 110074.0741 | CN17: 51.2 | CO17: 0.465141319 | CP17: 0.09138569869 | CQ17: =IF(OR(D17="",E17=Hazard,B17="",DJ17="Yes",CI17="Accept"),"", WtPcent*RANK(CN17,Risk_Reduction)+ WtPcentDol*RANK(CO17,Risk_Reductionpcdol)+WtVehYr*RANK(CP17,Cost_Vehicle,1)-1/(C17+L17*10^-(INT(LOG10(MAX(L:L)))+2))) -> 11.99851852 | CR17: 341 | CS17: 341, Minor Improvements | CT17: 5 | CU17: 2 | CV17: Demo | CX17: 2.05 | CY17: 2 | CZ17: Demo | DB17: 0.2 | DC17: 341.2 | DD17: 5 | DE17: 341.5 | DF17: 4 | DG17: 341.4 | DH17: 2011 | DJ17: No | DR17: 0 | DS17: 127.9872 | DT17: 2 | DU17: 110074.0741 | DV17: 76.8 | DW17: 1 | DX17: 0 | DY17: - | EA17: 0.0128 | EB17: 51.2 | EC17: 0 | ED17: 0 | EE17: 0.465141319 | EF17: 0 | EG17: 0 | EH17: 0.09138569869 | EI17: 0 | EJ17: 4.992186719 | EK17: 4.986979167 | EM17: 1 | EN17: 6 | EP17: Accept risk, do nothing, continue to monitor and maintain current measures. Risk after treatment: 0% Reduction. Cost ; $0 | EQ17: Splitter Island - all environments Risk after treatment: 40% reduction Cost: $100,000
B18: 5 | C18: =IF(ISBLANK(D18),"",VLOOKUP(UPPER(D18),RoadNamesTable!$B$6:OFFSET(RoadNamesTable!$B$6,COUNTA(RoadNamesTable!$E:$E),1),2,FALSE)) -> 1 | D18: Tangimoana Road | E18: Deficiency | F18: Yes | G18: Narrow Bridge | H18: =IF(ISBLANK(G18),"",VLOOKUP(G18,Deficiency_Types!$C$4:OFFSET(Deficiency_Types!$C$4,COUNTA(Deficiency_Types!$C:$C),3),4,FALSE)) -> 21 | I18: Bridge significantly less than target width for either single lane or two-way bridges, as applicable | J18: Narrow bridge (2.5lanes between concrete wing walls) in dip and shortly before / after bend with restricted visibility | K18: 600 w of Campbells Rd | L18: 600 | M18: =L18+10 -> 610 | N18: Centre | O18: =IF(LEFT(Q18,6)="Accept",1,SUM(IF(OFFSET($C$13,1,0,CountRows,1)=C18,IF(OFFSET($L$13,1,0,CountRows,1)>=L18-Tol_Dup,IF(OFFSET($M$13,1,0,CountRows,1)<=M18+Tol_Dup,1,0))))) -> 1 | R18: 90 | S18: CAS Analysis | T18: 4 | U18: 239 | V18: 1996-01-01 | W18: 1 | AA18: 1 | AB18: 8.108721741e-07 | AC18: Almost Certain | AD18: =IF(AC18="","",VLOOKUP(AC18,Likelihood!$B$4:$F$8,5,FALSE)) -> E | AE18: =IF(AD18="","",VLOOKUP(AD18,Likelihood!$A$4:$C$8,3,FALSE)) -> Crashes occur more than 3 times per annum. Frequent crashes (>3) likely each year | AF18: =IF(AG18="","",VLOOKUP(AG18,Consequence!$B$4:$F$8,5,FALSE)) -> e | AG18: Severe | AH18: =IF(AF18="","",VLOOKUP(AF18,Consequence!$A$4:$C$8,3,FALSE)) -> Will cause multiple fatalities. Widespread safety impacts | AI18: =IF(OR(AD18="",AF18=""),"",VLOOKUP(AD18,Likelihood!$A$4:$D$8,4,FALSE)*VLOOKUP(AF18,Consequence!$A$4:$D$8,4,FALSE)) -> 2048 | AJ18: =IF(AI18="","",VLOOKUP(AI18,Risk!$A$5:$B$8,2,TRUE)) -> Extreme | AK18: Yes | AL18: GJS | AM18: Update costs | AN18: ASAP | AO18: MG | AR18: PP | AS18: 2007-06-01 | AT18: Widen 2 | AU18: =(IF(ISBLANK(AT18),"",VLOOKUP(AT18,TreatmentTable_2,11,FALSE)))*1 -> 65 | AV18: Widen bridge and approaches. Risk after treatment: Low. Cost ; $100,000 | AW18: 323 | AX18: New Roads and Structures | AY18: 100000 | BA18: Budgetary | BB18: GJS | BC18: 2006-12-18 | BD18: 1350 | BE18: IK | BF18: Signs | BG18: 2 | BH18: Erect appropriate signs Risk after treatment: 10% reduction Cost: $300 | BI18: 122 | BJ18: Traffic Services Maintenance | BK18: 300 | BM18: Guess | BN18: GJS | BO18: 2006-08-15 | BP18: 1319 | BR18: PW44 | BS18: 30 | BT18: Signs — advisory ; Bridge warning signs — all environments Risk after treatment: 30% reduction Cost: $500 | BU18: 341 | BV18: Minor Improvements | BW18: 500 | BY18: Guess | BZ18: GJS | CA18: 2003-10-01 | CB18: 1116 | CD18: Signs — advisory ; Bridge warning signs — all environments Risk after treatment: 30% reduction Cost: $500 | CE18: 30 | CF18: 1433.6 | CG18: Erect appropriate signs Risk after treatment: 10% reduction Cost: $300 | CI18: Signs | CJ18: 300 | CK18: 1319 | CL18: 1843.2 | CM18: 337.9833207 | CN18: 204.8 | CO18: 605.9470615 | CP18: 0.003874400421 | CQ18: =IF(OR(D18="",E18=Hazard,B18="",DJ18="Yes",CI18="Accept"),"", WtPcent*RANK(CN18,Risk_Reduction)+ WtPcentDol*RANK(CO18,Risk_Reductionpcdol)+WtVehYr*RANK(CP18,Cost_Vehicle,1)-1/(C18+L18*10^-(INT(LOG10(MAX(L:L)))+2))) -> 3.00059964 | CR18: 122 | CS18: 122, Traffic Services Maintenance | CT18: 1 | CX18: 1.5 | CY18: 1 | DB18: 0.1 | DC18: 122.1 | DD18: 1 | DE18: 122.1 | DF18: 0 | DG18: 122 | DH18: 2011 | DJ18: No | DR18: 110074.0741 | DS18: 4 | DT18: 3 | DU18: 337.9833207 | DV18: 1843.2 | DW18: 2 | DX18: 665.7706093 | DY18: 1433.6 | DZ18: 1 | EA18: 2044 | EB18: 204.8 | EC18: 614.4 | ED18: 18.56931359 | EE18: 605.9470615 | EF18: 922.8403769 | EG18: 1.261810902 | EH18: 0.003874400421 | EI18: 0.007631920781 | EJ18: 6.75 | EK18: 5.999457465 | EL18: 4.999302455 | EM18: 65 | EN18: 2 | EO18: 30 | EP18: Widen bridge and approaches. Risk after treatment: Low. Cost ; $100,000 | EQ18: Erect appropriate signs Risk after treatment: 10% reduction Cost: $300 | ER18: Signs — advisory ; Bridge warning signs — all environments Risk after treatment: 30% reduction Cost: $500
B19: 6 | C19: =IF(ISBLANK(D19),"",VLOOKUP(UPPER(D19),RoadNamesTable!$B$6:OFFSET(RoadNamesTable!$B$6,COUNTA(RoadNamesTable!$E:$E),1),2,FALSE)) -> 2 | D19: FAGAN ROAD | E19: Deficiency | F19: Yes | G19: Ambiguous Bridge | H19: =IF(ISBLANK(G19),"",VLOOKUP(G19,Deficiency_Types!$C$4:OFFSET(Deficiency_Types!$C$4,COUNTA(Deficiency_Types!$C:$C),3),4,FALSE)) -> 22 | I19: Bridge too narrow for two-way traffic but never-the-less being used / able to be used as two-way | J19: qwerty | K19: yhgf | L19: 123 | M19: 456 | N19: Both | O19: =IF(LEFT(Q19,6)="Accept",1,SUM(IF(OFFSET($C$13,1,0,CountRows,1)=C19,IF(OFFSET($L$13,1,0,CountRows,1)>=L19-Tol_Dup,IF(OFFSET($M$13,1,0,CountRows,1)<=M19+Tol_Dup,1,0))))) -> 1 | R19: 100 | S19: Safety Audit | T19: 13 | U19: 123 | AA19: 0 | AB19: 0 | AC19: Possible | AD19: =IF(AC19="","",VLOOKUP(AC19,Likelihood!$B$4:$F$8,5,FALSE)) -> C | AE19: =IF(AD19="","",VLOOKUP(AD19,Likelihood!$A$4:$C$8,3,FALSE)) -> Crashes occur more than 1-5 times in past 5 years. 1 - 5 crashes possible in next 5 years | AF19: =IF(AG19="","",VLOOKUP(AG19,Consequence!$B$4:$F$8,5,FALSE)) -> c | AG19: Moderate | AH19: =IF(AF19="","",VLOOKUP(AF19,Consequence!$A$4:$C$8,3,FALSE)) -> Could possibly cause a fatality. Serious safety impact on small number or minor impact on large number of people. | AI19: =IF(OR(AD19="",AF19=""),"",VLOOKUP(AD19,Likelihood!$A$4:$D$8,4,FALSE)*VLOOKUP(AF19,Consequence!$A$4:$D$8,4,FALSE)) -> 64 | AJ19: =IF(AI19="","",VLOOKUP(AI19,Risk!$A$5:$B$8,2,TRUE)) -> Moderate | AK19: Yes | AS19: 2007-01-27 | AT19: Manage | AU19: =IF(ISBLANK(AT19),"",VLOOKUP(AT19,TreatmentTable_2,11,FALSE)) -> 3 | AV19: Manage Hazard through use of warning signs etc. Risk after treatment: 10% Reduction. Cost ; $1,000 | AW19: 321 | AX19: Traffic management | AY19: 1000 | BA19: Guess | BB19: GJS | BC19: 2007-07-27 | BD19: 1382 | BO19: 2008-12-18 | BP19: 1485 | CD19: Manage Hazard through use of warning signs etc. Risk after treatment: 10% Reduction. Cost ; $1,000 | CE19: 3 | CF19: 57.6 | CG19: =CD19 -> Manage Hazard through use of warning signs etc. Risk after treatment: 10% Reduction. Cost ; $1,000 | CI19: Manage | CJ19: 1000 | CK19: 1382 | CL19: 57.6 | CM19: 1075.253256 | CN19: 6.4 | CO19: 5.952086137 | CP19: 0.02395040107 | CQ19: =IF(OR(D19="",E19=Hazard,B19="",DJ19="Yes",CI19="Accept"),"", WtPcent*RANK(CN19,Risk_Reduction)+ WtPcentDol*RANK(CO19,Risk_Reductionpcdol)+WtVehYr*RANK(CP19,Cost_Vehicle,1)-1/(C19+L19*10^-(INT(LOG10(MAX(L:L)))+2))) -> 9.500030748 | CR19: 321 | CS19: 321, Traffic management | CT19: 3 | CX19: 3.5 | CY19: 4 | CZ19: As a consequence of other changes | DB19: 0.4 | DC19: 321.4 | DD19: 2 | DE19: 321.2 | DF19: 1 | DG19: 321.1 | DH19: 2011 | DR19: 1075.253256 | DS19: 57.6 | DT19: 1 | DU19: 0 | DV19: - | DX19: 0 | DY19: - | EA19: 6.4 | EB19: 0 | EC19: 0 | ED19: 5.952086137 | EE19: 0 | EF19: 0 | EG19: 0.02395040107 | EH19: 0 | EI19: 0 | EJ19: 4.982638889 | EM19: 3 | EP19: Manage Hazard through use of warning signs etc. Risk after treatment: 10% Reduction. Cost ; $1,000
BF22: =BF18>"" -> TRUE
CZ32: ``

Sheet Info
A1: Deficiency Database and Prioritization Process Spreadsheet
A3: Instructions, Hints and Useful Information
B7: Pink Cells must have data in them. Some of these may also have pull-downs
B9: Light Yellow Cells may have data
B11: Do Not write below the Red Lines
B14: Do NOT write in the grey cells.
B16: Do Not write in Green Cells
B18: You select your Chosen option in the Tan Cell by using the pull-down
B20: Sky Blue Cells in the Treatments Table indicate the data in that row comes from Austroads March 2007 data
A22: Warnings! | B22: There are a number of error-checking routines that produce warnings in Red cells with yellow text. They should be self-explanatory
A24: Cautions! | B24: There is a duplicate-checking routine, that looks for duplicated sites. While these are permitted they may be accidental and a warning is produced
A26: PullDowns | B26: Data "pulldowns" are at the bottom right of the active cell - do not confuse them with the auto filter pull-downs in row 12.
A28: Copying data | B28: Drag and Drop is disabled in this spreadsheet. To avoid scrolling through the pull-down lists after adding data to one of the "Lookup Tabs", either Right Click>Copy then go to the destination and Right Click>Paste or Edit>Copy then go to the destination and Edit>Paste or Ctrl-C then go to the destination and Ctrl V
A30: Navigate / Go Back | B30: If you wish to return from a tabbed sheet to the one from which you came just click the tab of that sheet. Alternatively, to get a navigation bar with "back arrows" activate the Web toolbar at Tools>Customise>Toolbars and "ticking" the box next to "Web"
A32: Duplicate Sites | B32: The Duplicate site test works on start and end RPs. If two start distances on a road are within the "Tolerance" [see Lookups] the one with the "shortest" end distance will show as a duplicate site. A similar effect occurs with the end distances
B33: If both start and end distances are within tolerances at start and end then both sites will show as duplicates
A35: Project Ranking | B35: Projects are ranked by the values of the chosen option. In version 1 the Risk component of this analysis was based on the values of the Recommended Option.
A37: Earliest Programme Year | B37: This is calculated from the ranking of the project. IT HAS NO "BUDGETARY" INTELLIGENCE. It is the year that a higher priority project in the same work category is "Programmed", and has been included to assist in programming interventions in the order of their prioritization within work categories. The first available programme year is always "next year"
A39: Work Category Sorting | B39: Work Categories can be sorted alphabetically id required. There is an "Original Order" column to allow them to be restored to their "default" order if required.
A41: CCI | B41: CCIs are updated, in the version 2 update, to June 2007 quarter.
B42: There is a "new" column in the CCI table, against each index, this may periodically contain an "R" indicating that a base index from which it was derived was revised since during the preceding quarter by the Dept of Statistics. There were some of these variations in the March Quarter by they were locked in by the June quarter and hence are not flagged in this update.

Sheet User_Output
A1: User Output Sheet | AL1: =DD_Main!DI14 -> 0
B2: Rows may be sorted or hidden
B4: =DD_Main!B13 -> Deficiency_ID | C4: =DD_Main!D13 -> Road Name | D4: =DD_Main!E13 -> Hazard or Safety Deficiency? | E4: =DD_Main!G13 -> Deficiency Type | F4: =DD_Main!I13 -> Deficiency Description | G4: =DD_Main!I13 -> Deficiency Description | H4: =DD_Main!K13 -> Short description of its location | I4: =DD_Main!L13 -> RAMM RP Start | J4: =DD_Main!M13 -> RAMM RP End | K4: =DD_Main!N13 -> "Side of the Road" (RAMM) | L4: =DD_Main!R13 -> Traffic operating Speed | M4: =DD_Main!S13 -> Who / What first identified the site? | N4: =DD_Main!U13 -> Current Traffic Volume | O4: =DD_Main!V13 -> Crashes Recorded Since: | P4: =DD_Main!W13 -> Total Fatal Crashes | Q4: =DD_Main!X13 -> Total Serious Crashes | R4: =DD_Main!Y13 -> Total Minor Crashes | S4: =DD_Main!Z13 -> Total Non-injury Crashes | T4: =DD_Main!AA13 -> Total All Crashes | U4: =DD_Main!AB13 -> Crash Rate | V4: =DD_Main!AC13 -> Likelihood of a crash now | W4: =DD_Main!AE13 -> Likelihood Description | X4: =DD_Main!AG13 -> Consequence of that crash now | Y4: =DD_Main!AH13 -> Consequence Description | Z4: =DD_Main!AJ13 -> Risk Description | AA4: =DD_Main!CI13 -> Nickname of Chosen Solution | AB4: =DD_Main!CG13 -> Chosen Option for treating this site | AC4: =DD_Main!CM13 -> Updated Chosen Cost | AD4: =DD_Main!CF13 -> Post Recommeded-Treatment Risk | AE4: =DD_Main!CN13 -> Risk Reduction | AF4: =DD_Main!CO13 -> Risk Reduction (# / $k) | AG4: =DD_Main!CP13 -> Cost / vehicle over 1 year | AH4: =DD_Main!CT13 -> Recommended Overall Ranking | AI4: =DD_Main!CY13 -> Allocated Ranking | AJ4: =DD_Main!CZ13 -> Reason for Change | AK4: =DD_Main!CW13 -> Change made by | AL4: =DD_Main!DI13 -> Year work is programmed | AM4: =DD_Main!DJ13 -> Is work complete? Deficiency resolved?
B5: =DD_Main!B14 -> 1 | C5: =PROPER(DD_Main!D14) -> Highcliff Rd | D5: =DD_Main!E14 -> Hazard | E5: =DD_Main!G14 -> Inadequate width | F5: =DD_Main!I14 -> Insufficient space for vehicles travelling in opposite directions to pass | G5: =DD_Main!I14 -> Insufficient space for vehicles travelling in opposite directions to pass | H5: =DD_Main!K14 -> 2.5km E of Seaton Rd | I5: =DD_Main!L14 -> 11966 | K5: =DD_Main!N14 -> Centre | L5: =DD_Main!R14 -> 30 | M5: =DD_Main!S14 -> Coroner / Courts | N5: =DD_Main!U14 -> 100 | O5: =DD_Main!V14 -> 1996-01-01 | P5: =DD_Main!W14 -> 0 | Q5: =DD_Main!X14 -> 0 | R5: =DD_Main!Y14 -> 2 | S5: =DD_Main!Z14 -> 0 | T5: =DD_Main!AA14 -> 2 | U5: =DD_Main!AB14 -> 3.875968992e-06 | V5: =DD_Main!AC14 -> 0 | W5: =DD_Main!AE14 ->  | X5: =DD_Main!AG14 -> 0 | Y5: =DD_Main!AH14 ->  | Z5: =DD_Main!AJ14 ->  | AA5: =DD_Main!CI14 ->  | AB5: =DD_Main!CG14 ->  | AC5: =DD_Main!CM14 ->  | AD5: =DD_Main!CF14 ->  | AE5: =DD_Main!CN14 ->  | AF5: =DD_Main!CO14 ->  | AG5: =DD_Main!CP14 ->  | AH5: =DD_Main!CT14 ->  | AI5: =DD_Main!CY14 ->  | AJ5: =DD_Main!CZ14 ->  | AK5: =DD_Main!CW14 -> 0 | AL5: =DD_Main!DI14 -> 0 | AM5: =DD_Main!DJ14 -> 0
B6: =DD_Main!B15 -> 2 | C6: =PROPER(DD_Main!D15) -> Highcliff Rd | D6: =DD_Main!E15 -> Deficiency | E6: =DD_Main!G15 -> Horizontal Geometry | F6: =DD_Main!I15 -> Poor horizontal geometry that can be fixed, e.g. excessively sharp bend at end of a long straight | G6: =DD_Main!I15 -> Poor horizontal geometry that can be fixed, e.g. excessively sharp bend at end of a long straight | H6: =DD_Main!K15 -> 4.2km w of Hilton Rd | I6: =DD_Main!L15 -> 6575 | K6: =DD_Main!N15 -> Right | L6: =DD_Main!R15 -> 45 | M6: =DD_Main!S15 -> Network knowledge | N6: =DD_Main!U15 -> 250 | O6: =DD_Main!V15 -> 1996-01-01 | P6: =DD_Main!W15 -> 0 | Q6: =DD_Main!X15 -> 0 | R6: =DD_Main!Y15 -> 0 | S6: =DD_Main!Z15 -> 0 | T6: =DD_Main!AA15 -> 0 | U6: =DD_Main!AB15 -> 0 | V6: =DD_Main!AC15 -> Possible | W6: =DD_Main!AE15 -> Crashes occur more than 1-5 times in past 5 years. 1 - 5 crashes possible in next 5 years | X6: =DD_Main!AG15 -> Moderate | Y6: =DD_Main!AH15 -> Could possibly cause a fatality. Serious safety impact on small number or minor impact on large number of people. | Z6: =DD_Main!AJ15 -> Moderate | AA6: =DD_Main!CI15 -> Signs | AB6: =DD_Main!CG15 -> Erect appropriate signs Risk after treatment: 10% reduction Cost: $300 | AC6: =DD_Main!CM15 -> 330.2222222 | AD6: =DD_Main!CF15 -> 48 | AE6: =DD_Main!CN15 -> 6.4 | AF6: =DD_Main!CO15 -> 19.38088829 | AG6: =DD_Main!CP15 -> 0.003618873668 | AH6: =DD_Main!CT15 -> 2 | AI6: =DD_Main!CY15 -> 3 | AJ6: =DD_Main!CZ15 -> As a consequence of other changes | AK6: =DD_Main!CW15 -> 0 | AL6: =DD_Main!DI15 -> 0 | AM6: =DD_Main!DJ15 -> No
B7: =DD_Main!B16 -> 3 | C7: =PROPER(DD_Main!D16) -> Highcliff Rd | D7: =DD_Main!E16 -> Deficiency | E7: =DD_Main!G16 -> Drop | F7: =DD_Main!I16 -> Unprotected drop that can be economically protected | G7: =DD_Main!I16 -> Unprotected drop that can be economically protected | H7: =DD_Main!K16 -> 450 w Hilton Rd | I7: =DD_Main!L16 -> 2825 | K7: =DD_Main!N16 -> Left | L7: =DD_Main!R16 -> 70 | M7: =DD_Main!S16 -> Network knowledge | N7: =DD_Main!U16 -> 250 | O7: =DD_Main!V16 -> 1996-01-01 | P7: =DD_Main!W16 -> 0 | Q7: =DD_Main!X16 -> 0 | R7: =DD_Main!Y16 -> 0 | S7: =DD_Main!Z16 -> 0 | T7: =DD_Main!AA16 -> 0 | U7: =DD_Main!AB16 -> 0 | V7: =DD_Main!AC16 -> Unlikely | W7: =DD_Main!AE16 -> There have been crashes in the last 10 years but not in the last 5. A crash may occur in the next 10 yrs | X7: =DD_Main!AG16 -> Major | Y7: =DD_Main!AH16 -> Likely to cause a fatality or several fatalities, extensive injuries or significant safety impacts | Z7: =DD_Main!AJ16 -> High | AA7: =DD_Main!CI16 -> Safety Rail High | AB7: =DD_Main!CG16 -> Install guardrail / wire-rope barrier above steep high drop. Risk after treatment: 80% Reduction. Cost ; $160,000 | AC7: =DD_Main!CM16 -> 195526.3158 | AD7: =DD_Main!CF16 -> 115.2 | AE7: =DD_Main!CN16 -> 102.4 | AF7: =DD_Main!CO16 -> 0.5237146703 | AG7: =DD_Main!CP16 -> 2.142754146 | AH7: =DD_Main!CT16 -> 4 | AI7: =DD_Main!CY16 -> 5 | AJ7: =DD_Main!CZ16 -> As a consequence of other changes | AK7: =DD_Main!CW16 -> 0 | AL7: =DD_Main!DI16 -> 0 | AM7: =DD_Main!DJ16 -> No
B8: =DD_Main!B17 -> 4 | C8: =PROPER(DD_Main!D17) -> Railway Road [Urban] | D8: =DD_Main!E17 -> Deficiency | E8: =DD_Main!G17 -> Other | F8: =DD_Main!I17 -> Please specify | G8: =DD_Main!I17 -> Please specify | H8: =DD_Main!K17 -> int Railway / Edwards / Hobson | I8: =DD_Main!L17 -> 230 | K8: =DD_Main!N17 -> Right | L8: =DD_Main!R17 -> 90 | M8: =DD_Main!S17 -> Other Analysis | N8: =DD_Main!U17 -> 3300 | O8: =DD_Main!V17 -> 1996-01-01 | P8: =DD_Main!W17 -> 0 | Q8: =DD_Main!X17 -> 0 | R8: =DD_Main!Y17 -> 0 | S8: =DD_Main!Z17 -> 0 | T8: =DD_Main!AA17 -> 0 | U8: =DD_Main!AB17 -> 0 | V8: =DD_Main!AC17 -> Almost Certain | W8: =DD_Main!AE17 -> Crashes occur more than 3 times per annum. Frequent crashes (>3) likely each year | X8: =DD_Main!AG17 -> Minor | Y8: =DD_Main!AH17 -> Could cause serious injury. Minor safety impact on small number of people | Z8: =DD_Main!AJ17 -> High | AA8: =DD_Main!CI17 -> Split | AB8: =DD_Main!CG17 -> Splitter Island - all environments Risk after treatment: 40% reduction Cost: $100,000 | AC8: =DD_Main!CM17 -> 110074.0741 | AD8: =DD_Main!CF17 -> 76.8 | AE8: =DD_Main!CN17 -> 51.2 | AF8: =DD_Main!CO17 -> 0.465141319 | AG8: =DD_Main!CP17 -> 0.09138569869 | AH8: =DD_Main!CT17 -> 5 | AI8: =DD_Main!CY17 -> 2 | AJ8: =DD_Main!CZ17 -> Demo | AK8: =DD_Main!CW17 -> 0 | AL8: =DD_Main!DI17 -> 0 | AM8: =DD_Main!DJ17 -> No
B9: =DD_Main!B18 -> 5 | C9: =PROPER(DD_Main!D18) -> Tangimoana Road | D9: =DD_Main!E18 -> Deficiency | E9: =DD_Main!G18 -> Narrow Bridge | F9: =DD_Main!I18 -> Bridge significantly less than target width for either single lane or two-way bridges, as applicable | G9: =DD_Main!I18 -> Bridge significantly less than target width for either single lane or two-way bridges, as applicable | H9: =DD_Main!K18 -> 600 w of Campbells Rd | I9: =DD_Main!L18 -> 600 | K9: =DD_Main!N18 -> Centre | L9: =DD_Main!R18 -> 90 | M9: =DD_Main!S18 -> CAS Analysis | N9: =DD_Main!U18 -> 239 | O9: =DD_Main!V18 -> 1996-01-01 | P9: =DD_Main!W18 -> 1 | Q9: =DD_Main!X18 -> 0 | R9: =DD_Main!Y18 -> 0 | S9: =DD_Main!Z18 -> 0 | T9: =DD_Main!AA18 -> 1 | U9: =DD_Main!AB18 -> 8.108721741e-07 | V9: =DD_Main!AC18 -> Almost Certain | W9: =DD_Main!AE18 -> Crashes occur more than 3 times per annum. Frequent crashes (>3) likely each year | X9: =DD_Main!AG18 -> Severe | Y9: =DD_Main!AH18 -> Will cause multiple fatalities. Widespread safety impacts | Z9: =DD_Main!AJ18 -> Extreme | AA9: =DD_Main!CI18 -> Signs | AB9: =DD_Main!CG18 -> Erect appropriate signs Risk after treatment: 10% reduction Cost: $300 | AC9: =DD_Main!CM18 -> 337.9833207 | AD9: =DD_Main!CF18 -> 1433.6 | AE9: =DD_Main!CN18 -> 204.8 | AF9: =DD_Main!CO18 -> 605.9470615 | AG9: =DD_Main!CP18 -> 0.003874400421 | AH9: =DD_Main!CT18 -> 1 | AI9: =DD_Main!CY18 -> 1 | AJ9: =DD_Main!CZ18 ->  | AK9: =DD_Main!CW18 -> 0 | AL9: =DD_Main!DI18 -> 0 | AM9: =DD_Main!DJ18 -> No
B10: =DD_Main!B19 -> 6 | C10: =PROPER(DD_Main!D19) -> Fagan Road | D10: =DD_Main!E19 -> Deficiency | E10: =DD_Main!G19 -> Ambiguous Bridge | F10: =DD_Main!I19 -> Bridge too narrow for two-way traffic but never-the-less being used / able to be used as two-way | G10: =DD_Main!I19 -> Bridge too narrow for two-way traffic but never-the-less being used / able to be used as two-way | H10: =DD_Main!K19 -> yhgf | I10: =DD_Main!L19 -> 123 | K10: =DD_Main!N19 -> Both | L10: =DD_Main!R19 -> 100 | M10: =DD_Main!S19 -> Safety Audit | N10: =DD_Main!U19 -> 123 | O10: =DD_Main!V19 -> 00:00:00 | P10: =DD_Main!W19 -> 0 | Q10: =DD_Main!X19 -> 0 | R10: =DD_Main!Y19 -> 0 | S10: =DD_Main!Z19 -> 0 | T10: =DD_Main!AA19 -> 0 | U10: =DD_Main!AB19 -> 0 | V10: =DD_Main!AC19 -> Possible | W10: =DD_Main!AE19 -> Crashes occur more than 1-5 times in past 5 years. 1 - 5 crashes possible in next 5 years | X10: =DD_Main!AG19 -> Moderate | Y10: =DD_Main!AH19 -> Could possibly cause a fatality. Serious safety impact on small number or minor impact on large number of people. | Z10: =DD_Main!AJ19 -> Moderate | AA10: =DD_Main!CI19 -> Manage | AB10: =DD_Main!CG19 -> Manage Hazard through use of warning signs etc. Risk after treatment: 10% Reduction. Cost ; $1,000 | AC10: =DD_Main!CM19 -> 1075.253256 | AD10: =DD_Main!CF19 -> 57.6 | AE10: =DD_Main!CN19 -> 6.4 | AF10: =DD_Main!CO19 -> 5.952086137 | AG10: =DD_Main!CP19 -> 0.02395040107 | AH10: =DD_Main!CT19 -> 3 | AI10: =DD_Main!CY19 -> 4 | AJ10: =DD_Main!CZ19 -> As a consequence of other changes | AK10: =DD_Main!CW19 -> 0 | AL10: =DD_Main!DI19 -> 0 | AM10: =DD_Main!DJ19 -> 0

Sheet RoadNamesTable
D1: Paste a Copy of RAMM Rd Names Table in the unshaded area.
D2: Delete any blank row between the RAMM Road Names Header and the first row of data
D3: Copy the last row in the grey area to the bottom of your road names information, or delete grey rows as appropriate
D4: It is important that Road ID and Road Name are in Columns D and E
A6: Copy1_Rd_ID | B6: Copy_Rd_Name | C6: Copy2_Rd_ID | D6: Road ID | E6: RAMM Name | F6: Suburb | G6: Town | H6: Postal Code | I6: External Name | J6: External ID | K6: Region | L6: Council | M6: Road Type
A7: =IF(ISBLANK(D7),0,D7) -> 1 | B7: =E7 -> TANGIMOANA ROAD | C7: =A7 -> 1 | D7: 1 | E7: TANGIMOANA ROAD
A8: 2 | B8: FAGAN ROAD | C8: 2 | D8: 2 | E8: FAGAN ROAD
A9: 3 | B9: SPEEDY ROAD | C9: 3 | D9: 3 | E9: SPEEDY ROAD
A10: 4 | B10: TAYLOR ROAD | C10: 4 | D10: 4 | E10: TAYLOR ROAD
A11: 5 | B11: POUTU ROAD | C11: 5 | D11: 5 | E11: POUTU ROAD
A12: 6 | B12: MCDONELL ROAD | C12: 6 | D12: 6 | E12: MCDONELL ROAD
A13: 7 | B13: SOLDIERS ROAD | C13: 7 | D13: 7 | E13: SOLDIERS ROAD
A14: 8 | B14: CAMPION ROAD | C14: 8 | D14: 8 | E14: CAMPION ROAD
A15: 9 | B15: ROSINA ROAD | C15: 9 | D15: 9 | E15: ROSINA ROAD
A16: 10 | B16: WHALE ROAD | C16: 10 | D16: 10 | E16: WHALE ROAD
A17: 11 | B17: OMANUKA ROAD | C17: 11 | D17: 11 | E17: OMANUKA ROAD
A18: 12 | B18: PUKEPUKE ROAD | C18: 12 | D18: 12 | E18: PUKEPUKE ROAD
A19: 13 | B19: LAKE ROAD | C19: 13 | D19: 13 | E19: LAKE ROAD
A20: 14 | B20: HIMATANGI BEACH ROAD | C20: 14 | D20: 14 | E20: HIMATANGI BEACH ROAD
A21: 15 | B21: PENNY ROAD | C21: 15 | D21: 15 | E21: PENNY ROAD
A22: 16 | B22: ROWE ROAD | C22: 16 | D22: 16 | E22: ROWE ROAD
A23: 17 | B23: TAIPO ROAD | C23: 17 | D23: 17 | E23: TAIPO ROAD
A24: 18 | B24: RONGOTEA ROAD | C24: 18 | D24: 18 | E24: RONGOTEA ROAD
A25: 19 | B25: HAMMOND ROAD | C25: 19 | D25: 19 | E25: HAMMOND ROAD
A26: 20 | B26: WAITOHI ROAD | C26: 20 | D26: 20 | E26: WAITOHI ROAD
A27: 21 | B27: FAIRFIELD ROAD | C27: 21 | D27: 21 | E27: FAIRFIELD ROAD
A28: 22 | B28: GREEN ROAD | C28: 22 | D28: 22 | E28: GREEN ROAD
A29: 23 | B29: RIVER ROAD | C29: 23 | D29: 23 | E29: RIVER ROAD
A30: 24 | B30: MILL ROAD | C30: 24 | D30: 24 | E30: MILL ROAD
A31: 25 | B31: KOPANE ROAD | C31: 25 | D31: 25 | E31: KOPANE ROAD
A32: 26 | B32: KAIMATARAU ROAD | C32: 26 | D32: 26 | E32: KAIMATARAU ROAD
A33: 27 | B33: MILNER ROAD | C33: 27 | D33: 27 | E33: MILNER ROAD
A34: 28 | B34: TAIKOREA ROAD | C34: 28 | D34: 28 | E34: TAIKOREA ROAD
A35: 29 | B35: DOWNS ROAD | C35: 29 | D35: 29 | E35: DOWNS ROAD
A36: 30 | B36: KELLOW ROAD | C36: 30 | D36: 30 | E36: KELLOW ROAD
A37: 31 | B37: Highcliff Rd | C37: 31 | D37: 31 | E37: Highcliff Rd
A38: 32 | B38: MANGAWHATA ROAD | C38: 32 | D38: 32 | E38: MANGAWHATA ROAD
A39: 33 | B39: BAINESSE ROAD | C39: 33 | D39: 33 | E39: BAINESSE ROAD
A40: 34 | B40: PYKE ROAD | C40: 34 | D40: 34 | E40: PYKE ROAD
A41: 35 | B41: COUPER ROAD | C41: 35 | D41: 35 | E41: COUPER ROAD
A42: 36 | B42: SAUNDERS ROAD | C42: 36 | D42: 36 | E42: SAUNDERS ROAD
A43: 37 | B43: LEEN ROAD | C43: 37 | D43: 37 | E43: LEEN ROAD
A44: 38 | B44: GREENAWAY ROAD | C44: 38 | D44: 38 | E44: GREENAWAY ROAD
A45: 39 | B45: PUAWAI ROAD | C45: 39 | D45: 39 | E45: PUAWAI ROAD
A46: 40 | B46: RAUPO ROAD | C46: 40 | D46: 40 | E46: RAUPO ROAD
A47: 41 | B47: DUNCAN ROAD | C47: 41 | D47: 41 | E47: DUNCAN ROAD
A48: 42 | B48: WILSON ROAD | C48: 42 | D48: 42 | E48: WILSON ROAD
A49: 43 | B49: WIGHTMAN ROAD | C49: 43 | D49: 43 | E49: WIGHTMAN ROAD
A50: 44 | B50: NGAIO ROAD | C50: 44 | D50: 44 | E50: NGAIO ROAD
A51: 45 | B51: CEMETERY ROAD [RURAL] | C51: 45 | D51: 45 | E51: CEMETERY ROAD [RURAL]
A52: 46 | B52: MT STEWART/HALCOMBE ROAD | C52: 46 | D52: 46 | E52: MT STEWART/HALCOMBE ROAD
A53: 47 | B53: SANDON ROAD | C53: 47 | D53: 47 | E53: SANDON ROAD
A54: 48 | B54: TE RAKEHOU ROAD | C54: 48 | D54: 48 | E54: TE RAKEHOU ROAD
A55: 49 | B55: LEES ROAD | C55: 49 | D55: 49 | E55: LEES ROAD
A56: 50 | B56: STEWART ROAD | C56: 50 | D56: 50 | E56: STEWART ROAD
A57: 51 | B57: RANFURLY ROAD | C57: 51 | D57: 51 | E57: RANFURLY ROAD
A58: 52 | B58: BONESS ROAD | C58: 52 | D58: 52 | E58: BONESS ROAD
A59: 53 | B59: MINGAROA ROAD | C59: 53 | D59: 53 | E59: MINGAROA ROAD
A60: 54 | B60: MT BIGGS ROAD | C60: 54 | D60: 54 | E60: MT BIGGS ROAD
A61: 55 | B61: FERGUSSON ROAD | C61: 55 | D61: 55 | E61: FERGUSSON ROAD
A62: 56 | B62: JAMES ROAD | C62: 56 | D62: 56 | E62: JAMES ROAD
A63: 57 | B63: MANAGHS ROAD | C63: 57 | D63: 57 | E63: MANAGHS ROAD
A64: 58 | B64: AWAHURI FEILDING ROAD | C64: 58 | D64: 58 | E64: AWAHURI FEILDING ROAD
A65: 59 | B65: KAWAKAWA ROAD | C65: 59 | D65: 59 | E65: KAWAKAWA ROAD
A66: 60 | B66: RONGOPAI ROAD | C66: 60 | D66: 60 | E66: RONGOPAI ROAD
A67: 61 | B67: DALTONS ROAD | C67: 61 | D67: 61 | E67: DALTONS ROAD
A68: 62 | B68: HANSENS LINE | C68: 62 | D68: 62 | E68: HANSENS LINE
A69: 63 | B69: MILSON LINE | C69: 63 | D69: 63 | E69: MILSON LINE
A70: 64 | B70: WESTELLA ROAD | C70: 64 | D70: 64 | E70: WESTELLA ROAD
A71: =IF(ISBLANK(D71),0,D71) -> 65 | B71: =E71 -> PINE ROAD | C71: =A71 -> 65 | D71: 65 | E71: PINE ROAD
A72: 66 | B72: WAUGHS ROAD | C72: 66 | D72: 66 | E72: WAUGHS ROAD
A73: 67 | B73: TE NGAIO ROAD | C73: 67 | D73: 67 | E73: TE NGAIO ROAD
A74: 68 | B74: EGGLETONS ROAD | C74: 68 | D74: 68 | E74: EGGLETONS ROAD
A75: 69 | B75: RUFFS ROAD | C75: 69 | D75: 69 | E75: RUFFS ROAD
A76: 70 | B76: MAPLE STREET | C76: 70 | D76: 70 | E76: MAPLE STREET
A77: 71 | B77: ROBERTS LINE | C77: 71 | D77: 71 | E77: ROBERTS LINE
A78: 72 | B78: CLEVELY LINE | C78: 72 | D78: 72 | E78: CLEVELY LINE
A79: 73 | B79: RAILWAY ROAD | C79: 73 | D79: 73 | E79: RAILWAY ROAD
A80: 75 | B80: SETTERS LINE WEST | C80: 75 | D80: 75 | E80: SETTERS LINE WEST
A81: 76 | B81: NEWBURY LINE | C81: 76 | D81: 76 | E81: NEWBURY LINE
A82: 77 | B82: KAIRANGA BUNNYTHORPE ROAD | C82: 77 | D82: 77 | E82: KAIRANGA BUNNYTHORPE ROAD
A83: 78 | B83: SKERMAN LINE | C83: 78 | D83: 78 | E83: SKERMAN LINE
A84: 79 | B84: OROUA ROAD | C84: 79 | D84: 79 | E84: OROUA ROAD
A85: 80 | B85: HIGHDEN ROAD | C85: 80 | D85: 80 | E85: HIGHDEN ROAD
A86: 81 | B86: FLYGERS LINE | C86: 81 | D86: 81 | E86: FLYGERS LINE
A87: 82 | B87: ARANUI ROAD | C87: 82 | D87: 82 | E87: ARANUI ROAD
A88: 83 | B88: GILLESPIES LINE | C88: 83 | D88: 83 | E88: GILLESPIES LINE
A89: 84 | B89: MCKENZIE SETTLEMENT ROAD | C89: 84 | D89: 84 | E89: MCKENZIE SETTLEMENT ROAD
A90: 85 | B90: CLOVERLEA ROAD | C90: 85 | D90: 85 | E90: CLOVERLEA ROAD
A91: 87 | B91: NO.1 LINE LONGBURN | C91: 87 | D91: 87 | E91: NO.1 LINE LONGBURN
A92: 88 | B92: RIDDIFORD ROAD | C92: 88 | D92: 88 | E92: RIDDIFORD ROAD
A93: 89 | B93: RESERVE ROAD | C93: 89 | D93: 89 | E93: RESERVE ROAD
A94: 90 | B94: HEALEY ROAD | C94: 90 | D94: 90 | E94: HEALEY ROAD
A95: 91 | B95: SHIRRIFFS ROAD | C95: 91 | D95: 91 | E95: SHIRRIFFS ROAD
A96: 92 | B96: WALKERS ROAD | C96: 92 | D96: 92 | E96: WALKERS ROAD
A97: 93 | B97: KARERE ROAD | C97: 93 | D97: 93 | E97: KARERE ROAD
A98: 94 | B98: TIAKITAHUNA ROAD | C98: 94 | D98: 94 | E98: TIAKITAHUNA ROAD
A99: 95 | B99: JACKEYTOWN ROAD | C99: 95 | D99: 95 | E99: JACKEYTOWN ROAD
A100: 96 | B100: DAMPNEYS ROAD | C100: 96 | D100: 96 | E100: DAMPNEYS ROAD
A101: 97 | B101: HAMILTON LINE | C101: 97 | D101: 97 | E101: HAMILTON LINE
A102: 98 | B102: HOIHERE ROAD | C102: 98 | D102: 98 | E102: HOIHERE ROAD
A103: 100 | B103: ALVE ROAD | C103: 100 | D103: 100 | E103: ALVE ROAD
A104: 101 | B104: TE AWE AWE ROAD | C104: 101 | D104: 101 | E104: TE AWE AWE ROAD
A105: 102 | B105: BAILEY ROAD | C105: 102 | D105: 102 | E105: BAILEY ROAD
A106: 103 | B106: BURNS FORD ROAD | C106: 103 | D106: 103 | E106: BURNS FORD ROAD
A107: 104 | B107: TANGIMOANA BEACH ROAD | C107: 104 | D107: 104 | E107: TANGIMOANA BEACH ROAD
A108: 105 | B108: WYLIE ROAD | C108: 105 | D108: 105 | E108: WYLIE ROAD
A109: 106 | B109: PLATFORM ROAD | C109: 106 | D109: 106 | E109: PLATFORM ROAD
A110: 107 | B110: HIMATANGI BLOCK ROAD | C110: 107 | D110: 107 | E110: HIMATANGI BLOCK ROAD
A111: 108 | B111: SPUR ROAD | C111: 108 | D111: 108 | E111: SPUR ROAD
A112: 109 | B112: SPUR ROAD WEST | C112: 109 | D112: 109 | E112: SPUR ROAD WEST
A113: 110 | B113: HANLON ROAD | C113: 110 | D113: 110 | E113: HANLON ROAD
A114: 111 | B114: FAULKNERS ROAD | C114: 111 | D114: 111 | E114: FAULKNERS ROAD
A115: 112 | B115: WATERSHED ROAD | C115: 112 | D115: 112 | E115: WATERSHED ROAD
A116: 113 | B116: ULYSSES ROAD | C116: 113 | D116: 113 | E116: ULYSSES ROAD
A117: 114 | B117: DAVIS ROAD | C117: 114 | D117: 114 | E117: DAVIS ROAD
A118: 115 | B118: COLYTON ROAD | C118: 115 | D118: 115 | E118: COLYTON ROAD
A119: 116 | B119: OLD KIPS ROAD | C119: 116 | D119: 116 | E119: OLD KIPS ROAD
A120: 117 | B120: SADDLE ROAD | C120: 117 | D120: 117 | E120: SADDLE ROAD
A121: 118 | B121: GROVE ROAD | C121: 118 | D121: 118 | E121: GROVE ROAD
A122: 120 | B122: REID LINE EAST | C122: 120 | D122: 120 | E122: REID LINE EAST
A123: 121 | B123: ASHHURST ROAD | C123: 121 | D123: 121 | E123: ASHHURST ROAD
A124: 122 | B124: DIXONS LINE | C124: 122 | D124: 122 | E124: DIXONS LINE
A125: 123 | B125: NANNESTAD LINE | C125: 123 | D125: 123 | E125: NANNESTAD LINE
A126: 124 | B126: TAONUI ROAD | C126: 124 | D126: 124 | E126: TAONUI ROAD
A127: 125 | B127: DURIE ROAD | C127: 125 | D127: 125 | E127: DURIE ROAD
A128: 126 | B128: AORANGI ROAD | C128: 126 | D128: 126 | E128: AORANGI ROAD
A129: 127 | B129: CAMPBELL ROAD | C129: 127 | D129: 127 | E129: CAMPBELL ROAD
A130: 129 | B130: PARRS ROAD | C130: 129 | D130: 129 | E130: PARRS ROAD
A131: 130 | B131: KELVIN GROVE ROAD | C131: 130 | D131: 130 | E131: KELVIN GROVE ROAD
A132: 131 | B132: TUTAKI ROAD | C132: 131 | D132: 131 | E132: TUTAKI ROAD
A133: 132 | B133: SANGSTERS ROAD | C133: 132 | D133: 132 | E133: SANGSTERS ROAD
A134: 133 | B134: HAYTHORNE ROAD | C134: 133 | D134: 133 | E134: HAYTHORNE ROAD
A135: =IF(ISBLANK(D135),0,D135) -> 134 | B135: =E135 -> RIDGE ROAD | C135: =A135 -> 134 | D135: 134 | E135: RIDGE ROAD
A136: 135 | B136: TE AWA ROAD | C136: 135 | D136: 135 | E136: TE AWA ROAD
A137: 137 | B137: OPAWE ROAD | C137: 137 | D137: 137 | E137: OPAWE ROAD
A138: 138 | B138: POHANGINA VALLEY EAST ROAD | C138: 138 | D138: 138 | E138: POHANGINA VALLEY EAST ROAD
A139: 139 | B139: NO.1 LINE POHANGINA | C139: 139 | D139: 139 | E139: NO.1 LINE POHANGINA
A140: 140 | B140: NO.2 LINE | C140: 140 | D140: 140 | E140: NO.2 LINE
A141: 141 | B141: NO.3 LINE | C141: 141 | D141: 141 | E141: NO.3 LINE
A142: 142 | B142: NO.4 LINE | C142: 142 | D142: 142 | E142: NO.4 LINE
A143: 143 | B143: COULTER LINE | C143: 143 | D143: 143 | E143: COULTER LINE
A144: 144 | B144: SHERRARDS ROAD | C144: 144 | D144: 144 | E144: SHERRARDS ROAD
A145: 145 | B145: FINNIS ROAD [RURAL] | C145: 145 | D145: 145 | E145: FINNIS ROAD [RURAL]
A146: 146 | B146: BARROW ROAD | C146: 146 | D146: 146 | E146: BARROW ROAD
A147: 147 | B147: POLLOCK ROAD | C147: 147 | D147: 147 | E147: POLLOCK ROAD
A148: 148 | B148: CREAMERY ROAD | C148: 148 | D148: 148 | E148: CREAMERY ROAD
A149: 149 | B149: ZIGZAG ROAD | C149: 149 | D149: 149 | E149: ZIGZAG ROAD
A150: 150 | B150: AWAHOU SOUTH ROAD | C150: 150 | D150: 150 | E150: AWAHOU SOUTH ROAD
A151: 151 | B151: POHANGINA ROAD | C151: 151 | D151: 151 | E151: POHANGINA ROAD
A152: 152 | B152: MIDLAND ROAD | C152: 152 | D152: 152 | E152: MIDLAND ROAD
A153: 153 | B153: VALLEY ROAD | C153: 153 | D153: 153 | E153: VALLEY ROAD
A154: 154 | B154: HEATHERLIE ROAD | C154: 154 | D154: 154 | E154: HEATHERLIE ROAD
A155: 155 | B155: FORLONG ROAD | C155: 155 | D155: 155 | E155: FORLONG ROAD
A156: 157 | B156: ALMADALE ROAD | C156: 157 | D156: 157 | E156: ALMADALE ROAD
A157: 158 | B157: RIDDS ROAD | C157: 158 | D157: 158 | E157: RIDDS ROAD
A158: 159 | B158: MANIA ROAD | C158: 159 | D158: 159 | E158: MANIA ROAD
A159: 160 | B159: AUPUTA ROAD | C159: 160 | D159: 160 | E159: AUPUTA ROAD
A160: 161 | B160: KAREWAREWA ROAD | C160: 161 | D160: 161 | E160: KAREWAREWA ROAD
A161: 162 | B161: TE PARAPARA ROAD | C161: 162 | D161: 162 | E161: TE PARAPARA ROAD
A162: 163 | B162: RENFREW ROAD | C162: 163 | D162: 163 | E162: RENFREW ROAD
A163: 164 | B163: MANGAHUIA ROAD | C163: 164 | D163: 164 | E163: MANGAHUIA ROAD
A164: 165 | B164: MAIN SOUTH ROAD | C164: 165 | D164: 165 | E164: MAIN SOUTH ROAD
A165: 166 | B165: EAST MANGAHUIA RD (BOWLING RD) | C165: 166 | D165: 166 | E165: EAST MANGAHUIA RD (BOWLING RD)
A166: 167 | B166: CONSPICUOUS ROAD | C166: 167 | D166: 167 | E166: CONSPICUOUS ROAD
A167: 168 | B167: MANGOIRA ROAD | C167: 168 | D167: 168 | E167: MANGOIRA ROAD
A168: 169 | B168: NIXS ROAD | C168: 169 | D168: 169 | E168: NIXS ROAD
A169: 170 | B169: TABLE FLAT ROAD | C169: 170 | D169: 170 | E169: TABLE FLAT ROAD
A170: 171 | B170: CLARKS ROAD | C170: 171 | D170: 171 | E170: CLARKS ROAD
A171: 172 | B171: PETERSONS ROAD | C171: 172 | D171: 172 | E171: PETERSONS ROAD
A172: 173 | B172: LIMESTONE ROAD | C172: 173 | D172: 173 | E172: LIMESTONE ROAD
A173: 174 | B173: GEANGES ROAD | C173: 174 | D173: 174 | E173: GEANGES ROAD
A174: 175 | B174: GORGE ROAD | C174: 175 | D174: 175 | E174: GORGE ROAD
A175: 176 | B175: OROUA VALLEY ROAD | C175: 176 | D175: 176 | E175: OROUA VALLEY ROAD
A176: 177 | B176: MILLERS ROAD | C176: 177 | D176: 177 | E176: MILLERS ROAD
A177: 178 | B177: REIDS LINE APITI | C177: 178 | D177: 178 | E177: REIDS LINE APITI
A178: 179 | B178: TAKAPARI ROAD | C178: 179 | D178: 179 | E178: TAKAPARI ROAD
A179: 180 | B179: PIRIPIRI ROAD | C179: 180 | D179: 180 | E179: PIRIPIRI ROAD
A180: 181 | B180: MAKOURA ROAD | C180: 181 | D180: 181 | E180: MAKOURA ROAD
A181: 182 | B181: NORSEWOOD ROAD | C181: 182 | D181: 182 | E181: NORSEWOOD ROAD
A182: 183 | B182: UMUTOI NORTH ROAD | C182: 183 | D182: 183 | E182: UMUTOI NORTH ROAD
A183: 184 | B183: PETTIGREW ROAD | C183: 184 | D183: 184 | E183: PETTIGREW ROAD
A184: 185 | B184: TUNIPO ROAD | C184: 185 | D184: 185 | E184: TUNIPO ROAD
A185: 186 | B185: JOHN ROAD | C185: 186 | D185: 186 | E185: JOHN ROAD
A186: 187 | B186: APITI ROAD | C186: 187 | D186: 187 | E186: APITI ROAD
A187: 190 | B187: TERRACE ROAD | C187: 190 | D187: 190 | E187: TERRACE ROAD
A188: 191 | B188: LONDONS FORD ROAD | C188: 191 | D188: 191 | E188: LONDONS FORD ROAD
A189: 192 | B189: ARNOTT STREET | C189: 192 | D189: 192 | E189: ARNOTT STREET
A190: 193 | B190: ROOTS STREET | C190: 193 | D190: 193 | E190: ROOTS STREET
A191: 194 | B191: REID LINE WEST | C191: 194 | D191: 194 | E191: REID LINE WEST
A192: 195 | B192: PHARAZYN ROAD | C192: 195 | D192: 195 | E192: PHARAZYN ROAD
A193: 196 | B193: MAKINO ROAD | C193: 196 | D193: 196 | E193: MAKINO ROAD
A194: 197 | B194: BREWSTER ROAD | C194: 197 | D194: 197 | E194: BREWSTER ROAD
A195: 198 | B195: BELL ROAD WEST | C195: 198 | D195: 198 | E195: BELL ROAD WEST
A196: 199 | B196: MANGAONE ROAD | C196: 199 | D196: 199 | E196: MANGAONE ROAD
A197: 200 | B197: JUNCTION ROAD | C197: 200 | D197: 200 | E197: JUNCTION ROAD
A198: 201 | B198: MCKAYS LINE | C198: 201 | D198: 201 | E198: MCKAYS LINE
A199: =IF(ISBLANK(D199),0,D199) -> 202 | B199: =E199 -> MAKARA ROAD | C199: =A199 -> 202 | D199: 202 | E199: MAKARA ROAD
A200: 203 | B200: STANWAY ROAD | C200: 203 | D200: 203 | E200: STANWAY ROAD
A201: 204 | B201: JUNCTION ROAD WEST | C201: 204 | D201: 204 | E201: JUNCTION ROAD WEST
... 454 more rows

Sheet Deficiency_Types
B1: Deficency-Type Table
B2: Do not add anything below the red line. You may change the existing detail if you wish. There must be at least one numbered line in this table.
B3: DfcyType_ID | C3: DfcyTyp_ShortName | D3: DfcyTyp_Haz_Def | E3: DfcyTyp_Description | F3: Copy of DfcyType_ID
B4: 1 | C4: Sealed Surfacing | D4: Deficiency | E4: Sealed-surface deficiency | F4: =B4 -> 1
B5: =B4+1 -> 2 | C5: Unsealed Surface | D5: Deficiency | E5: Unsealed-surface deficiency | F5: =B5 -> 2
B6: =B5+1 -> 3 | C6: Horizontal Geometry | D6: Deficiency | E6: Poor horizontal geometry that can be fixed, e.g. excessively sharp bend at end of a long straight | F6: 3
B7: 4 | C7: Horizontal Geometry Hazard | D7: Hazard | E7: Poor horizontal geometry that cannot be economically rectified, e.g. road on a cliff-face | F7: 4
B8: 5 | C8: Vertical Geometry Hazard | D8: Deficiency | E8: Poor vertical geometry that can be fixed, e.g. lack of stopping-sight distance caused by excessively sharp crest | F8: 5
B9: 6 | C9: Vertical Geometry | D9: Hazard | E9: Poor vertical geometry that cannot be economically rectified | F9: 6
B10: 7 | C10: Both H&V Geometry | D10: Deficiency | E10: Both horizontal and vertical geometries are deficient | F10: 7
B11: 8 | C11: Both H&V Geometry Hazard | D11: Hazard | E11: Both horizontal and vertical geometries are deficient and cannot be economically rectified | F11: 8
B12: 9 | C12: Shape | D12: Deficiency | E12: Road out-of-shape. E.g. incorrect superelevation in curve, 'hollow' road surface holing water | F12: 9
B13: 10 | C13: Delineation | D13: Deficiency | E13: Delineation inadequate | F13: 10
B14: 11 | C14: Signage | D14: Deficiency | E14: Inadequate signage | F14: 11
B15: 12 | C15: Drainage | D15: Deficiency | E15: Water not getting off road surface adequately | F15: 12
B16: 13 | C16: Vulnerable Road Users | D16: Deficiency | E16: Vulnerable road users are at risk because of road features/lack of features | F16: 13
B17: 14 | C17: Intersection Controls | D17: Deficiency | E17: Intersection controls / design / layout need resolution / improvement | F17: 14
B18: 15 | C18: Lighting | D18: Deficiency | E18: Poor / absent lighting | F18: 15
B19: 16 | C19: Vegetation/Shading | D19: Deficiency | E19: Vegetation shading the road causing icing or other problems | F19: 16
B20: 17 | C20: Shade | D20: Hazard | E20: Deep or permanent shadow in winter causing icing problems | F20: 17
B21: 18 | C21: Sun-strike | D21: Hazard | E21: Lack of visibility caused by sun-strike at a particular time of the year and time of day. | F21: 18
B22: 19 | C22: Other Hazard | D22: Hazard | E22: Please specify | F22: 19
B23: 20 | C23: Other | D23: Deficiency | E23: Please specify | F23: 20
B24: 21 | C24: Narrow Bridge | D24: Deficiency | E24: Bridge significantly less than target width for either single lane or two-way bridges, as applicable | F24: 21
B25: 22 | C25: Ambiguous Bridge | D25: Deficiency | E25: Bridge too narrow for two-way traffic but never-the-less being used / able to be used as two-way | F25: 22
B26: 23 | C26: Drop | D26: Deficiency | E26: Unprotected drop that can be economically protected | F26: 23
B27: 24 | C27: Drop Hazard | D27: Hazard | E27: Unprotected drop that cannot be economically protected an that will remain a hazard to be managed | F27: 24
B28: 25 | C28: Obstacle | D28: Deficiency | E28: Unprotected obstacle in the roadway / safety zone that can be either removed, relocated or protected economically | F28: 25
B29: 26 | C29: Obstacle Hazard | D29: Hazard | E29: Unprotected obstacle in the roadway / safety zone that cannot be either economically removed, economically relocated or economically protected | F29: 26
B30: 27 | C30: Inadequate width | D30: Deficiency | E30: Insufficient space for vehicles travelling in opposite directions to pass | F30: 27
B31: 28 | C31: Inadequate width Hazard | D31: Hazard | E31: Insufficient space for vehicles travelling in opposite directions to pass. No more room available at reasonable cost | F31: 28

Sheet Source_of_Info
A1: Source of Information
A2: Do not add anything below the red line
B3: ID | C3: DfcySrce_Describe | D3: Copy_of_Info_ID
B4: 1 | C4: Safety Inspections | D4: =B4 -> 1
B5: =B4+1 -> 2 | C5: Crash Reports | D5: =B5 -> 2
B6: =B5+1 -> 3 | C6: Contractor Report | D6: 3
B7: 4 | C7: CAS Analysis | D7: 4
B8: 5 | C8: Other Analysis | D8: 5
B9: 6 | C9: Black- grey- hot-spot investigation / analysis | D9: 6
B10: 7 | C10: Chrash-site monitoring | D10: 7
B11: 8 | C11: Contact/ queries from general public | D11: 8
B12: 9 | C12: Stakeholder contact | D12: 9
B13: 10 | C13: Crash Reduction Study | D13: 10
B14: 11 | C14: Corridor Management Plan | D14: 11
B15: 12 | C15: Safety Study | D15: 12
B16: 13 | C16: Safety Audit | D16: 13
B17: 14 | C17: Analysis of RAMM data and reports | D17: 14
B18: 15 | C18: Police formal contact | D18: 15
B19: 16 | C19: Police informal contact | D19: 16
B20: 17 | C20: Coroner / Courts | D20: 17
B21: 18 | C21: Network knowledge | D21: 18

Sheet Treatments
A1: Treatments Table
H4: =IF(AND(ISBLANK(G4),ISBLANK(J4)=FALSE),"You MUST enter both a Likelihood and Consequence",IF(ISBLANK(G4),"",VLOOKUP(F4,Likelihood!$A$4:$D$8,3,FALSE))) -> 
H5: =IF(AND(ISBLANK(G5),ISBLANK(J5)=FALSE),"You MUST enter both a Likelihood and Consequence",IF(ISBLANK(G5),"",VLOOKUP(F5,Likelihood!$A$4:$D$8,3,FALSE))) -> 
B6: DfcyTr_ID | C6: DfcyTr_Treatment_Description | D6: Dfcy_Tr_ShortName | E6: Risk_Reduction | F6: DfcyTr_Likelihood_After | G6: DfcyTr_LikelihoodName | H6: =IF(AND(ISBLANK(G6),ISBLANK(J6)=FALSE),"You MUST enter both a Likelihood and Consequence",IF(ISBLANK(G6),"",VLOOKUP(F6,Likelihood!$A$4:$D$8,3,FALSE))) ->  | I6: DfcyTr_Consequence_After | J6: DfcyTr_ConsequenceName | K6: DfcyTr_ConsequenceDescription | L6: DfcyTr_RiskAfter | M6: DfcyTr_RiskDescription | N6: Copy_of_Tr_ID
H7: =IF(AND(ISBLANK(G7),ISBLANK(J7)=FALSE),"You MUST enter both a Likelihood and Consequence",IF(ISBLANK(G7),"",VLOOKUP(F7,Likelihood!$A$4:$D$8,3,FALSE))) -> 
B8: Treatment ID Number | C8: Description of Treatment | D8: Nick Name or short Name | E8: Rather than calculating a new risk below, enter risk reduction for generic projects | F8: Likelihood Code | G8: Likelihood of a crash after the treatment is completed | H8: =IF(AND(ISBLANK(G8),ISBLANK(J8)=FALSE),"You MUST enter both a Likelihood and Consequence",IF(ISBLANK(G8),"",VLOOKUP(F8,Likelihood!$A$4:$D$8,3,FALSE))) ->  | I8: Consequence Code | J8: Consequence of a crash after the treatment is completed | K8: Consequence Description | L8: The calculated Risk after the treatment | M8: Description of this Risk
B9: =IF(ISNUMBER(B8), MAX($B$8,B8)+1,1) -> 1 | C9: Accept risk, do nothing, continue to monitor and maintain current measures | D9: Accept | E9: 0.0001 | F9: =IF(ISBLANK(G9),"",VLOOKUP(G9,LikelihoodTable2,5,FALSE)) ->  | H9: =IF(AND(ISBLANK(G9),ISBLANK(J9)=FALSE),"You MUST enter both a Likelihood and Consequence",IF(ISBLANK(G9),"",VLOOKUP(F9,Likelihood!$A$4:$D$8,3,FALSE))) ->  | I9: =IF(ISBLANK(J9),"",VLOOKUP(J9,ConsequenceTable2,5,FALSE)) ->  | K9: =IF(AND(ISBLANK(G9)=FALSE,ISBLANK(J9)),"You MUST enter both a Likelihood and Consequence",IF(ISBLANK(J9),"",VLOOKUP(I9,Consequence!$A$4:$D$8,3,FALSE))) ->  | L9: =IF(OR(ISBLANK(G9),ISBLANK(J9)),"",VLOOKUP(F9,Likelihood!$A$4:$D$8,4,FALSE)*VLOOKUP(I9,Consequence!$A$4:$D$8,4,FALSE)) ->  | M9: =IF(L9="","",VLOOKUP(L9,Risk!$A$5:$B$8,2,TRUE)) ->  | N9: =B9 -> 1
B10: =IF(ISNUMBER(B9), MAX($B$8,B9)+1,1) -> 2 | C10: Erect appropriate signs | D10: Signs | E10: 0.1 | H10: =IF(AND(ISBLANK(G10),ISBLANK(J10)=FALSE),"You MUST enter both a Likelihood and Consequence",IF(ISBLANK(G10),"",VLOOKUP(F10,Likelihood!$A$4:$D$8,3,FALSE))) ->  | K10: =IF(AND(ISBLANK(G10)=FALSE,ISBLANK(J10)),"You MUST enter both a Likelihood and Consequence",IF(ISBLANK(J10),"",VLOOKUP(I10,Consequence!$A$4:$D$8,3,FALSE))) ->  | L10: =IF(OR(ISBLANK(G10),ISBLANK(J10)),"",VLOOKUP(F10,Likelihood!$A$4:$D$8,4,FALSE)*VLOOKUP(I10,Consequence!$A$4:$D$8,4,FALSE)) ->  | M10: =IF(L10="","",VLOOKUP(L10,Risk!$A$5:$B$8,2,TRUE)) ->  | N10: =B10 -> 2
B11: 3 | C11: Manage Hazard through use of warning signs etc | D11: Manage | E11: 0.1 | H11: =IF(AND(ISBLANK(G11),ISBLANK(J11)=FALSE),"You MUST enter both a Likelihood and Consequence",IF(ISBLANK(G11),"",VLOOKUP(F11,Likelihood!$A$4:$D$8,3,FALSE))) ->  | K11: =IF(AND(ISBLANK(G11)=FALSE,ISBLANK(J11)),"You MUST enter both a Likelihood and Consequence",IF(ISBLANK(J11),"",VLOOKUP(I11,Consequence!$A$4:$D$8,3,FALSE))) ->  | L11: =IF(OR(ISBLANK(G11),ISBLANK(J11)),"",VLOOKUP(F11,Likelihood!$A$4:$D$8,4,FALSE)*VLOOKUP(I11,Consequence!$A$4:$D$8,4,FALSE)) ->  | M11: =IF(L11="","",VLOOKUP(L11,Risk!$A$5:$B$8,2,TRUE)) ->  | N11: 3
B12: 4 | C12: Install guardrail / wire-rope barrier above steep high drop | D12: Safety Rail High | E12: 0.8 | H12: =IF(AND(ISBLANK(G12),ISBLANK(J12)=FALSE),"You MUST enter both a Likelihood and Consequence",IF(ISBLANK(G12),"",VLOOKUP(F12,Likelihood!$A$4:$D$8,3,FALSE))) ->  | K12: =IF(AND(ISBLANK(G12)=FALSE,ISBLANK(J12)),"You MUST enter both a Likelihood and Consequence",IF(ISBLANK(J12),"",VLOOKUP(I12,Consequence!$A$4:$D$8,3,FALSE))) ->  | L12: =IF(OR(ISBLANK(G12),ISBLANK(J12)),"",VLOOKUP(F12,Likelihood!$A$4:$D$8,4,FALSE)*VLOOKUP(I12,Consequence!$A$4:$D$8,4,FALSE)) ->  | M12: =IF(L12="","",VLOOKUP(L12,Risk!$A$5:$B$8,2,TRUE)) ->  | N12: 4
B13: 5 | C13: Install guardrail / wire-rope barrier above moderate to low drop | D13: Safety Rail Low | E13: 0.8 | H13: =IF(AND(ISBLANK(G13),ISBLANK(J13)=FALSE),"You MUST enter both a Likelihood and Consequence",IF(ISBLANK(G13),"",VLOOKUP(F13,Likelihood!$A$4:$D$8,3,FALSE))) ->  | K13: =IF(AND(ISBLANK(G13)=FALSE,ISBLANK(J13)),"You MUST enter both a Likelihood and Consequence",IF(ISBLANK(J13),"",VLOOKUP(I13,Consequence!$A$4:$D$8,3,FALSE))) ->  | L13: =IF(OR(ISBLANK(G13),ISBLANK(J13)),"",VLOOKUP(F13,Likelihood!$A$4:$D$8,4,FALSE)*VLOOKUP(I13,Consequence!$A$4:$D$8,4,FALSE)) ->  | M13: =IF(L13="","",VLOOKUP(L13,Risk!$A$5:$B$8,2,TRUE)) ->  | N13: 5
B14: 6 | C14: Splitter Island - all environments | D14: Split | E14: 0.4 | H14: =IF(AND(ISBLANK(G14),ISBLANK(J14)=FALSE),"You MUST enter both a Likelihood and Consequence",IF(ISBLANK(G14),"",VLOOKUP(F14,Likelihood!$A$4:$D$8,3,FALSE))) ->  | K14: =IF(AND(ISBLANK(G14)=FALSE,ISBLANK(J14)),"You MUST enter both a Likelihood and Consequence",IF(ISBLANK(J14),"",VLOOKUP(I14,Consequence!$A$4:$D$8,3,FALSE))) ->  | L14: =IF(OR(ISBLANK(G14),ISBLANK(J14)),"",VLOOKUP(F14,Likelihood!$A$4:$D$8,4,FALSE)*VLOOKUP(I14,Consequence!$A$4:$D$8,4,FALSE)) ->  | M14: =IF(L14="","",VLOOKUP(L14,Risk!$A$5:$B$8,2,TRUE)) ->  | N14: 6
B15: 7 | C15: Delineation — RRPMs ; All environments | D15: Delineation | E15: 0.05 | H15: =IF(AND(ISBLANK(G15),ISBLANK(J15)=FALSE),"You MUST enter both a Likelihood and Consequence",IF(ISBLANK(G15),"",VLOOKUP(F15,Likelihood!$A$4:$D$8,3,FALSE))) ->  | K15: =IF(AND(ISBLANK(G15)=FALSE,ISBLANK(J15)),"You MUST enter both a Likelihood and Consequence",IF(ISBLANK(J15),"",VLOOKUP(I15,Consequence!$A$4:$D$8,3,FALSE))) ->  | L15: =IF(OR(ISBLANK(G15),ISBLANK(J15)),"",VLOOKUP(F15,Likelihood!$A$4:$D$8,4,FALSE)*VLOOKUP(I15,Consequence!$A$4:$D$8,4,FALSE)) ->  | M15: =IF(L15="","",VLOOKUP(L15,Risk!$A$5:$B$8,2,TRUE)) ->  | N15: 7
B16: 8 | C16: Intersection — extend right turn lane ; All environments | D16: Long RTB | E16: 0.15 | H16: =IF(AND(ISBLANK(G16),ISBLANK(J16)=FALSE),"You MUST enter both a Likelihood and Consequence",IF(ISBLANK(G16),"",VLOOKUP(F16,Likelihood!$A$4:$D$8,3,FALSE))) ->  | K16: =IF(AND(ISBLANK(G16)=FALSE,ISBLANK(J16)),"You MUST enter both a Likelihood and Consequence",IF(ISBLANK(J16),"",VLOOKUP(I16,Consequence!$A$4:$D$8,3,FALSE))) ->  | L16: =IF(OR(ISBLANK(G16),ISBLANK(J16)),"",VLOOKUP(F16,Likelihood!$A$4:$D$8,4,FALSE)*VLOOKUP(I16,Consequence!$A$4:$D$8,4,FALSE)) ->  | M16: =IF(L16="","",VLOOKUP(L16,Risk!$A$5:$B$8,2,TRUE)) ->  | N16: 8
B17: 9 | C17: Intersection — left turn lane ; All environments | D17: LTurnLane | E17: 0.3 | H17: =IF(AND(ISBLANK(G17),ISBLANK(J17)=FALSE),"You MUST enter both a Likelihood and Consequence",IF(ISBLANK(G17),"",VLOOKUP(F17,Likelihood!$A$4:$D$8,3,FALSE))) ->  | K17: =IF(AND(ISBLANK(G17)=FALSE,ISBLANK(J17)),"You MUST enter both a Likelihood and Consequence",IF(ISBLANK(J17),"",VLOOKUP(I17,Consequence!$A$4:$D$8,3,FALSE))) ->  | L17: =IF(OR(ISBLANK(G17),ISBLANK(J17)),"",VLOOKUP(F17,Likelihood!$A$4:$D$8,4,FALSE)*VLOOKUP(I17,Consequence!$A$4:$D$8,4,FALSE)) ->  | M17: =IF(L17="","",VLOOKUP(L17,Risk!$A$5:$B$8,2,TRUE)) ->  | N17: 9
B18: 10 | C18: Intersection — [inked signals ; Linking of existing signals | D18: Signal Link | E18: 0.15 | H18: =IF(AND(ISBLANK(G18),ISBLANK(J18)=FALSE),"You MUST enter both a Likelihood and Consequence",IF(ISBLANK(G18),"",VLOOKUP(F18,Likelihood!$A$4:$D$8,3,FALSE))) ->  | K18: =IF(AND(ISBLANK(G18)=FALSE,ISBLANK(J18)),"You MUST enter both a Likelihood and Consequence",IF(ISBLANK(J18),"",VLOOKUP(I18,Consequence!$A$4:$D$8,3,FALSE))) ->  | L18: =IF(OR(ISBLANK(G18),ISBLANK(J18)),"",VLOOKUP(F18,Likelihood!$A$4:$D$8,4,FALSE)*VLOOKUP(I18,Consequence!$A$4:$D$8,4,FALSE)) ->  | M18: =IF(L18="","",VLOOKUP(L18,Risk!$A$5:$B$8,2,TRUE)) ->  | N18: 10
B19: 11 | C19: Intersection — red light camera ; All environments | D19: Red Lt Camera | E19: 0.05 | H19: =IF(AND(ISBLANK(G19),ISBLANK(J19)=FALSE),"You MUST enter both a Likelihood and Consequence",IF(ISBLANK(G19),"",VLOOKUP(F19,Likelihood!$A$4:$D$8,3,FALSE))) ->  | K19: =IF(AND(ISBLANK(G19)=FALSE,ISBLANK(J19)),"You MUST enter both a Likelihood and Consequence",IF(ISBLANK(J19),"",VLOOKUP(I19,Consequence!$A$4:$D$8,3,FALSE))) ->  | L19: =IF(OR(ISBLANK(G19),ISBLANK(J19)),"",VLOOKUP(F19,Likelihood!$A$4:$D$8,4,FALSE)*VLOOKUP(I19,Consequence!$A$4:$D$8,4,FALSE)) ->  | M19: =IF(L19="","",VLOOKUP(L19,Risk!$A$5:$B$8,2,TRUE)) ->  | N19: 11
B20: 12 | C20: Intersection — right turn lane ; All environments | D20: RTB | E20: 0.35 | H20: =IF(ISBLANK(G20),"",VLOOKUP(F20,Likelihood!$A$4:$D$8,3,FALSE)) ->  | K20: =IF(ISBLANK(J20),"",VLOOKUP(I20,Consequence!$A$4:$D$8,3,FALSE)) ->  | L20: =IF(OR(ISBLANK(G20),ISBLANK(J20)),"",VLOOKUP(F20,Likelihood!$A$4:$D$8,4,FALSE)*VLOOKUP(I20,Consequence!$A$4:$D$8,4,FALSE)) ->  | M20: =IF(L20="","",VLOOKUP(L20,Risk!$A$5:$B$8,2,TRUE)) ->  | N20: 12
B21: 13 | C21: Intersection — right turn lane ; At signalised intersections | D21: Signal Right | E21: 0.35 | H21: =IF(ISBLANK(G21),"",VLOOKUP(F21,Likelihood!$A$4:$D$8,3,FALSE)) ->  | K21: =IF(ISBLANK(J21),"",VLOOKUP(I21,Consequence!$A$4:$D$8,3,FALSE)) ->  | L21: =IF(OR(ISBLANK(G21),ISBLANK(J21)),"",VLOOKUP(F21,Likelihood!$A$4:$D$8,4,FALSE)*VLOOKUP(I21,Consequence!$A$4:$D$8,4,FALSE)) ->  | M21: =IF(L21="","",VLOOKUP(L21,Risk!$A$5:$B$8,2,TRUE)) ->  | N21: 13
B22: 14 | C22: Intersection — right turn lane ; At unsignalised intersections | D22: RTB no signal | E22: 0.35 | H22: =IF(ISBLANK(G22),"",VLOOKUP(F22,Likelihood!$A$4:$D$8,3,FALSE)) ->  | K22: =IF(ISBLANK(J22),"",VLOOKUP(I22,Consequence!$A$4:$D$8,3,FALSE)) ->  | L22: =IF(OR(ISBLANK(G22),ISBLANK(J22)),"",VLOOKUP(F22,Likelihood!$A$4:$D$8,4,FALSE)*VLOOKUP(I22,Consequence!$A$4:$D$8,4,FALSE)) ->  | M22: =IF(L22="","",VLOOKUP(L22,Risk!$A$5:$B$8,2,TRUE)) ->  | N22: 14
B23: 15 | C23: Intersection — right turn lane ; Urban | D23: RTB Urban | E23: 0.3 | H23: =IF(ISBLANK(G23),"",VLOOKUP(F23,Likelihood!$A$4:$D$8,3,FALSE)) ->  | K23: =IF(ISBLANK(J23),"",VLOOKUP(I23,Consequence!$A$4:$D$8,3,FALSE)) ->  | L23: =IF(OR(ISBLANK(G23),ISBLANK(J23)),"",VLOOKUP(F23,Likelihood!$A$4:$D$8,4,FALSE)*VLOOKUP(I23,Consequence!$A$4:$D$8,4,FALSE)) ->  | M23: =IF(L23="","",VLOOKUP(L23,Risk!$A$5:$B$8,2,TRUE)) ->  | N23: 15
B24: 16 | C24: Intersection — right turn lane ; Rural | D24: RTB Rural | E24: 0.35 | H24: =IF(ISBLANK(G24),"",VLOOKUP(F24,Likelihood!$A$4:$D$8,3,FALSE)) ->  | K24: =IF(ISBLANK(J24),"",VLOOKUP(I24,Consequence!$A$4:$D$8,3,FALSE)) ->  | L24: =IF(OR(ISBLANK(G24),ISBLANK(J24)),"",VLOOKUP(F24,Likelihood!$A$4:$D$8,4,FALSE)*VLOOKUP(I24,Consequence!$A$4:$D$8,4,FALSE)) ->  | M24: =IF(L24="","",VLOOKUP(L24,Risk!$A$5:$B$8,2,TRUE)) ->  | N24: 16
B25: 17 | C25: Intersection — right turn lane ; Painted | D25: Rturn Lane | E25: 0.3 | H25: =IF(ISBLANK(G25),"",VLOOKUP(F25,Likelihood!$A$4:$D$8,3,FALSE)) ->  | K25: =IF(ISBLANK(J25),"",VLOOKUP(I25,Consequence!$A$4:$D$8,3,FALSE)) ->  | L25: =IF(OR(ISBLANK(G25),ISBLANK(J25)),"",VLOOKUP(F25,Likelihood!$A$4:$D$8,4,FALSE)*VLOOKUP(I25,Consequence!$A$4:$D$8,4,FALSE)) ->  | M25: =IF(L25="","",VLOOKUP(L25,Risk!$A$5:$B$8,2,TRUE)) ->  | N25: 17
B26: 18 | C26: Intersection — right turn lane ; Protected | D26: RTB & Median | E26: 0.35 | H26: =IF(ISBLANK(G26),"",VLOOKUP(F26,Likelihood!$A$4:$D$8,3,FALSE)) ->  | K26: =IF(ISBLANK(J26),"",VLOOKUP(I26,Consequence!$A$4:$D$8,3,FALSE)) ->  | L26: =IF(OR(ISBLANK(G26),ISBLANK(J26)),"",VLOOKUP(F26,Likelihood!$A$4:$D$8,4,FALSE)*VLOOKUP(I26,Consequence!$A$4:$D$8,4,FALSE)) ->  | M26: =IF(L26="","",VLOOKUP(L26,Risk!$A$5:$B$8,2,TRUE)) ->  | N26: 18
B27: 19 | C27: Intersection — improve signal timing ; All environments | D27: Signal Mods | E27: 0.1 | H27: =IF(ISBLANK(G27),"",VLOOKUP(F27,Likelihood!$A$4:$D$8,3,FALSE)) ->  | K27: =IF(ISBLANK(J27),"",VLOOKUP(I27,Consequence!$A$4:$D$8,3,FALSE)) ->  | L27: =IF(OR(ISBLANK(G27),ISBLANK(J27)),"",VLOOKUP(F27,Likelihood!$A$4:$D$8,4,FALSE)*VLOOKUP(I27,Consequence!$A$4:$D$8,4,FALSE)) ->  | M27: =IF(L27="","",VLOOKUP(L27,Risk!$A$5:$B$8,2,TRUE)) ->  | N27: 19
B28: 20 | C28: Line markings — profile edge lines ; Shoulder | D28: Profiled Edge Line | E28: 0.2 | H28: =IF(ISBLANK(G28),"",VLOOKUP(F28,Likelihood!$A$4:$D$8,3,FALSE)) ->  | K28: =IF(ISBLANK(J28),"",VLOOKUP(I28,Consequence!$A$4:$D$8,3,FALSE)) ->  | L28: =IF(OR(ISBLANK(G28),ISBLANK(J28)),"",VLOOKUP(F28,Likelihood!$A$4:$D$8,4,FALSE)*VLOOKUP(I28,Consequence!$A$4:$D$8,4,FALSE)) ->  | M28: =IF(L28="","",VLOOKUP(L28,Risk!$A$5:$B$8,2,TRUE)) ->  | N28: 20
B29: 21 | C29: Midblock turning provisions ; All environments | D29: Midblock | E29: 0.35 | H29: =IF(ISBLANK(G29),"",VLOOKUP(F29,Likelihood!$A$4:$D$8,3,FALSE)) ->  | K29: =IF(ISBLANK(J29),"",VLOOKUP(I29,Consequence!$A$4:$D$8,3,FALSE)) ->  | L29: =IF(OR(ISBLANK(G29),ISBLANK(J29)),"",VLOOKUP(F29,Likelihood!$A$4:$D$8,4,FALSE)*VLOOKUP(I29,Consequence!$A$4:$D$8,4,FALSE)) ->  | M29: =IF(L29="","",VLOOKUP(L29,Risk!$A$5:$B$8,2,TRUE)) ->  | N29: 21
B30: 22 | C30: Off road delineation — guide posts (*reduction in night_crashes) ; . | D30: Marker Posts | E30: 0.3 | H30: =IF(ISBLANK(G30),"",VLOOKUP(F30,Likelihood!$A$4:$D$8,3,FALSE)) ->  | K30: =IF(ISBLANK(J30),"",VLOOKUP(I30,Consequence!$A$4:$D$8,3,FALSE)) ->  | L30: =IF(OR(ISBLANK(G30),ISBLANK(J30)),"",VLOOKUP(F30,Likelihood!$A$4:$D$8,4,FALSE)*VLOOKUP(I30,Consequence!$A$4:$D$8,4,FALSE)) ->  | M30: =IF(L30="","",VLOOKUP(L30,Risk!$A$5:$B$8,2,TRUE)) ->  | N30: 22
B31: 23 | C31: Overtaking lanes ; All environments | D31: Passing Lanes | E31: 0.2 | H31: =IF(ISBLANK(G31),"",VLOOKUP(F31,Likelihood!$A$4:$D$8,3,FALSE)) ->  | K31: =IF(ISBLANK(J31),"",VLOOKUP(I31,Consequence!$A$4:$D$8,3,FALSE)) ->  | L31: =IF(OR(ISBLANK(G31),ISBLANK(J31)),"",VLOOKUP(F31,Likelihood!$A$4:$D$8,4,FALSE)*VLOOKUP(I31,Consequence!$A$4:$D$8,4,FALSE)) ->  | M31: =IF(L31="","",VLOOKUP(L31,Risk!$A$5:$B$8,2,TRUE)) ->  | N31: 23
B32: 24 | C32: Pavement markings — centreline ; All environments | D32: New C-line | E32: 0.3 | H32: =IF(ISBLANK(G32),"",VLOOKUP(F32,Likelihood!$A$4:$D$8,3,FALSE)) ->  | K32: =IF(ISBLANK(J32),"",VLOOKUP(I32,Consequence!$A$4:$D$8,3,FALSE)) ->  | L32: =IF(OR(ISBLANK(G32),ISBLANK(J32)),"",VLOOKUP(F32,Likelihood!$A$4:$D$8,4,FALSE)*VLOOKUP(I32,Consequence!$A$4:$D$8,4,FALSE)) ->  | M32: =IF(L32="","",VLOOKUP(L32,Risk!$A$5:$B$8,2,TRUE)) ->  | N32: 24
B33: 25 | C33: Pavement markings — edge line ; All environments | D33: New Edge-line | E33: 0.2 | H33: =IF(ISBLANK(G33),"",VLOOKUP(F33,Likelihood!$A$4:$D$8,3,FALSE)) ->  | K33: =IF(ISBLANK(J33),"",VLOOKUP(I33,Consequence!$A$4:$D$8,3,FALSE)) ->  | L33: =IF(OR(ISBLANK(G33),ISBLANK(J33)),"",VLOOKUP(F33,Likelihood!$A$4:$D$8,4,FALSE)*VLOOKUP(I33,Consequence!$A$4:$D$8,4,FALSE)) ->  | M33: =IF(L33="","",VLOOKUP(L33,Risk!$A$5:$B$8,2,TRUE)) ->  | N33: 25
B34: 26 | C34: Sight distance ; Rural environments and intersections — based on an improvement in sight distance | D34: Sight | E34: 0.3 | H34: =IF(ISBLANK(G34),"",VLOOKUP(F34,Likelihood!$A$4:$D$8,3,FALSE)) ->  | K34: =IF(ISBLANK(J34),"",VLOOKUP(I34,Consequence!$A$4:$D$8,3,FALSE)) ->  | L34: =IF(OR(ISBLANK(G34),ISBLANK(J34)),"",VLOOKUP(F34,Likelihood!$A$4:$D$8,4,FALSE)*VLOOKUP(I34,Consequence!$A$4:$D$8,4,FALSE)) ->  | M34: =IF(L34="","",VLOOKUP(L34,Risk!$A$5:$B$8,2,TRUE)) ->  | N34: 26
B35: 27 | C35: Signs — advisory ; Advisory speed signs — all environments | D35: PW25 | E35: 0.25 | H35: =IF(ISBLANK(G35),"",VLOOKUP(F35,Likelihood!$A$4:$D$8,3,FALSE)) ->  | K35: =IF(ISBLANK(J35),"",VLOOKUP(I35,Consequence!$A$4:$D$8,3,FALSE)) ->  | L35: =IF(OR(ISBLANK(G35),ISBLANK(J35)),"",VLOOKUP(F35,Likelihood!$A$4:$D$8,4,FALSE)*VLOOKUP(I35,Consequence!$A$4:$D$8,4,FALSE)) ->  | M35: =IF(L35="","",VLOOKUP(L35,Risk!$A$5:$B$8,2,TRUE)) ->  | N35: 27
B36: 28 | C36: Signs — advisory ; Curve warning signs — all environments | D36: PW16+ | E36: 0.25 | H36: =IF(ISBLANK(G36),"",VLOOKUP(F36,Likelihood!$A$4:$D$8,3,FALSE)) ->  | K36: =IF(ISBLANK(J36),"",VLOOKUP(I36,Consequence!$A$4:$D$8,3,FALSE)) ->  | L36: =IF(OR(ISBLANK(G36),ISBLANK(J36)),"",VLOOKUP(F36,Likelihood!$A$4:$D$8,4,FALSE)*VLOOKUP(I36,Consequence!$A$4:$D$8,4,FALSE)) ->  | M36: =IF(L36="","",VLOOKUP(L36,Risk!$A$5:$B$8,2,TRUE)) ->  | N36: 28
B37: 29 | C37: Signs — advisory ; Chevron warning signs — all environments | D37: RCx | E37: 0.3 | H37: =IF(ISBLANK(G37),"",VLOOKUP(F37,Likelihood!$A$4:$D$8,3,FALSE)) ->  | K37: =IF(ISBLANK(J37),"",VLOOKUP(I37,Consequence!$A$4:$D$8,3,FALSE)) ->  | L37: =IF(OR(ISBLANK(G37),ISBLANK(J37)),"",VLOOKUP(F37,Likelihood!$A$4:$D$8,4,FALSE)*VLOOKUP(I37,Consequence!$A$4:$D$8,4,FALSE)) ->  | M37: =IF(L37="","",VLOOKUP(L37,Risk!$A$5:$B$8,2,TRUE)) ->  | N37: 29
B38: 30 | C38: Signs — advisory ; Bridge warning signs — all environments | D38: PW44 | E38: 0.3 | H38: =IF(ISBLANK(G38),"",VLOOKUP(F38,Likelihood!$A$4:$D$8,3,FALSE)) ->  | K38: =IF(ISBLANK(J38),"",VLOOKUP(I38,Consequence!$A$4:$D$8,3,FALSE)) ->  | L38: =IF(OR(ISBLANK(G38),ISBLANK(J38)),"",VLOOKUP(F38,Likelihood!$A$4:$D$8,4,FALSE)*VLOOKUP(I38,Consequence!$A$4:$D$8,4,FALSE)) ->  | M38: =IF(L38="","",VLOOKUP(L38,Risk!$A$5:$B$8,2,TRUE)) ->  | N38: 30
B39: 31 | C39: Signs — advisory ; Guidance signs — all environments | D39: Guide Sign | E39: 0.15 | H39: =IF(ISBLANK(G39),"",VLOOKUP(F39,Likelihood!$A$4:$D$8,3,FALSE)) ->  | K39: =IF(ISBLANK(J39),"",VLOOKUP(I39,Consequence!$A$4:$D$8,3,FALSE)) ->  | L39: =IF(OR(ISBLANK(G39),ISBLANK(J39)),"",VLOOKUP(F39,Likelihood!$A$4:$D$8,4,FALSE)*VLOOKUP(I39,Consequence!$A$4:$D$8,4,FALSE)) ->  | M39: =IF(L39="","",VLOOKUP(L39,Risk!$A$5:$B$8,2,TRUE)) ->  | N39: 31
B40: 32 | C40: Signs — advisory ; Variable message signs — all environments | D40: Variable Msg | E40: 0.15 | H40: =IF(ISBLANK(G40),"",VLOOKUP(F40,Likelihood!$A$4:$D$8,3,FALSE)) ->  | K40: =IF(ISBLANK(J40),"",VLOOKUP(I40,Consequence!$A$4:$D$8,3,FALSE)) ->  | L40: =IF(OR(ISBLANK(G40),ISBLANK(J40)),"",VLOOKUP(F40,Likelihood!$A$4:$D$8,4,FALSE)*VLOOKUP(I40,Consequence!$A$4:$D$8,4,FALSE)) ->  | M40: =IF(L40="","",VLOOKUP(L40,Risk!$A$5:$B$8,2,TRUE)) ->  | N40: 32
B41: 33 | C41: Signs — advisory ; Vehicle activated warning signs — all environments | D41: Veh Activate Sign | E41: 0.35 | F41: =IF(ISBLANK(G41),"",VLOOKUP(G41,LikelihoodTable2,5,FALSE)) ->  | H41: =IF(ISBLANK(G41),"",VLOOKUP(F41,Likelihood!$A$4:$D$8,3,FALSE)) ->  | I41: =IF(ISBLANK(J41),"",VLOOKUP(J41,ConsequenceTable2,5,FALSE)) ->  | K41: =IF(ISBLANK(J41),"",VLOOKUP(I41,Consequence!$A$4:$D$8,3,FALSE)) ->  | L41: =IF(OR(ISBLANK(G41),ISBLANK(J41)),"",VLOOKUP(F41,Likelihood!$A$4:$D$8,4,FALSE)*VLOOKUP(I41,Consequence!$A$4:$D$8,4,FALSE)) ->  | M41: =IF(L41="","",VLOOKUP(L41,Risk!$A$5:$B$8,2,TRUE)) ->  | N41: 33
B42: 34 | C42: Signs — regulatory ; Install Stop sign atT intersection | D42: RG5 T | E42: 0.2 | H42: =IF(ISBLANK(G42),"",VLOOKUP(F42,Likelihood!$A$4:$D$8,3,FALSE)) ->  | K42: =IF(ISBLANK(J42),"",VLOOKUP(I42,Consequence!$A$4:$D$8,3,FALSE)) ->  | L42: =IF(OR(ISBLANK(G42),ISBLANK(J42)),"",VLOOKUP(F42,Likelihood!$A$4:$D$8,4,FALSE)*VLOOKUP(I42,Consequence!$A$4:$D$8,4,FALSE)) ->  | M42: =IF(L42="","",VLOOKUP(L42,Risk!$A$5:$B$8,2,TRUE)) ->  | N42: 34
B43: 35 | C43: Signs — regulatory ; Install Stop sign at X intersection | D43: RG5 X | E43: 0.35 | H43: =IF(ISBLANK(G43),"",VLOOKUP(F43,Likelihood!$A$4:$D$8,3,FALSE)) ->  | K43: =IF(ISBLANK(J43),"",VLOOKUP(I43,Consequence!$A$4:$D$8,3,FALSE)) ->  | L43: =IF(OR(ISBLANK(G43),ISBLANK(J43)),"",VLOOKUP(F43,Likelihood!$A$4:$D$8,4,FALSE)*VLOOKUP(I43,Consequence!$A$4:$D$8,4,FALSE)) ->  | M43: =IF(L43="","",VLOOKUP(L43,Risk!$A$5:$B$8,2,TRUE)) ->  | N43: 35
B44: 36 | C44: Signs — regulatory ; Install Give Way sign — all intersections | D44: RG6 | E44: 0.15 | H44: =IF(ISBLANK(G44),"",VLOOKUP(F44,Likelihood!$A$4:$D$8,3,FALSE)) ->  | K44: =IF(ISBLANK(J44),"",VLOOKUP(I44,Consequence!$A$4:$D$8,3,FALSE)) ->  | L44: =IF(OR(ISBLANK(G44),ISBLANK(J44)),"",VLOOKUP(F44,Likelihood!$A$4:$D$8,4,FALSE)*VLOOKUP(I44,Consequence!$A$4:$D$8,4,FALSE)) ->  | M44: =IF(L44="","",VLOOKUP(L44,Risk!$A$5:$B$8,2,TRUE)) ->  | N44: 36
B45: 37 | C45: Channelisation at intersections — splitter and median islands; Splitter island — rural | D45: Rural Splitter | E45: 0.35 | H45: =IF(ISBLANK(G45),"",VLOOKUP(F45,Likelihood!$A$4:$D$8,3,FALSE)) ->  | K45: =IF(ISBLANK(J45),"",VLOOKUP(I45,Consequence!$A$4:$D$8,3,FALSE)) ->  | L45: =IF(OR(ISBLANK(G45),ISBLANK(J45)),"",VLOOKUP(F45,Likelihood!$A$4:$D$8,4,FALSE)*VLOOKUP(I45,Consequence!$A$4:$D$8,4,FALSE)) ->  | M45: =IF(L45="","",VLOOKUP(L45,Risk!$A$5:$B$8,2,TRUE)) ->  | N45: 37
B46: 38 | C46: Channelisation at intersections — splitter and median islands; Splitter island — urban | D46: Urban Splitter | E46: 0.4 | H46: =IF(ISBLANK(G46),"",VLOOKUP(F46,Likelihood!$A$4:$D$8,3,FALSE)) ->  | K46: =IF(ISBLANK(J46),"",VLOOKUP(I46,Consequence!$A$4:$D$8,3,FALSE)) ->  | L46: =IF(OR(ISBLANK(G46),ISBLANK(J46)),"",VLOOKUP(F46,Likelihood!$A$4:$D$8,4,FALSE)*VLOOKUP(I46,Consequence!$A$4:$D$8,4,FALSE)) ->  | M46: =IF(L46="","",VLOOKUP(L46,Risk!$A$5:$B$8,2,TRUE)) ->  | N46: 38
B47: 39 | C47: Channelisation at intersections — splitter and median islands; Splitter island —T intersection | D47: T Slpitter & Median | E47: 0.45 | H47: =IF(ISBLANK(G47),"",VLOOKUP(F47,Likelihood!$A$4:$D$8,3,FALSE)) ->  | K47: =IF(ISBLANK(J47),"",VLOOKUP(I47,Consequence!$A$4:$D$8,3,FALSE)) ->  | L47: =IF(OR(ISBLANK(G47),ISBLANK(J47)),"",VLOOKUP(F47,Likelihood!$A$4:$D$8,4,FALSE)*VLOOKUP(I47,Consequence!$A$4:$D$8,4,FALSE)) ->  | M47: =IF(L47="","",VLOOKUP(L47,Risk!$A$5:$B$8,2,TRUE)) ->  | N47: 39
B48: 40 | C48: Channelisation at intersections — splitter and median islands; Splitter island — X intersection | D48: X Splitter & Medians | E48: 0.4 | H48: =IF(ISBLANK(G48),"",VLOOKUP(F48,Likelihood!$A$4:$D$8,3,FALSE)) ->  | K48: =IF(ISBLANK(J48),"",VLOOKUP(I48,Consequence!$A$4:$D$8,3,FALSE)) ->  | L48: =IF(OR(ISBLANK(G48),ISBLANK(J48)),"",VLOOKUP(F48,Likelihood!$A$4:$D$8,4,FALSE)*VLOOKUP(I48,Consequence!$A$4:$D$8,4,FALSE)) ->  | M48: =IF(L48="","",VLOOKUP(L48,Risk!$A$5:$B$8,2,TRUE)) ->  | N48: 40
B49: 41 | C49: Traffic calming ; All environments | D49: Calming | E49: 0.2 | H49: =IF(ISBLANK(G49),"",VLOOKUP(F49,Likelihood!$A$4:$D$8,3,FALSE)) ->  | K49: =IF(ISBLANK(J49),"",VLOOKUP(I49,Consequence!$A$4:$D$8,3,FALSE)) ->  | L49: =IF(OR(ISBLANK(G49),ISBLANK(J49)),"",VLOOKUP(F49,Likelihood!$A$4:$D$8,4,FALSE)*VLOOKUP(I49,Consequence!$A$4:$D$8,4,FALSE)) ->  | M49: =IF(L49="","",VLOOKUP(L49,Risk!$A$5:$B$8,2,TRUE)) ->  | N49: 41
B50: 42 | C50: Street lighting(*reduction in night crashes only) ; Improve lighting—all environments | D50: Lighting Improve | E50: 0.3 | H50: =IF(ISBLANK(G50),"",VLOOKUP(F50,Likelihood!$A$4:$D$8,3,FALSE)) ->  | K50: =IF(ISBLANK(J50),"",VLOOKUP(I50,Consequence!$A$4:$D$8,3,FALSE)) ->  | L50: =IF(OR(ISBLANK(G50),ISBLANK(J50)),"",VLOOKUP(F50,Likelihood!$A$4:$D$8,4,FALSE)*VLOOKUP(I50,Consequence!$A$4:$D$8,4,FALSE)) ->  | M50: =IF(L50="","",VLOOKUP(L50,Risk!$A$5:$B$8,2,TRUE)) ->  | N50: 42
B51: 43 | C51: Street lighting(*reduction in night crashes only) ; Improve lighting — intersections | D51: Lighting Improve Intersection | E51: 0.4 | H51: =IF(ISBLANK(G51),"",VLOOKUP(F51,Likelihood!$A$4:$D$8,3,FALSE)) ->  | K51: =IF(ISBLANK(J51),"",VLOOKUP(I51,Consequence!$A$4:$D$8,3,FALSE)) ->  | L51: =IF(OR(ISBLANK(G51),ISBLANK(J51)),"",VLOOKUP(F51,Likelihood!$A$4:$D$8,4,FALSE)*VLOOKUP(I51,Consequence!$A$4:$D$8,4,FALSE)) ->  | M51: =IF(L51="","",VLOOKUP(L51,Risk!$A$5:$B$8,2,TRUE)) ->  | N51: 43
B52: 44 | C52: Street lighting(*reduction in night crashes only) ; Improve lighting — midblock | D52: Lighting Improve Midblock | E52: 0.39 | H52: =IF(ISBLANK(G52),"",VLOOKUP(F52,Likelihood!$A$4:$D$8,3,FALSE)) ->  | K52: =IF(ISBLANK(J52),"",VLOOKUP(I52,Consequence!$A$4:$D$8,3,FALSE)) ->  | L52: =IF(OR(ISBLANK(G52),ISBLANK(J52)),"",VLOOKUP(F52,Likelihood!$A$4:$D$8,4,FALSE)*VLOOKUP(I52,Consequence!$A$4:$D$8,4,FALSE)) ->  | M52: =IF(L52="","",VLOOKUP(L52,Risk!$A$5:$B$8,2,TRUE)) ->  | N52: 44
B53: 45 | C53: Street lighting(*reduction in night crashes only) ; Install lighting — all environments | D53: Lighting New | E53: 0.35 | H53: =IF(ISBLANK(G53),"",VLOOKUP(F53,Likelihood!$A$4:$D$8,3,FALSE)) ->  | K53: =IF(ISBLANK(J53),"",VLOOKUP(I53,Consequence!$A$4:$D$8,3,FALSE)) ->  | L53: =IF(OR(ISBLANK(G53),ISBLANK(J53)),"",VLOOKUP(F53,Likelihood!$A$4:$D$8,4,FALSE)*VLOOKUP(I53,Consequence!$A$4:$D$8,4,FALSE)) ->  | M53: =IF(L53="","",VLOOKUP(L53,Risk!$A$5:$B$8,2,TRUE)) ->  | N53: 45
B54: 46 | C54: Street lighting(*reduction in night crashes only) ; Install lighting — intersections | D54: Lighting New Intersection | E54: 0.5 | H54: =IF(ISBLANK(G54),"",VLOOKUP(F54,Likelihood!$A$4:$D$8,3,FALSE)) ->  | K54: =IF(ISBLANK(J54),"",VLOOKUP(I54,Consequence!$A$4:$D$8,3,FALSE)) ->  | L54: =IF(OR(ISBLANK(G54),ISBLANK(J54)),"",VLOOKUP(F54,Likelihood!$A$4:$D$8,4,FALSE)*VLOOKUP(I54,Consequence!$A$4:$D$8,4,FALSE)) ->  | M54: =IF(L54="","",VLOOKUP(L54,Risk!$A$5:$B$8,2,TRUE)) ->  | N54: 46
B55: 47 | C55: Street lighting(*reduction in night crashes only) ; Install lighting — midblock | D55: Lighting New Mid Block | E55: 0.4 | H55: =IF(ISBLANK(G55),"",VLOOKUP(F55,Likelihood!$A$4:$D$8,3,FALSE)) ->  | K55: =IF(ISBLANK(J55),"",VLOOKUP(I55,Consequence!$A$4:$D$8,3,FALSE)) ->  | L55: =IF(OR(ISBLANK(G55),ISBLANK(J55)),"",VLOOKUP(F55,Likelihood!$A$4:$D$8,4,FALSE)*VLOOKUP(I55,Consequence!$A$4:$D$8,4,FALSE)) ->  | M55: =IF(L55="","",VLOOKUP(L55,Risk!$A$5:$B$8,2,TRUE)) ->  | N55: 47
B56: 48 | C56: Street lighting(*reduction in night crashes only) ; Install lighting — rural | D56: Lighting New Rural | E56: 0.3 | H56: =IF(ISBLANK(G56),"",VLOOKUP(F56,Likelihood!$A$4:$D$8,3,FALSE)) ->  | K56: =IF(ISBLANK(J56),"",VLOOKUP(I56,Consequence!$A$4:$D$8,3,FALSE)) ->  | L56: =IF(OR(ISBLANK(G56),ISBLANK(J56)),"",VLOOKUP(F56,Likelihood!$A$4:$D$8,4,FALSE)*VLOOKUP(I56,Consequence!$A$4:$D$8,4,FALSE)) ->  | M56: =IF(L56="","",VLOOKUP(L56,Risk!$A$5:$B$8,2,TRUE)) ->  | N56: 48
B57: 49 | C57: Street lighting(*reduction in night crashes only) ; Install lighting — rural intersection | D57: Lighting New Rural Intersection | E57: 0.4 | H57: =IF(ISBLANK(G57),"",VLOOKUP(F57,Likelihood!$A$4:$D$8,3,FALSE)) ->  | K57: =IF(ISBLANK(J57),"",VLOOKUP(I57,Consequence!$A$4:$D$8,3,FALSE)) ->  | L57: =IF(OR(ISBLANK(G57),ISBLANK(J57)),"",VLOOKUP(F57,Likelihood!$A$4:$D$8,4,FALSE)*VLOOKUP(I57,Consequence!$A$4:$D$8,4,FALSE)) ->  | M57: =IF(L57="","",VLOOKUP(L57,Risk!$A$5:$B$8,2,TRUE)) ->  | N57: 49
B58: 50 | C58: Street lighting(*reduction in night crashes only) ; Install lighting — urban | D58: Lighting New Urban | E58: 0.3 | H58: =IF(ISBLANK(G58),"",VLOOKUP(F58,Likelihood!$A$4:$D$8,3,FALSE)) ->  | K58: =IF(ISBLANK(J58),"",VLOOKUP(I58,Consequence!$A$4:$D$8,3,FALSE)) ->  | L58: =IF(OR(ISBLANK(G58),ISBLANK(J58)),"",VLOOKUP(F58,Likelihood!$A$4:$D$8,4,FALSE)*VLOOKUP(I58,Consequence!$A$4:$D$8,4,FALSE)) ->  | M58: =IF(L58="","",VLOOKUP(L58,Risk!$A$5:$B$8,2,TRUE)) ->  | N58: 50
B59: 51 | C59: Street lighting(*reduction in night crashes only) ; Install lighting — urban intersection | D59: Lighting New Urban Intersection | E59: 0.2 | H59: =IF(ISBLANK(G59),"",VLOOKUP(F59,Likelihood!$A$4:$D$8,3,FALSE)) ->  | K59: =IF(ISBLANK(J59),"",VLOOKUP(I59,Consequence!$A$4:$D$8,3,FALSE)) ->  | L59: =IF(OR(ISBLANK(G59),ISBLANK(J59)),"",VLOOKUP(F59,Likelihood!$A$4:$D$8,4,FALSE)*VLOOKUP(I59,Consequence!$A$4:$D$8,4,FALSE)) ->  | M59: =IF(L59="","",VLOOKUP(L59,Risk!$A$5:$B$8,2,TRUE)) ->  | N59: 51
B60: 52 | C60: Speed —Lower speed limit; all reductions in speed limit | D60: Lower Speed | E60: 0.15 | H60: =IF(ISBLANK(G60),"",VLOOKUP(F60,Likelihood!$A$4:$D$8,3,FALSE)) ->  | K60: =IF(ISBLANK(J60),"",VLOOKUP(I60,Consequence!$A$4:$D$8,3,FALSE)) ->  | L60: =IF(OR(ISBLANK(G60),ISBLANK(J60)),"",VLOOKUP(F60,Likelihood!$A$4:$D$8,4,FALSE)*VLOOKUP(I60,Consequence!$A$4:$D$8,4,FALSE)) ->  | M60: =IF(L60="","",VLOOKUP(L60,Risk!$A$5:$B$8,2,TRUE)) ->  | N60: 52
B61: 53 | C61: Speed —Lower speed limit; from no previous restriction to any speed limit | D61: New Speed Limit | E61: 0.2 | H61: =IF(ISBLANK(G61),"",VLOOKUP(F61,Likelihood!$A$4:$D$8,3,FALSE)) ->  | K61: =IF(ISBLANK(J61),"",VLOOKUP(I61,Consequence!$A$4:$D$8,3,FALSE)) ->  | L61: =IF(OR(ISBLANK(G61),ISBLANK(J61)),"",VLOOKUP(F61,Likelihood!$A$4:$D$8,4,FALSE)*VLOOKUP(I61,Consequence!$A$4:$D$8,4,FALSE)) ->  | M61: =IF(L61="","",VLOOKUP(L61,Risk!$A$5:$B$8,2,TRUE)) ->  | N61: 53
B62: 54 | C62: Speed — change in operating speed ; Change in operating speed and effect on safety =1-(SpeedA/SpeedB)^2 where SpeedA= speed after, and SpeedB= speed before | D62: Op Speed | H62: =IF(ISBLANK(G62),"",VLOOKUP(F62,Likelihood!$A$4:$D$8,3,FALSE)) ->  | K62: =IF(ISBLANK(J62),"",VLOOKUP(I62,Consequence!$A$4:$D$8,3,FALSE)) ->  | L62: =IF(OR(ISBLANK(G62),ISBLANK(J62)),"",VLOOKUP(F62,Likelihood!$A$4:$D$8,4,FALSE)*VLOOKUP(I62,Consequence!$A$4:$D$8,4,FALSE)) ->  | M62: =IF(L62="","",VLOOKUP(L62,Risk!$A$5:$B$8,2,TRUE)) ->  | N62: 54
B63: 55 | C63: Speed — change in speed limit ; 100 to 110 km/h | D63: Speed 100-110 | E63: -0.25 | H63: =IF(ISBLANK(G63),"",VLOOKUP(F63,Likelihood!$A$4:$D$8,3,FALSE)) ->  | K63: =IF(ISBLANK(J63),"",VLOOKUP(I63,Consequence!$A$4:$D$8,3,FALSE)) ->  | L63: =IF(OR(ISBLANK(G63),ISBLANK(J63)),"",VLOOKUP(F63,Likelihood!$A$4:$D$8,4,FALSE)*VLOOKUP(I63,Consequence!$A$4:$D$8,4,FALSE)) ->  | M63: =IF(L63="","",VLOOKUP(L63,Risk!$A$5:$B$8,2,TRUE)) ->  | N63: 55
B64: 56 | C64: Speed —Lower speed limit; 100 to 80 km/h | D64: Speed 100-80 | E64: 0.15 | H64: =IF(ISBLANK(G64),"",VLOOKUP(F64,Likelihood!$A$4:$D$8,3,FALSE)) ->  | K64: =IF(ISBLANK(J64),"",VLOOKUP(I64,Consequence!$A$4:$D$8,3,FALSE)) ->  | L64: =IF(OR(ISBLANK(G64),ISBLANK(J64)),"",VLOOKUP(F64,Likelihood!$A$4:$D$8,4,FALSE)*VLOOKUP(I64,Consequence!$A$4:$D$8,4,FALSE)) ->  | M64: =IF(L64="","",VLOOKUP(L64,Risk!$A$5:$B$8,2,TRUE)) ->  | N64: =B64 -> 56
B65: 57 | C65: Speed —Lower speed limit; 60 to 50km/h | D65: Speed 60-50 | E65: 0.2 | H65: =IF(ISBLANK(G65),"",VLOOKUP(F65,Likelihood!$A$4:$D$8,3,FALSE)) ->  | K65: =IF(ISBLANK(J65),"",VLOOKUP(I65,Consequence!$A$4:$D$8,3,FALSE)) ->  | L65: =IF(OR(ISBLANK(G65),ISBLANK(J65)),"",VLOOKUP(F65,Likelihood!$A$4:$D$8,4,FALSE)*VLOOKUP(I65,Consequence!$A$4:$D$8,4,FALSE)) ->  | M65: =IF(L65="","",VLOOKUP(L65,Risk!$A$5:$B$8,2,TRUE)) ->  | N65: 57
B66: 58 | C66: Speed —Lower speed limit; 80 to 60 km/h | D66: Speed 80-60 | E66: 0.2 | H66: =IF(ISBLANK(G66),"",VLOOKUP(F66,Likelihood!$A$4:$D$8,3,FALSE)) ->  | K66: =IF(ISBLANK(J66),"",VLOOKUP(I66,Consequence!$A$4:$D$8,3,FALSE)) ->  | L66: =IF(OR(ISBLANK(G66),ISBLANK(J66)),"",VLOOKUP(F66,Likelihood!$A$4:$D$8,4,FALSE)*VLOOKUP(I66,Consequence!$A$4:$D$8,4,FALSE)) ->  | M66: =IF(L66="","",VLOOKUP(L66,Risk!$A$5:$B$8,2,TRUE)) ->  | N66: 58
B67: 59 | C67: Speed — change in speed limit ; any increases in speed limit | D67: Speed Increase | E67: -0.15 | H67: =IF(ISBLANK(G67),"",VLOOKUP(F67,Likelihood!$A$4:$D$8,3,FALSE)) ->  | K67: =IF(ISBLANK(J67),"",VLOOKUP(I67,Consequence!$A$4:$D$8,3,FALSE)) ->  | L67: =IF(OR(ISBLANK(G67),ISBLANK(J67)),"",VLOOKUP(F67,Likelihood!$A$4:$D$8,4,FALSE)*VLOOKUP(I67,Consequence!$A$4:$D$8,4,FALSE)) ->  | M67: =IF(L67="","",VLOOKUP(L67,Risk!$A$5:$B$8,2,TRUE)) ->  | N67: 59
B68: 60 | C68: Speed — change in speed limit ; <90 to >90 km/h | D68: Speed to >90 | E68: -0.15 | H68: =IF(ISBLANK(G68),"",VLOOKUP(F68,Likelihood!$A$4:$D$8,3,FALSE)) ->  | K68: =IF(ISBLANK(J68),"",VLOOKUP(I68,Consequence!$A$4:$D$8,3,FALSE)) ->  | L68: =IF(OR(ISBLANK(G68),ISBLANK(J68)),"",VLOOKUP(F68,Likelihood!$A$4:$D$8,4,FALSE)*VLOOKUP(I68,Consequence!$A$4:$D$8,4,FALSE)) ->  | M68: =IF(L68="","",VLOOKUP(L68,Risk!$A$5:$B$8,2,TRUE)) ->  | N68: 60
B69: 61 | C69: Work zones ; Major treatments (e.g. barriers, cones, markings, advanced warning signs); improvement over no treatment | D69: Work Major | E69: 0.4 | H69: =IF(ISBLANK(G69),"",VLOOKUP(F69,Likelihood!$A$4:$D$8,3,FALSE)) ->  | K69: =IF(ISBLANK(J69),"",VLOOKUP(I69,Consequence!$A$4:$D$8,3,FALSE)) ->  | L69: =IF(OR(ISBLANK(G69),ISBLANK(J69)),"",VLOOKUP(F69,Likelihood!$A$4:$D$8,4,FALSE)*VLOOKUP(I69,Consequence!$A$4:$D$8,4,FALSE)) ->  | M69: =IF(L69="","",VLOOKUP(L69,Risk!$A$5:$B$8,2,TRUE)) ->  | N69: 61
B70: 62 | C70: Work zones ; Minor treatments at work zones (e.g. pavement marking); improvement over no treatment | D70: Work Minor | E70: 0.15 | H70: =IF(ISBLANK(G70),"",VLOOKUP(F70,Likelihood!$A$4:$D$8,3,FALSE)) ->  | K70: =IF(ISBLANK(J70),"",VLOOKUP(I70,Consequence!$A$4:$D$8,3,FALSE)) ->  | L70: =IF(OR(ISBLANK(G70),ISBLANK(J70)),"",VLOOKUP(F70,Likelihood!$A$4:$D$8,4,FALSE)*VLOOKUP(I70,Consequence!$A$4:$D$8,4,FALSE)) ->  | M70: =IF(L70="","",VLOOKUP(L70,Risk!$A$5:$B$8,2,TRUE)) ->  | N70: 62
B71: 63 | C71: Work zones ; Increased crash risk with presence of road works; compared with when no works present | D71: Work Unattended | E71: -0.3 | H71: =IF(ISBLANK(G71),"",VLOOKUP(F71,Likelihood!$A$4:$D$8,3,FALSE)) ->  | K71: =IF(ISBLANK(J71),"",VLOOKUP(I71,Consequence!$A$4:$D$8,3,FALSE)) ->  | L71: =IF(OR(ISBLANK(G71),ISBLANK(J71)),"",VLOOKUP(F71,Likelihood!$A$4:$D$8,4,FALSE)*VLOOKUP(I71,Consequence!$A$4:$D$8,4,FALSE)) ->  | M71: =IF(L71="","",VLOOKUP(L71,Risk!$A$5:$B$8,2,TRUE)) ->  | N71: 63
B72: 64 | C72: Channelisation at intersections — splitter and median islands; Median island — mountable | D72: X Mount Medians | E72: 0.15 | H72: =IF(ISBLANK(G72),"",VLOOKUP(F72,Likelihood!$A$4:$D$8,3,FALSE)) ->  | K72: =IF(ISBLANK(J72),"",VLOOKUP(I72,Consequence!$A$4:$D$8,3,FALSE)) ->  | L72: =IF(OR(ISBLANK(G72),ISBLANK(J72)),"",VLOOKUP(F72,Likelihood!$A$4:$D$8,4,FALSE)*VLOOKUP(I72,Consequence!$A$4:$D$8,4,FALSE)) ->  | M72: =IF(L72="","",VLOOKUP(L72,Risk!$A$5:$B$8,2,TRUE)) ->  | N72: 64
B73: 65 | C73: Widen bridge and approaches | D73: Widen 2 | F73: =IF(ISBLANK(G73),"",VLOOKUP(G73,LikelihoodTable2,5,FALSE)) -> A | G73: Rare | H73: =IF(ISBLANK(G73),"",VLOOKUP(F73,Likelihood!$A$4:$D$8,3,FALSE)) -> No crashes recorded or no crashes in the last 10 years or likely in the next 10 | I73: =IF(ISBLANK(J73),"",VLOOKUP(J73,ConsequenceTable2,5,FALSE)) -> a | J73: Insignificant | K73: =IF(ISBLANK(J73),"",VLOOKUP(I73,Consequence!$A$4:$D$8,3,FALSE)) -> Not likely to cause serious injury. No health or safety impact. | L73: =IF(OR(ISBLANK(G73),ISBLANK(J73)),"",VLOOKUP(F73,Likelihood!$A$4:$D$8,4,FALSE)*VLOOKUP(I73,Consequence!$A$4:$D$8,4,FALSE)) -> 4 | M73: =IF(L73="","",VLOOKUP(L73,Risk!$A$5:$B$8,2,TRUE)) -> Low | N73: =B73 -> 65
B74: =IF(ISNUMBER(B73), MAX($B$8,B73)+1,1) -> 66 | C74: Erect narrow bridge sign and remove tree | D74: Narrow Brg Sign | F74: C | G74: Possible | H74: =IF(ISBLANK(G74),"",VLOOKUP(F74,Likelihood!$A$4:$D$8,3,FALSE)) -> Crashes occur more than 1-5 times in past 5 years. 1 - 5 crashes possible in next 5 years | I74: c | J74: Moderate | K74: =IF(ISBLANK(J74),"",VLOOKUP(I74,Consequence!$A$4:$D$8,3,FALSE)) -> Could possibly cause a fatality. Serious safety impact on small number or minor impact on large number of people. | L74: =IF(OR(ISBLANK(G74),ISBLANK(J74)),"",VLOOKUP(F74,Likelihood!$A$4:$D$8,4,FALSE)*VLOOKUP(I74,Consequence!$A$4:$D$8,4,FALSE)) -> 64 | M74: =IF(L74="","",VLOOKUP(L74,Risk!$A$5:$B$8,2,TRUE)) -> Moderate | N74: 66
B75: 67 | C75: Fell trees causing the shading | D75: Fell Tree/s | F75: A | G75: Rare | H75: =IF(ISBLANK(G75),"",VLOOKUP(F75,Likelihood!$A$4:$D$8,3,FALSE)) -> No crashes recorded or no crashes in the last 10 years or likely in the next 10 | I75: a | J75: Insignificant | K75: =IF(ISBLANK(J75),"",VLOOKUP(I75,Consequence!$A$4:$D$8,3,FALSE)) -> Not likely to cause serious injury. No health or safety impact. | L75: =IF(OR(ISBLANK(G75),ISBLANK(J75)),"",VLOOKUP(F75,Likelihood!$A$4:$D$8,4,FALSE)*VLOOKUP(I75,Consequence!$A$4:$D$8,4,FALSE)) -> 4 | M75: =IF(L75="","",VLOOKUP(L75,Risk!$A$5:$B$8,2,TRUE)) -> Low | N75: 67
B76: 68 | C76: Right Turn Bay | D76: RTB 2 | F76: A | G76: Rare | H76: =IF(ISBLANK(G76),"",VLOOKUP(F76,Likelihood!$A$4:$D$8,3,FALSE)) -> No crashes recorded or no crashes in the last 10 years or likely in the next 10 | I76: b | J76: Minor | K76: =IF(ISBLANK(J76),"",VLOOKUP(I76,Consequence!$A$4:$D$8,3,FALSE)) -> Could cause serious injury. Minor safety impact on small number of people | L76: =IF(OR(ISBLANK(G76),ISBLANK(J76)),"",VLOOKUP(F76,Likelihood!$A$4:$D$8,4,FALSE)*VLOOKUP(I76,Consequence!$A$4:$D$8,4,FALSE)) -> 8 | M76: =IF(L76="","",VLOOKUP(L76,Risk!$A$5:$B$8,2,TRUE)) -> Low | N76: 68
B77: 69 | C77: Improve Cones/ River making it more difficult for trucks to turn L from Cones; and Cones / Milton to provide more room for trucks turning L (provide painted median as acceleration space for at least 100+m, past entrance to reserve) | D77: Improve Cones | F77: B | G77: Unlikely | H77: =IF(ISBLANK(G77),"",VLOOKUP(F77,Likelihood!$A$4:$D$8,3,FALSE)) -> There have been crashes in the last 10 years but not in the last 5. A crash may occur in the next 10 yrs | I77: b | J77: Minor | K77: =IF(ISBLANK(J77),"",VLOOKUP(I77,Consequence!$A$4:$D$8,3,FALSE)) -> Could cause serious injury. Minor safety impact on small number of people | L77: =IF(OR(ISBLANK(G77),ISBLANK(J77)),"",VLOOKUP(F77,Likelihood!$A$4:$D$8,4,FALSE)*VLOOKUP(I77,Consequence!$A$4:$D$8,4,FALSE)) -> 16 | M77: =IF(L77="","",VLOOKUP(L77,Risk!$A$5:$B$8,2,TRUE)) -> Low | N77: 69
B78: 70 | C78: Clear vegetation on property boundary towards Rga | D78: Clear River Rd | F78: B | G78: Unlikely | H78: =IF(ISBLANK(G78),"",VLOOKUP(F78,Likelihood!$A$4:$D$8,3,FALSE)) -> There have been crashes in the last 10 years but not in the last 5. A crash may occur in the next 10 yrs | I78: c | J78: Moderate | K78: =IF(ISBLANK(J78),"",VLOOKUP(I78,Consequence!$A$4:$D$8,3,FALSE)) -> Could possibly cause a fatality. Serious safety impact on small number or minor impact on large number of people. | L78: =IF(OR(ISBLANK(G78),ISBLANK(J78)),"",VLOOKUP(F78,Likelihood!$A$4:$D$8,4,FALSE)*VLOOKUP(I78,Consequence!$A$4:$D$8,4,FALSE)) -> 32 | M78: =IF(L78="","",VLOOKUP(L78,Risk!$A$5:$B$8,2,TRUE)) -> Moderate | N78: 70
B79: 71 | C79: Close River / Milton Intersection, but consider possibility of L in from Ashley St | D79: Close River Rd | F79: A | G79: Rare | H79: =IF(ISBLANK(G79),"",VLOOKUP(F79,Likelihood!$A$4:$D$8,3,FALSE)) -> No crashes recorded or no crashes in the last 10 years or likely in the next 10 | I79: a | J79: Insignificant | K79: =IF(ISBLANK(J79),"",VLOOKUP(I79,Consequence!$A$4:$D$8,3,FALSE)) -> Not likely to cause serious injury. No health or safety impact. | L79: =IF(OR(ISBLANK(G79),ISBLANK(J79)),"",VLOOKUP(F79,Likelihood!$A$4:$D$8,4,FALSE)*VLOOKUP(I79,Consequence!$A$4:$D$8,4,FALSE)) -> 4 | M79: =IF(L79="","",VLOOKUP(L79,Risk!$A$5:$B$8,2,TRUE)) -> Low | N79: 71
B80: 72 | C80: Adjust Edwards St leg; extend Ashley St N island, replace painted island Edwards/Ashley with solid, move Edwards entrance by approx 2m to south | D80: Adjust | F80: D | G80: Likely | H80: =IF(ISBLANK(G80),"",VLOOKUP(F80,Likelihood!$A$4:$D$8,3,FALSE)) -> Crashes occur more than 1-2 times per annum. Several crashes likely in the next year | I80: b | J80: Minor | K80: =IF(ISBLANK(J80),"",VLOOKUP(I80,Consequence!$A$4:$D$8,3,FALSE)) -> Could cause serious injury. Minor safety impact on small number of people | L80: =IF(OR(ISBLANK(G80),ISBLANK(J80)),"",VLOOKUP(F80,Likelihood!$A$4:$D$8,4,FALSE)*VLOOKUP(I80,Consequence!$A$4:$D$8,4,FALSE)) -> 64 | M80: =IF(L80="","",VLOOKUP(L80,Risk!$A$5:$B$8,2,TRUE)) -> Moderate | N80: 72
B81: 73 | C81: Realign Curve | D81: Realign Bend | F81: A | G81: Rare | H81: =IF(ISBLANK(G81),"",VLOOKUP(F81,Likelihood!$A$4:$D$8,3,FALSE)) -> No crashes recorded or no crashes in the last 10 years or likely in the next 10 | I81: b | J81: Minor | K81: =IF(ISBLANK(J81),"",VLOOKUP(I81,Consequence!$A$4:$D$8,3,FALSE)) -> Could cause serious injury. Minor safety impact on small number of people | L81: =IF(OR(ISBLANK(G81),ISBLANK(J81)),"",VLOOKUP(F81,Likelihood!$A$4:$D$8,4,FALSE)*VLOOKUP(I81,Consequence!$A$4:$D$8,4,FALSE)) -> 8 | M81: =IF(L81="","",VLOOKUP(L81,Risk!$A$5:$B$8,2,TRUE)) -> Low | N81: 73
B82: 74 | C82: Sight-benching, minor widening inside curve | D82: Benching 2 | F82: B | G82: Unlikely | H82: =IF(ISBLANK(G82),"",VLOOKUP(F82,Likelihood!$A$4:$D$8,3,FALSE)) -> There have been crashes in the last 10 years but not in the last 5. A crash may occur in the next 10 yrs | I82: a | J82: Insignificant | K82: =IF(ISBLANK(J82),"",VLOOKUP(I82,Consequence!$A$4:$D$8,3,FALSE)) -> Not likely to cause serious injury. No health or safety impact. | L82: =IF(OR(ISBLANK(G82),ISBLANK(J82)),"",VLOOKUP(F82,Likelihood!$A$4:$D$8,4,FALSE)*VLOOKUP(I82,Consequence!$A$4:$D$8,4,FALSE)) -> 8 | M82: =IF(L82="","",VLOOKUP(L82,Risk!$A$5:$B$8,2,TRUE)) -> Low | N82: 74

Sheet Likelihood
A1: Some cells on this sheet are protected from editing. The password is Maunsell
A3: DfcyProb_ID | B3: DfcyProb_Keyword | C3: DfcyProb_Comment | D3: DfcyProb_Value | E3: Factor | F3: Copy of DfcyPron
A4: A | B4: Rare | C4: No crashes recorded or no crashes in the last 10 years or likely in the next 10 | D4: =2^E4 -> 2 | E4: 1 | F4: =A4 -> A
A5: B | B5: Unlikely | C5: There have been crashes in the last 10 years but not in the last 5. A crash may occur in the next 10 yrs | D5: =2^E5 -> 4 | E5: 2 | F5: =A5 -> B
A6: C | B6: Possible | C6: Crashes occur more than 1-5 times in past 5 years. 1 - 5 crashes possible in next 5 years | D6: =2^E6 -> 8 | E6: 3 | F6: =A6 -> C
A7: D | B7: Likely | C7: Crashes occur more than 1-2 times per annum. Several crashes likely in the next year | D7: =2^E7 -> 16 | E7: 4 | F7: =A7 -> D
A8: E | B8: Almost Certain | C8: Crashes occur more than 3 times per annum. Frequent crashes (>3) likely each year | D8: =2^E8 -> 32 | E8: 5 | F8: =A8 -> E

Sheet Consequence
A1: Some cells on this sheet are protected from editing. The password is Maunsell
A3: DfcyConsq_ID | B3: DfcyConsq_Keyword | C3: DfcyConsq_Comment | D3: DfcyConsq_Value | E3: Factor | F3: ="Copy of "&A3 -> Copy of DfcyConsq_ID
A4: a | B4: Insignificant | C4: Not likely to cause serious injury. No health or safety impact. | D4: =2^E4 -> 2 | E4: 1 | F4: =A4 -> a
A5: b | B5: Minor | C5: Could cause serious injury. Minor safety impact on small number of people | D5: =2^E5 -> 4 | E5: 2 | F5: =A5 -> b
A6: c | B6: Moderate | C6: Could possibly cause a fatality. Serious safety impact on small number or minor impact on large number of people. | D6: =2^E6 -> 8 | E6: 3 | F6: =A6 -> c
A7: d | B7: Major | C7: Likely to cause a fatality or several fatalities, extensive injuries or significant safety impacts | D7: =2^E7 -> 32 | E7: 5 | F7: =A7 -> d
A8: e | B8: Severe | C8: Will cause multiple fatalities. Widespread safety impacts | D8: =2^E8 -> 64 | E8: 6 | F8: =A8 -> e

Sheet Risk
A1: This sheet is protected from editing.
A4: RISK
A5: =E15 -> 4 | B5: Low | C5: The "Risk Names" can be altered here to suit corporate /needs/ policy"
A6: =AVERAGE(G15,G16) -> 24 | B6: Moderate
A7: =AVERAGE(G17,G18) -> 96 | B7: High
A8: =AVERAGE(H17,H18) -> 384 | B8: Extreme
E11: a | F11: b | G11: c | H11: d | I11: e
C12: Consequence | E12: =VLOOKUP(E$11,Consequence!$A$4:$D$8,2,FALSE) -> Insignificant | F12: =VLOOKUP(F$11,Consequence!$A$4:$D$8,2,FALSE) -> Minor | G12: =VLOOKUP(G$11,Consequence!$A$4:$D$8,2,FALSE) -> Moderate | H12: =VLOOKUP(H$11,Consequence!$A$4:$D$8,2,FALSE) -> Major | I12: =VLOOKUP(I$11,Consequence!$A$4:$D$8,2,FALSE) -> Severe
B13: Likelihood | C13: Interpretation | E13: =VLOOKUP(E$11,Consequence!$A$4:$D$8,3,FALSE) -> Not likely to cause serious injury. No health or safety impact. | F13: =VLOOKUP(F$11,Consequence!$A$4:$D$8,3,FALSE) -> Could cause serious injury. Minor safety impact on small number of people | G13: =VLOOKUP(G$11,Consequence!$A$4:$D$8,3,FALSE) -> Could possibly cause a fatality. Serious safety impact on small number or minor impact on large number of people. | H13: =VLOOKUP(H$11,Consequence!$A$4:$D$8,3,FALSE) -> Likely to cause a fatality or several fatalities, extensive injuries or significant safety impacts | I13: =VLOOKUP(I$11,Consequence!$A$4:$D$8,3,FALSE) -> Will cause multiple fatalities. Widespread safety impacts
D14: Score | E14: =VLOOKUP(E$11,Consequence!$A$4:$D$8,4,FALSE) -> 2 | F14: =VLOOKUP(F$11,Consequence!$A$4:$D$8,4,FALSE) -> 4 | G14: =VLOOKUP(G$11,Consequence!$A$4:$D$8,4,FALSE) -> 8 | H14: =VLOOKUP(H$11,Consequence!$A$4:$D$8,4,FALSE) -> 32 | I14: =VLOOKUP(I$11,Consequence!$A$4:$D$8,4,FALSE) -> 64
A15: A | B15: =VLOOKUP($A15,Likelihood!$A$4:$D$8,2,FALSE) -> Rare | C15: =VLOOKUP($A15,Likelihood!$A$4:$D$8,3,FALSE) -> No crashes recorded or no crashes in the last 10 years or likely in the next 10 | D15: =VLOOKUP($A15,Likelihood!$A$4:$D$8,4,FALSE) -> 2 | E15: =$D15*E$14 -> 4 | F15: =$D15*F$14 -> 8 | G15: 16 | H15: 64 | I15: 128
A16: B | B16: =VLOOKUP($A16,Likelihood!$A$4:$D$8,2,FALSE) -> Unlikely | C16: =VLOOKUP($A16,Likelihood!$A$4:$D$8,3,FALSE) -> There have been crashes in the last 10 years but not in the last 5. A crash may occur in the next 10 yrs | D16: =VLOOKUP($A16,Likelihood!$A$4:$D$8,4,FALSE) -> 4 | E16: =$D16*E$14 -> 8 | F16: 16 | G16: 32 | H16: 128 | I16: 256
A17: C | B17: =VLOOKUP($A17,Likelihood!$A$4:$D$8,2,FALSE) -> Possible | C17: =VLOOKUP($A17,Likelihood!$A$4:$D$8,3,FALSE) -> Crashes occur more than 1-5 times in past 5 years. 1 - 5 crashes possible in next 5 years | D17: =VLOOKUP($A17,Likelihood!$A$4:$D$8,4,FALSE) -> 8 | E17: =$D17*E$14 -> 16 | F17: 32 | G17: 64 | H17: 256 | I17: 512
A18: D | B18: =VLOOKUP($A18,Likelihood!$A$4:$D$8,2,FALSE) -> Likely | C18: =VLOOKUP($A18,Likelihood!$A$4:$D$8,3,FALSE) -> Crashes occur more than 1-2 times per annum. Several crashes likely in the next year | D18: =VLOOKUP($A18,Likelihood!$A$4:$D$8,4,FALSE) -> 16 | E18: =$D18*E$14 -> 32 | F18: 64 | G18: 128 | H18: 512 | I18: 1024
A19: E | B19: =VLOOKUP($A19,Likelihood!$A$4:$D$8,2,FALSE) -> Almost Certain | C19: =VLOOKUP($A19,Likelihood!$A$4:$D$8,3,FALSE) -> Crashes occur more than 3 times per annum. Frequent crashes (>3) likely each year | D19: =VLOOKUP($A19,Likelihood!$A$4:$D$8,4,FALSE) -> 32 | E19: =$D19*E$14 -> 64 | F19: 128 | G19: 256 | H19: 1024 | I19: 2048

Sheet Work_Category
B1: When adding local values, after Work Cat 4, please insert a new row. New data can also be added below the Land Transport NZ data
B3: Do not leave Blank cells in Column B or Column C
B4: DfcyWkCat_ID | C4: DfcyWkCat_Description | D4: DfcyWkCat_Original_Order
B5: =TRIM(LEFT(C5,12)) -> Unsubsidised | C5: Unsubsidised Works | D5: 1
B6: 1 | C6: Footpaths | D6: 2
B7: 2 | C7: Berms | D7: 3
B8: 3 | C8: Amenity Lighting | D8: 4
B9: 4 | C9: etc | D9: 5
B10: =TRIM(LEFT(C10,12)) -> Activity Cla | C10: Activity Class 1, Maintenance and Operation of Local Roads | D10: 6
B11: =TRIM(LEFT(C11,12)) -> Structural M | C11: Structural Maintenance | D11: 7
B12: 111 | C12: Sealed Pavement maintenance | D12: 8
B13: 112 | C13: Unsealed pavement Maintenance | D13: 9
B14: 113 | C14: Routine Drainage Maintenance | D14: 10
B15: 114 | C15: Structures Maintenance | D15: 11
B16: =TRIM(LEFT(C16,12)) -> Corridor Mai | C16: Corridor Maintenance and Operations | D16: 12
B17: 121 | C17: Environmental Maintenance | D17: 13
B18: 122 | C18: Traffic Services Maintenance | D18: 14
B19: 123 | C19: Operational Traffic Management | D19: 15
B20: 124 | C20: Cycle Path Maintenance | D20: 16
B21: 131 | C21: Level Crossing warning Devices | D21: 17
B22: 141 | C22: Enmergency Reinstatement | D22: 18
B23: 151 | C23: Netowrk Asset management | D23: 19
B24: 171 | C24: Financial Grants | D24: 20
B25: =TRIM(LEFT(C25,12)) -> Class 3, Ren | C25: Class 3, Renewal of Local Roads | D25: 21
B26: =TRIM(LEFT(C26,12)) -> Structural R | C26: Structural Renewals | D26: 22
B27: 211 | C27: Unsealed Road Metalling | D27: 23
B28: 212 | C28: Sealed Road Resurfacing | D28: 24
B29: 213 | C29: Drainage Renewals | D29: 25
B30: 214 | C30: Pavemment Rehabilitation | D30: 26
B31: 215 | C31: Structures Component Renewal | D31: 27
B32: =TRIM(LEFT(C32,12)) -> Coridor Rene | C32: Coridor Renewals | D32: 28
B33: 221 | C33: Environmental Renewals | D33: 29
B34: 222 | C34: Traffic Services renewals | D34: 30
B35: 231 | C35: Associated Improvements | D35: 31
B36: 241 | C36: Preventive Works | D36: 32
B37: =TRIM(LEFT(C37,12)) -> Class 5, Imp | C37: Class 5, Improvement of Local Roads | D37: 33
B38: 311 | C38: Road Studies | D38: 34
B39: =TRIM(LEFT(C39,12)) -> New Road Inf | C39: New Road Infrastructure | D39: 35
B40: 321 | C40: Traffic management | D40: 36
B41: 322 | C41: Bridge renewals | D41: 37
B42: 323 | C42: New Roads and Structures | D42: 38
B43: 324 | C43: Road Reconstruction | D43: 39
B44: 325 | C44: Seal Extension | D44: 40
B45: =TRIM(LEFT(C45,12)) -> Property | C45: Property | D45: 41
B46: 332 | C46: Property Purchase (Local Roads) | D46: 42
B47: 333 | C47: Advance Property Purchase | D47: 43
B48: 341 | C48: Minor Improvements | D48: 44
B49: =TRIM(LEFT(C49,12)) -> Class 8, Use | C49: Class 8, Use of the Land Transport System | D49: 45
B50: 421 | C50: Travel Demand Management | D50: 46
B51: =TRIM(LEFT(C51,12)) -> Community Fo | C51: Community Focussed Activities | D51: 47
B52: 431 | C52: Community Coordination | D52: 48
B53: 432 | C53: Community Programmes | D53: 49
B54: 433 | C54: Community Advertising | D54: 50
B55: =TRIM(LEFT(C55,12)) -> Walking and | C55: Walking and Cycling | D55: 51
B56: 451 | C56: Pedestrian Facilities | D56: 52
B57: 452 | C57: Cycle Facilities | D57: 53
D58: 54
D59: 55
D60: 56
D61: 57
D62: 58
D63: 59
D64: 60
D65: 61
D66: 62
D67: 63
D68: 64
D69: 65
D70: 66
D71: 67
D72: 68
D73: 69
D74: 70
D75: 71
D76: 72
D77: 73
D78: 74
D79: 75
D80: 76
D81: 77
D82: 78
D83: 79
D84: 80
D85: 81
D86: 82
D87: 83
D88: 84
D89: 85
D90: 86
D91: 87
D92: 88
D93: 89
D94: 90
D95: 91
D96: 92
D97: 93
D98: 94
D99: 95
D100: 96
D101: 97
D102: 98
D103: 99
D104: 100
D105: 101
D106: 102
D107: 103
D108: 104
D109: 105
D110: 106
D111: 107
D112: 108
D113: 109
D114: 110
D115: 111
D116: 112
D117: 113
D118: 114
D119: 115
D120: 116
D121: 117
D122: 118
D123: 119
D124: 120
D125: 121
D126: 122
D127: 123
D128: 124
D129: 125
D130: 126
D131: 127
D132: 128
D133: 129
D134: 130
D135: 131
D136: 132
D137: 133
D138: 134
D139: 135
D140: 136
D141: 137
D142: 138
D143: 139
D144: 140
D145: 141
D146: 142
D147: 143
D148: 144
D149: 145
D150: 146
D151: 147
D152: 148
D153: 149
D154: 150
D155: 151
D156: 152
D157: 153
D158: 154
D159: 155
D160: 156
D161: 157
D162: 158
D163: 159
D164: 160
D165: 161
D166: 162
D167: 163
D168: 164
D169: 165
D170: 166
D171: 167
D172: 168
D173: 169
D174: 170
D175: 171
D176: 172
D177: 173
D178: 174
D179: 175
D180: 176
D181: 177
D182: 178
D183: 179
D184: 180
D185: 181
D186: 182
D187: 183
D188: 184
D189: 185
D190: 186
D191: 187
D192: 188
D193: 189
D194: 190
D195: 191
D196: 192
D197: 193
D198: 194
D199: 195
D200: 196
D201: 197
... 3 more rows

Sheet CCI
A1: Construction Indices
B2: Construction | D2: Maintenance | F2: Bridges | H2: Prof Svcs | J2: Reseal | L2: NZS3910 | N2: PPI(Inputs) | P2: PPI(Outputs)
A3: 1 | B3: 2 | C3: 3 | D3: 4 | E3: 5 | F3: 6 | G3: 7 | H3: 8 | I3: 9 | J3: 10 | K3: 11 | L3: 12 | M3: 13 | N3: 14 | O3: 15 | P3: 16 | Q3: 17
A4: Quarter Ending | B4: Land Transport NZ Construction | D4: Land Transport NZ Maintenance | F4: Land Transport NZ Bridges | H4: Land Transport NZ Prof Svcs (Revised Sep 2006) | J4: Land Transport NZ Revised Reseal | L4: NZS 3910 : 2003 Appendix A 40% "L", 60% "M" | N4: Producers Price Index (Construction) Intputs | P4: Producers Price Index (Construction) Outputs
A5: 2003-03-31 | B5: 1126.45 | D5: 1117.65 | F5: 1144.25 | H5: 1005.566617 | J5: 1355.05 | L5: 1119 | N5: 1173 | P5: 1096
A6: 2003-06-30 | B6: 1112.3 | D6: 1103.5 | F6: 1117.05 | H6: 1003.307303 | J6: 1242.05 | L6: 1116 | N6: 1164 | P6: 1108
A7: 2003-09-30 | B7: 1117.55 | D7: 1109.35 | F7: 1123.8 | H7: 1011.346647 | J7: 1257.1 | L7: 1120.4 | N7: 1166 | P7: 1116
A8: 2003-12-31 | B8: 1118.65 | D8: 1110.55 | F8: 1125.4 | H8: 1015.103428 | J8: 1219.85 | L8: 1121.2 | N8: 1162 | P8: 1128
A9: 2004-03-31 | B9: 1125.5 | D9: 1117.1 | F9: 1131.85 | H9: 1022.178241 | J9: 1208.25 | L9: 1133.2 | N9: 1178 | P9: 1150
A10: 2004-06-30 | B10: 1152.95 | D10: 1143.35 | F10: 1169 | H10: 1030.554993 | J10: 1303.9 | L10: 1152.6 | N10: 1205 | P10: 1179
A11: 2004-09-30 | B11: 1171.8 | D11: 1161.5 | F11: 1196 | H11: 1034.515648 | J11: 1293.85 | L11: 1168.8 | N11: 1222 | P11: 1203
A12: 2004-12-31 | B12: 1187.35 | D12: 1177.05 | F12: 1211.95 | H12: 1041.715648 | J12: 1286.5 | L12: 1182.8 | N12: 1238 | P12: 1216
A13: 2005-03-31 | B13: 1196.65 | D13: 1184.55 | F13: 1222.75 | H13: 1047.802086 | J13: 1293.4 | L13: 1194.6 | N13: 1253 | P13: 1229
A14: 2005-06-30 | B14: 1225.7 | D14: 1213.3 | F14: 1260.15 | H14: 1058.822057 | J14: 1396.35 | L14: 1218.2 | N14: 1285 | P14: 1248
A15: 2005-09-30 | B15: 1268.5 | D15: 1255.3 | F15: 1324.85 | H15: 1074.775559 | J15: 1495.05 | L15: 1240.4 | N15: 1310 | P15: 1272
A16: 2005-12-31 | B16: 1271.6 | D16: 1258.2 | F16: 1316.25 | H16: 1079.591058 | J16: 1518.15 | L16: 1254.2 | N16: 1327 | P16: 1287
A17: 2006-03-31 | B17: 1296.9 | D17: 1282.5 | F17: 1343.85 | H17: 1089.567809 | J17: 1610.15 | L17: 1279.2 | N17: 1364 | P17: 1305
A18: 2006-06-30 | B18: 1357.1 | D18: 1340.4 | F18: 1435.05 | H18: 1105.6 | J18: 1717.5 | L18: 1309 | N18: 1407 | P18: 1319
A19: 2006-09-30 | B19: 1376.4 | D19: 1359.8 | F19: 1444.9 | H19: 1112 | J19: 1691.4 | L19: 1349.4 | N19: 1467 | P19: 1350
A20: 2006-12-31 | B20: 1347.6 | D20: 1332.8 | F20: 1387 | H20: 1112.2 | J20: 1542.8 | L20: 1356.6 | N20: 1473 | P20: 1363
A21: 2007-03-31 | B21: 1352.05 | D21: 1337.45 | F21: 1389.45 | H21: 1117.4 | J21: 1572.05 | L21: 1369.4 | N21: 1489 | P21: 1374
A22: 2007-06-30 | B22: 1371.85 | D22: 1356.85 | F22: 1416.15 | H22: 1128.4 | J22: 1640.05 | L22: 1385.2 | N22: 1510 | P22: 1382
A23: 2007-09-30 | B23: 1393.35 | D23: 1378.25 | F23: 1441.65 | H23: 1138 | J23: 1711.5 | L23: 1405.6 | N23: 1536 | P23: 1410
A24: 2007-12-31 | B24: 1422 | D24: 1407.5 | F24: 1482.45 | H24: 1154.6 | J24: 1906.9 | L24: 1416.8 | N24: 1548 | P24: 1431
A25: 2008-03-31 | B25: 1449.7 | D25: 1433.6 | F25: 1520.15 | H25: 1162.6 | J25: 1833.5 | L25: 1430.2 | N25: 1565 | P25: 1445
A26: 2008-06-30 | B26: 1519.9 | C26: R | D26: 1501.2 | E26: R | F26: 1628.9 | G26: R | H26: 1180.6 | I26: R | J26: 2110.85 | K26: R | L26: 1459.2 | N26: 1606 | P26: 1465
A27: 2008-09-30 | B27: 1574.75 | C27: R | D27: 1554.05 | E27: R | F27: 1692.65 | G27: R | H27: 1196.8 | I27: R | J27: 2349.5 | K27: R | L27: 1495.6 | N27: 1656 | P27: 1485
A28: 2008-12-31 | B28: 1513.5 | C28: R | D28: 1491.9 | E28: R | F28: 1568.85 | G28: R | H28: 1186.8 | I28: R | J28: 1665.85 | K28: R | L28: 1495 | N28: 1647 | P28: 1486
A29: 2009-03-31 | B29: 1474.6 | D29: 1454.1 | F29: 1509.05 | H29: 1189.4 | J29: 1748.4 | L29: 1497.8 | N29: 1649 | P29: 1489
A30: 2009-06-30 | B30: 1477.4 | D30: 1456.5 | F30: 1519.1 | H30: 1193.8 | J30: 1854.55 | L30: 1508.8 | N30: 1664 | O30: 0 | P30: 1486 | Q30: 0

Sheet LookUps
E3: Types:
E4: Hazard | F4: Deficiency
E7: Estimate Cost Status
E8: Guess | F8: Budgetary | G8: Preliminary Design | H8: Final Design | I8: Tendered Price
E11: Tolerance for Duplicate Sites, + and -, in m
E12: 100
E15: Weighting Factors
E16: Risk Reduction % | F16: Risk Reduction (% / $k) | G16: Cost / vehicle over 1 year
E17: 1 | F17: 1 | G17: 1
E20: "Default" Crash Start Date | G20: CCI Column to Use
E21: =DATE(YEAR(TODAY()-11*365),1,1) -> 1999-01-01 | G21: PPI(Outputs)
G22: =HLOOKUP(G21,CCI!B2:P3,2,FALSE) -> 16

Sheet Change_Log
A1: Dfcy_dB v1-1 Training.xls | B1: Dfcy_dB_v2_Training.xls | C1: Dfcy_dB_v2_1_0_Training.xls | D1: Dfcy_dB_v3_0_Training.xls | E1: Dfcy_dB_v3_0_Training.xlsm
A2: Updated to v2.0 | B2: Updated to v2.1.0 | C2: Updated to v3.0.0 | D2: CCIs Updated | E2: Updated to v3.0.0
A3: By:George JasonSmith | B3: By:George JasonSmith | C3: By:George JasonSmith | D3: By:George JasonSmith | E3: By:George JasonSmith
A4: On: 5 Feb 08 08:50 | B4: On: 18 Dec 08 14:01 | C4: On: 2 Nov 09 08:43 | D4: On: 2 Nov 09 09:03 | E4: On: 16 Feb 10 16:43
A5: Completed Procedures: Add_New_Sheets; MoveSheets; Validn; Formula_1; Formula_2; Formula_3; Formula_4; Hidden_Tr; WkCat_Chos; AutoFiltTr; Permis4Risk; Formula_5; Formula_6; WkCatSort; Min_Yr; Link2Est; Recom_Go2; Tr_Start; Chk4Dup; DataValid_1; AddChosRisk; ChoicConsq; Formula_7; RecOptPri; Limit_Wt; Move_Wt; CCI_Chg; Format_1; CCI_LookUp; Format_2; Format_3; InfoLink; Row5; ConseqTo; ChangeLog; CopyInfo; Final_Tidy; Intro_Errors; Dup_Treat; ChgAsh_1; ChgAsh_2; LastBits; Mast_Fmt; AddTitle; Add_Col_DO; | B5: Completed Procedures: Fix_CQ; TR2Date; unhide_AD; TR_Table; Earliest_Yr; Clear_today; Accept_duplicate; Fix_record; Misc_2_1_0; Link_Path; More_DataFmt; TT_Fmt; AddScriptThisWkbk No_Macro; Reset_DDMain; | C5: Completed Procedures: Fix_Ranking; Fix_Accept; No_Delete; Staged_Entry; Risk_Reduction; RankAccept; Fix_OptionSelect; YrPrgmd; Reset_DDMain; | D5: Completed Procedures: Update_CCI; | E5: Completed Procedures: NoRank_Accept;
A6: Uncompleted Procedures: Nil | B6: Uncompleted Procedures: Nil | C6: Uncompleted Procedures: Nil | D6: Uncompleted Procedures: Nil | E6: Uncompleted Procedures: Nil
A8: Change Log
A9: v3.0 to v 3.1
A10: 1 | B10: Fixed issue where the worksheet was saving on exit after the user had answered "Do not save"
A11: 2 | B11: Deficiencies with a chosen option of "Accept" are no-longer ranked. Previously they were ranked and confused the listing.
A13: v2.1.0 to v3.0.0
A14: 1 | B14: Fixed an error in the ranking logic that was picking up and incorrect column thus permitting duplicate priorities
A15: 2 | B15: Fix the error in the formula in column CM that causes the option "accept" to produce an error when entered against treatments 2 or 3
A16: 3 | B16: This sub-routine partially fixes a problem caused when the top row of the database (DD_Main) is deleted by a user. It places a warning in the row and adjusts "offset" formulae to reduce the chance of a problem.
A17: 4 | B17: This sub fixes an issue with project prioritization that produces an error in preventing any deficiency being prioritized if there is no treatment against one row
A18: 5 | B18: The prompt to save when exiting the DDPP now works properly, allowing you to save or otherwise the changes you have made. previously they were saved regardless - due to a quirk of Excel which has now been "worked around".
A19: 6 | B19: The prioritization process has change slightly, it no-longer uses "Risk Reduction %" but "Risk Reduction". This provides greater differentiation between similar works on different sites and will result in altered priorities on already-recorded projects.
A21: v2.0.1 to v2.1.0
A22: 1 | B22: Change Log updated
A23: 2 | B23: Corrected display of incorrect name when user identified as other than the log-in name
A24: 3 | B24: Fixed gap in grey shading in column F of the Deficiency Table
A25: 4 | B25: Allocated named range for default crash date start to the correct cell in the Lookups tab
A26: 5 | B26: Fixed macro that adds new rows to DD_Main to include the default crash start date
A27: 6 | B27: Removed data validation check being incorrectly applied to the "Link to Estimate" cells for Treatment Option 1 in DD_Main
A28: 7 | B28: Add hyperlink to "Show Default Crash Date" icon
A29: 8 | B29: Fixed incorrect link imported on "Recommendations" icon when opened from CD etc
A30: 9 | B30: Fixed "Ref#" error in conditional formatting formulae in cols AL to AN
A31: 10 | B31: Formatting in Treatment Table improved to make it clear when all essential data is not entered
A32: 11 | B32: New functionality added to make it easier to determine what columns have auto-filter applied to them.
A33: 12 | B33: Setting for "options" such as auto calc now all contained in the "User …" module
A35: V2.0 to v2.0.1
A36: 1 | B36: Change log updated
A37: 2 | B37: Errors in the title of the columns containing data about "Work Cat of Choice", "Work Category of Chosen Option", "Recommended Overall Ranking" corrected
B38: and the columns re-arranged to a more user-friendly order.
A39: 3 | B39: The cells for Treatment 2 Estimate Date now display correctly (pink) when a data entry is required.
A40: 4 | B40: Likelihood Description for "This Deficiency" is now shown by default in detailed view
A41: 5 | B41: Cells in the treatment table that were pink are now grey to conform with the conventions used elsewhere in the workbook
A42: 6 | B42: New detail added to the Info sheet detailing the earliest useable estimate date.
A43: 7 | B43: The "Year Work is Programmed" column (DH) formerly only gave a warning when a too-early start date is first entered. It now also displays orange backgrounds if the earliest start is later changed to a later date than the currently programmed one.
B44: 'when a too-early start date is first entered but not if the earliest start is later changed.
A45: 8 | B45: All instances of the formula "=today()" in all the estimate date columns are now converted to fixed dates, the current displayed date is used. Presence of the formula causes auto-update of dates which is not what is required
A46: 9 | B46: It is now possible to "flag" possible duplicates as acceptable, thus clearing the warnings and allowing them to work when a "real" duplicates are encountered
A47: 10 | B47: Formatting in the "Record" altered sheet to allow update data to be entered efficiently and displayed correctly.
A48: 11 | B48: Changes made to some of the permanent VBA scripts to resolve compatibility problems encountered when adding rows to the main sheet under Excel 2000
A50: V1.1 to v 2
A51: 1 | B51: Interface now consistently identifies required fields as pink. | CJ51: =IF($CI51="","",IF($CI51=AU51,AZ51,IF($CI51=BG51,BL51,IF($CI51=BS51,BX51,"")))) ->  | CK51: =IF($CI51="","",IF($CI51=AU51,BE51,IF($CI51=BG51,BQ51,IF($CI51=BS51,CC51,"")))) -> 
A52: 2 | B52: Potentially Duplicate Sites produce and alert. Duplicate sites are permitted. | CI52: Detail
A53: 3 | B53: Duplicate treatments for an individual deficiency produce a warning and "break" the calculations. Removing the duplication restores the calculation
A54: 4 | B54: Drop-down boxes now working consistently
A55: 5 | B55: Behaviour of “Cost/vehicle over 1 year” data is no-longer erratic when weightings are changed | CH55: =IF(ISNA(VLOOKUP("You have not chosen a valid option",$CI:$CI,1,FALSE)),"","You MUST update your options") -> 
A56: 6 | B56: Non-negative weightings for ranking prioritization factors have been blocked
A57: 7 | B57: Data collection sheets produced and are available separately
A58: 8 | B58: In the Deficiency Types Table a copy of type ID is now automatically created in Column F "Copy of DfcyType_ID"
A59: 9 | B59: The “Take me to the start of the row” button now available in the “Treatments” table
A60: 10 | B60: The “green”, Chosen Option, cells of DD_Main now details of the chosen option's work category | CJ60: =IF($CI60="","",IF($CI60=AU60,AZ60,IF($CI60=BG60,BL60,IF($CI60=BS60,BX60,"")))) ->  | CK60: =IF($CI60="","",IF($CI60=AU60,BE60,IF($CI60=BG60,BQ60,IF($CI60=BS60,CC60,"")))) -> 
A61: 11 | B61: An Information sheet has been provided. It contains Tips and Hints but is not a proper "Help" file.
A62: 12 | B62: This change log is included
A63: 13 | B63: Programmed Year and Completed fields now interact appropriately and automatic formatting has been adjusted
A64: 14 | B64: Earliest Available Programme Year added, and a warning is given if this is before a higher priority project's dates.
A65: 15 | B65: Auto-filter added to the treatments table, using Excel functionality
A66: 16 | B66: Lookup values that can be changed by users are now all in the "Lookups" Table.
A67: 17 | B67: Some Data validation lists are included in the validations themselves, where customisation is not appropriate
A68: 18 | B68: The "Treatable" column is now visible in the Simplified layout, resolving a problem that could occur with contradictory data
A69: 19 | B69: All data validation now working correctly
A70: 20 | B70: "Drag and Drop" copying is disabled in the spreadsheet but your settings are restored on exit
A71: 21 | B71: Made obvious those fields in the Likelihood and consequence tables can be changed to suit local risk management definitions
A72: 22 | B72: Work Category can now be sorted and then restored to its original order
A73: 23 | B73: When a project is marked as completed it is no longer prioritised
A74: 24 | B74: When a deficiency has been actioned / remedied the cells columns D to G for that entry are greyed and struck-through
A75: 25 | B75: It is more obvious in the "Option Choice" area of the spreadsheet which projects are complete
A76: 26 | B76: A “Links to other data” column has been provided next to each estimate column
A77: 27 | B77: Speed of Print Layout improved significantly. Feedback given in status bar. Reverting to other layouts also sped up significantly
A78: 28 | B78: Automated population of “Who entered this deficiency” data, but not of "Who changed" data
A79: 29 | B79: Provided a “Go to the recommendations” box, similar in functionality to the “Take me to the start of the row” arrow
A80: 30 | B80: Spreadsheet checks for availability of macro permissions on loading.
A81: 31 | B81: A box has been provided to record the reasons why you did not go with the recommended option
A82: 32 | B82: The Print layout now provides for a title to be printed on each page. The First Time you use it you will need to put in a title of your choice.
B83: The title can be changed as you wish, at any time.
B85: Following discussion with, and decisions from, Land Transport NZ The following requested enhancements have not been included in this update
B86: a. | C86: The “Treatments” table should include columns for source of information and confidence/reliability
C87: An un-necessary complication at this stage
B88: b. | C88: Include a Column with “Social Cost of Crashes” and use for prioritization.
C89: An un-necessary complication at this stage. Would be very generic and require population of crash data for each site
B90: c. | C90: Hazards are recorded but how they are to be managed is not.
C91: Land Transport NZ are happy with the current situation
B92: d. | C92: Could the Transit NZ Risk matrix also be included?
C93: Land Transport NZ are happy with the current matrix. Will reconsider this before the next update
B94: e. | C94: People in appointments change with time, can a list of “authorised names” be included as a lookup to allow tracking of these?
C95: An un-necessary complication at this stage
B96: f. | C96: Extend automatic population of “who did this” type data to editing of existing data
C97: Reconsider for next update
B98: g. | C98: Can RAMM traffic count and crash-data tables be included so that this data can be populated automatically?
C99: No, this is an "interim" system. Leave for RAMM. Quite complex to do in a spreadsheet
B101: The following requested change was not included
C102: It would be helpful if a data field could be selected on one of the “lookup tables” and automatically added to the correct cell in DD_Main
C103: Very complicated to do this. Excel copying functionality is a simpler and as effective method to use. This functionality is explained in the "Info" sheet.

Sheet No_Macro (hidden)
B4: NZ Transport Agency Deficiency Database and Prioritization Process
B6: This spreadsheet uses Excel ® macros
B8: Macros are not enabled on this computer
B10: The Menu item: Tools> Macro> Security should be set to Medium or Low
C11: "Medium" will make use of the system frustrating, so "Low" is better
B13: You may need to get your network administrator's approval for this change
B15: Close this window and re-open the spreadsheet when the change has been made
B17: You should ignore these messages when closing the workbook
